Service Heads (T),Executive (T),Director (T),Service Managers (T),Cost centre,Cost centre (T),Account,Account (T),Transaction number,Transaction Date,Period,Amount,Customer/supplier ID,Customer/supplier Name
AD Regulated Provision,Revenue Budgets,Childrens Services,CS Commissioning Service,A0273,Agency Placement,A56000,Other Establishments,30143187,31/10/2022,202306,"1,474.28",REDACTED PERSONAL INFORMATION,REDACTED PERSONAL INFORMATION
AD Regulated Provision,Revenue Budgets,Childrens Services,CS Commissioning Service,A0273,Agency Placement,A56000,Other Establishments,30143171,31/03/2023,202306,"1,682.86",REDACTED PERSONAL INFORMATION,REDACTED PERSONAL INFORMATION
AD Regulated Provision,Revenue Budgets,Childrens Services,CS Commissioning Service,A0273,Agency Placement,A56000,Other Establishments,30143172,31/03/2023,202306,"20,194.32",REDACTED PERSONAL INFORMATION,REDACTED PERSONAL INFORMATION
AD Regulated Provision,Revenue Budgets,Childrens Services,CS Commissioning Service,A0492,Agency Fostercare,A56000,Other Establishments,30144026,02/04/2023,202306,"6,634.00",128418,Nexus Fostering Ltd
AD Regulated Provision,Revenue Budgets,Childrens Services,CS Commissioning Service,A0492,Agency Fostercare,A56000,Other Establishments,30140373,01/05/2023,202306,"3,343.35",144562,Unity Foster Care Ltd
AD Regulated Provision,Revenue Budgets,Childrens Services,Children in Care Disability,A0509,Unaccomp Childr Asylum Seekers,A60010,Tuition &/or Board Fees,30144734,09/05/2023,202306,"5,000.00",1002797,Campus Living Villages
AD Regulated Provision,Revenue Budgets,Childrens Services,Children in Care Disability,A0509,Unaccomp Childr Asylum Seekers,A60010,Tuition &/or Board Fees,30144738,09/05/2023,202306,"5,000.00",1002797,Campus Living Villages
AD Regulated Provision,Revenue Budgets,Childrens Services,CS Commissioning Service,A0273,Agency Placement,A56000,Other Establishments,30145744,01/06/2023,202306,"28,028.57",REDACTED PERSONAL INFORMATION,REDACTED PERSONAL INFORMATION
AD Regulated Provision,Revenue Budgets,Childrens Services,CS Commissioning Service,A0273,Agency Placement,A56000,Other Establishments,30145750,01/06/2023,202306,"5,982.86",REDACTED PERSONAL INFORMATION,REDACTED PERSONAL INFORMATION
AD Regulated Provision,Revenue Budgets,Childrens Services,CS Commissioning Service,A1789,Childrens Serv Supp Housing,A49105,Other Supplies & Services,30142050,06/06/2023,202306,"5,846.08",1002181,Velox Healthcare
AD Regulated Provision,Revenue Budgets,Childrens Services,CS Commissioning Service,A0273,Agency Placement,A56000,Other Establishments,30120878,08/06/2023,202306,"-3,844.29",REDACTED PERSONAL INFORMATION,REDACTED PERSONAL INFORMATION
AD Regulated Provision,Revenue Budgets,Childrens Services,Children in Care Disability,A0514,Children in Care,A61158,Childminders/Nurseries/Playgrp,30143047,23/06/2023,202306,"1,390.00",1006044,Rascals
AD Regulated Provision,Revenue Budgets,Childrens Services,CS Commissioning Service,A1789,Childrens Serv Supp Housing,A56000,Other Establishments,30137074,30/06/2023,202306,"43,200.00",REDACTED PERSONAL INFORMATION,REDACTED PERSONAL INFORMATION
AD Regulated Provision,Revenue Budgets,Childrens Services,CS Commissioning Service,A0273,Agency Placement,A56000,Other Establishments,30142069,30/06/2023,202306,"24,357.14",REDACTED PERSONAL INFORMATION,REDACTED PERSONAL INFORMATION
AD Regulated Provision,Revenue Budgets,Childrens Services,CS Commissioning Service,A0273,Agency Placement,A56000,Other Establishments,30144289,30/06/2023,202306,"24,357.14",REDACTED PERSONAL INFORMATION,REDACTED PERSONAL INFORMATION
AD Regulated Provision,Revenue Budgets,Childrens Services,CS Commissioning Service,A1789,Childrens Serv Supp Housing,A56000,Other Establishments,30145860,30/06/2023,202306,"-1,115.94",REDACTED PERSONAL INFORMATION,REDACTED PERSONAL INFORMATION
AD Regulated Provision,Revenue Budgets,Childrens Services,CS Commissioning Service,A1844,CH and Educ Comm Team,A11005,Agency Supply Staff,30147210,30/06/2023,202306,"2,452.61",1007668,Humber Recruitment Limited
AD Regulated Provision,Revenue Budgets,Childrens Services,CS Commissioning Service,A0273,Agency Placement,A56000,Other Establishments,30143182,01/07/2023,202306,"3,321.34",REDACTED PERSONAL INFORMATION,REDACTED PERSONAL INFORMATION
AD Regulated Provision,Revenue Budgets,Childrens Services,CS Commissioning Service,A0273,Agency Placement,A56000,Other Establishments,30143186,01/07/2023,202306,"30,058.84",REDACTED PERSONAL INFORMATION,REDACTED PERSONAL INFORMATION
AD Regulated Provision,Revenue Budgets,Childrens Services,CS Commissioning Service,A0273,Agency Placement,A56000,Other Establishments,30145741,04/07/2023,202306,"6,182.29",REDACTED PERSONAL INFORMATION,REDACTED PERSONAL INFORMATION
AD Regulated Provision,Revenue Budgets,Childrens Services,CS Commissioning Service,A0273,Agency Placement,A56000,Other Establishments,30145752,04/07/2023,202306,"28,962.86",REDACTED PERSONAL INFORMATION,REDACTED PERSONAL INFORMATION
AD Regulated Provision,Revenue Budgets,Childrens Services,CS Commissioning Service,A1789,Childrens Serv Supp Housing,A56000,Other Establishments,30148369,17/07/2023,202306,517.46,1007689,VCare Alliance Ltd
AD Regulated Provision,Revenue Budgets,Childrens Services,CS Commissioning Service,A0273,Agency Placement,A56000,Other Establishments,30134453,19/07/2023,202306,"22,762.45",REDACTED PERSONAL INFORMATION,REDACTED PERSONAL INFORMATION
AD Regulated Provision,Revenue Budgets,Childrens Services,CS Commissioning Service,A0273,Agency Placement,A56000,Other Establishments,30146720,19/07/2023,202306,"13,684.29",REDACTED PERSONAL INFORMATION,REDACTED PERSONAL INFORMATION
AD Regulated Provision,Revenue Budgets,Childrens Services,CS Commissioning Service,A0492,Agency Fostercare,A56000,Other Establishments,30142070,24/07/2023,202306,"4,925.90",105607,Action For Children Services Ltd
AD Regulated Provision,Revenue Budgets,Childrens Services,CS Commissioning Service,A0492,Agency Fostercare,A56000,Other Establishments,30142072,24/07/2023,202306,"5,026.34",105607,Action For Children Services Ltd
AD Regulated Provision,Revenue Budgets,Childrens Services,CS Commissioning Service,A0492,Agency Fostercare,A56000,Other Establishments,30142079,24/07/2023,202306,"6,226.66",105607,Action For Children Services Ltd
AD Regulated Provision,Revenue Budgets,Childrens Services,CS Commissioning Service,A0492,Agency Fostercare,A56000,Other Establishments,30142081,24/07/2023,202306,"6,554.33",105607,Action For Children Services Ltd
AD Regulated Provision,Revenue Budgets,Childrens Services,CS Commissioning Service,A0492,Agency Fostercare,A56000,Other Establishments,30142088,24/07/2023,202306,"5,060.44",105607,Action For Children Services Ltd
AD Regulated Provision,Revenue Budgets,Childrens Services,CS Commissioning Service,A1789,Childrens Serv Supp Housing,A56000,Other Establishments,30148399,25/07/2023,202306,599.87,1007689,VCare Alliance Ltd
AD Regulated Provision,Revenue Budgets,Childrens Services,CS Commissioning Service,A0492,Agency Fostercare,A56000,Other Establishments,30139973,26/07/2023,202306,330.8,101455,Foster Care Associates Limited
AD Regulated Provision,Revenue Budgets,Childrens Services,CS Commissioning Service,A0492,Agency Fostercare,A56000,Other Establishments,30139979,26/07/2023,202306,448.96,101455,Foster Care Associates Limited
AD Regulated Provision,Revenue Budgets,Childrens Services,CS Commissioning Service,A0492,Agency Fostercare,A56000,Other Establishments,30148003,26/07/2023,202306,441.64,145485,Fosterplus Ltd
AD Regulated Provision,Revenue Budgets,Childrens Services,CS Commissioning Service,A0492,Agency Fostercare,A56000,Other Establishments,30139959,27/07/2023,202306,468.48,101455,Foster Care Associates Limited
AD Regulated Provision,Revenue Budgets,Childrens Services,CS Commissioning Service,A0492,Agency Fostercare,A56000,Other Establishments,30139961,27/07/2023,202306,448.96,101455,Foster Care Associates Limited
AD Regulated Provision,Revenue Budgets,Childrens Services,CS Commissioning Service,A0492,Agency Fostercare,A56000,Other Establishments,30139962,27/07/2023,202306,468.48,101455,Foster Care Associates Limited
AD Regulated Provision,Revenue Budgets,Childrens Services,CS Commissioning Service,A0492,Agency Fostercare,A56000,Other Establishments,30139963,27/07/2023,202306,448.96,101455,Foster Care Associates Limited
AD Regulated Provision,Revenue Budgets,Childrens Services,CS Commissioning Service,A0492,Agency Fostercare,A56000,Other Establishments,30139964,27/07/2023,202306,468.48,101455,Foster Care Associates Limited
AD Regulated Provision,Revenue Budgets,Childrens Services,CS Commissioning Service,A0492,Agency Fostercare,A56000,Other Establishments,30139968,27/07/2023,202306,468.48,101455,Foster Care Associates Limited
AD Regulated Provision,Revenue Budgets,Childrens Services,CS Commissioning Service,A0492,Agency Fostercare,A56000,Other Establishments,30139969,27/07/2023,202306,444.48,101455,Foster Care Associates Limited
AD Regulated Provision,Revenue Budgets,Childrens Services,CS Commissioning Service,A0492,Agency Fostercare,A56000,Other Establishments,30139970,27/07/2023,202306,448.96,101455,Foster Care Associates Limited
AD Regulated Provision,Revenue Budgets,Childrens Services,CS Commissioning Service,A0492,Agency Fostercare,A56000,Other Establishments,30139971,27/07/2023,202306,468.48,101455,Foster Care Associates Limited
AD Regulated Provision,Revenue Budgets,Childrens Services,CS Commissioning Service,A0492,Agency Fostercare,A56000,Other Establishments,30139972,27/07/2023,202306,448.96,101455,Foster Care Associates Limited
AD Regulated Provision,Revenue Budgets,Childrens Services,CS Commissioning Service,A0492,Agency Fostercare,A56000,Other Establishments,30139974,27/07/2023,202306,448.96,101455,Foster Care Associates Limited
AD Regulated Provision,Revenue Budgets,Childrens Services,CS Commissioning Service,A0492,Agency Fostercare,A56000,Other Establishments,30139975,27/07/2023,202306,468.48,101455,Foster Care Associates Limited
AD Regulated Provision,Revenue Budgets,Childrens Services,CS Commissioning Service,A0492,Agency Fostercare,A56000,Other Establishments,30139976,27/07/2023,202306,448.96,101455,Foster Care Associates Limited
AD Regulated Provision,Revenue Budgets,Childrens Services,CS Commissioning Service,A0492,Agency Fostercare,A56000,Other Establishments,30139977,27/07/2023,202306,534.44,101455,Foster Care Associates Limited
AD Regulated Provision,Revenue Budgets,Childrens Services,CS Commissioning Service,A0492,Agency Fostercare,A56000,Other Establishments,30139978,27/07/2023,202306,468.48,101455,Foster Care Associates Limited
AD Regulated Provision,Revenue Budgets,Childrens Services,CS Commissioning Service,A0492,Agency Fostercare,A56000,Other Establishments,30139980,27/07/2023,202306,448.96,101455,Foster Care Associates Limited
AD Regulated Provision,Revenue Budgets,Childrens Services,CS Commissioning Service,A0492,Agency Fostercare,A56000,Other Establishments,30139981,27/07/2023,202306,956.48,101455,Foster Care Associates Limited
AD Regulated Provision,Revenue Budgets,Childrens Services,CS Commissioning Service,A0492,Agency Fostercare,A56000,Other Establishments,30141754,28/07/2023,202306,"3,350.40",1007260,Capstone Foster Care Ltd (North)
AD Regulated Provision,Revenue Budgets,Childrens Services,CS Commissioning Service,A1844,CH and Educ Comm Team,A11005,Agency Supply Staff,30147212,28/07/2023,202306,"2,316.60",1007668,Humber Recruitment Limited
AD Regulated Provision,Revenue Budgets,Childrens Services,CS Commissioning Service,A0273,Agency Placement,A56000,Other Establishments,30143177,30/07/2023,202306,"13,671.43",146328,Hexagon Care Services Ltd
AD Regulated Provision,Revenue Budgets,Childrens Services,CS Commissioning Service,A1789,Childrens Serv Supp Housing,A56000,Other Establishments,30135411,31/07/2023,202306,"18,128.58",REDACTED PERSONAL INFORMATION,REDACTED PERSONAL INFORMATION
AD Regulated Provision,Revenue Budgets,Childrens Services,CS Commissioning Service,A0273,Agency Placement,A56000,Other Establishments,30135828,31/07/2023,202306,"26,305.71",REDACTED PERSONAL INFORMATION,REDACTED PERSONAL INFORMATION
AD Regulated Provision,Revenue Budgets,Childrens Services,CS Commissioning Service,A1789,Childrens Serv Supp Housing,A56000,Other Establishments,30137071,31/07/2023,202306,"44,640.00",REDACTED PERSONAL INFORMATION,REDACTED PERSONAL INFORMATION
AD Regulated Provision,Revenue Budgets,Childrens Services,Children in Care Disability,A0514,Children in Care,A49107,Activities - Service Users,30141942,31/07/2023,202306,510.22,REDACTED PERSONAL INFORMATION,REDACTED PERSONAL INFORMATION
AD Regulated Provision,Revenue Budgets,Childrens Services,Fostering and Adoption,A0489,Adoption Support,A49092,Audit Fees - other services,30145068,31/07/2023,202306,"2,437.50",120445,Fortis Therapy & Training
AD Regulated Provision,Revenue Budgets,Childrens Services,CS Commissioning Service,A1789,Childrens Serv Supp Housing,A56000,Other Establishments,30145859,31/07/2023,202306,"1,036.23",REDACTED PERSONAL INFORMATION,REDACTED PERSONAL INFORMATION
AD Regulated Provision,Revenue Budgets,Childrens Services,CS Commissioning Service,A1789,Childrens Serv Supp Housing,A56000,Other Establishments,30145859,31/07/2023,202306,"1,434.78",REDACTED PERSONAL INFORMATION,REDACTED PERSONAL INFORMATION
AD Regulated Provision,Revenue Budgets,Childrens Services,CS Commissioning Service,A1789,Childrens Serv Supp Housing,A56000,Other Establishments,30145863,31/07/2023,202306,"2,471.01",REDACTED PERSONAL INFORMATION,REDACTED PERSONAL INFORMATION
AD Regulated Provision,Revenue Budgets,Childrens Services,CS Commissioning Service,A1789,Childrens Serv Supp Housing,A56000,Other Establishments,30145867,31/07/2023,202306,"1,434.78",REDACTED PERSONAL INFORMATION,REDACTED PERSONAL INFORMATION
AD Regulated Provision,Revenue Budgets,Childrens Services,CS Commissioning Service,A1789,Childrens Serv Supp Housing,A56000,Other Establishments,30145870,31/07/2023,202306,"1,913.04",REDACTED PERSONAL INFORMATION,REDACTED PERSONAL INFORMATION
AD Regulated Provision,Revenue Budgets,Childrens Services,CS Commissioning Service,A1789,Childrens Serv Supp Housing,A56000,Other Establishments,30145871,31/07/2023,202306,"2,471.01",REDACTED PERSONAL INFORMATION,REDACTED PERSONAL INFORMATION
AD Regulated Provision,Revenue Budgets,Childrens Services,CS Commissioning Service,A0273,Agency Placement,A56000,Other Establishments,30147421,31/07/2023,202306,"21,301.34",REDACTED PERSONAL INFORMATION,REDACTED PERSONAL INFORMATION
AD Regulated Provision,Revenue Budgets,Childrens Services,CS Commissioning Service,A0273,Agency Placement,A56000,Other Establishments,30135564,01/08/2023,202306,"17,683.33",REDACTED PERSONAL INFORMATION,REDACTED PERSONAL INFORMATION
AD Regulated Provision,Revenue Budgets,Childrens Services,CS Commissioning Service,A0273,Agency Placement,A56000,Other Establishments,30135868,01/08/2023,202306,"15,828.29",REDACTED PERSONAL INFORMATION,REDACTED PERSONAL INFORMATION
AD Regulated Provision,Revenue Budgets,Childrens Services,CS Commissioning Service,A0492,Agency Fostercare,A56000,Other Establishments,30135983,01/08/2023,202306,"3,821.80",135118,Orange Grove Fostercare Ltd
AD Regulated Provision,Revenue Budgets,Childrens Services,CS Commissioning Service,A0492,Agency Fostercare,A56000,Other Establishments,30135985,01/08/2023,202306,"4,879.71",135118,Orange Grove Fostercare Ltd
AD Regulated Provision,Revenue Budgets,Childrens Services,CS Commissioning Service,A0492,Agency Fostercare,A56000,Other Establishments,30135986,01/08/2023,202306,"3,782.24",135118,Orange Grove Fostercare Ltd
AD Regulated Provision,Revenue Budgets,Childrens Services,CS Commissioning Service,A0492,Agency Fostercare,A56000,Other Establishments,30135991,01/08/2023,202306,"3,899.80",135118,Orange Grove Fostercare Ltd
AD Regulated Provision,Revenue Budgets,Childrens Services,CS Commissioning Service,A0492,Agency Fostercare,A56000,Other Establishments,30135992,01/08/2023,202306,"3,997.76",135118,Orange Grove Fostercare Ltd
AD Regulated Provision,Revenue Budgets,Childrens Services,CS Commissioning Service,A0492,Agency Fostercare,A56000,Other Establishments,30140974,01/08/2023,202306,"3,062.01",149194,Quality Foster Care Ltd
AD Regulated Provision,Revenue Budgets,Childrens Services,CS Commissioning Service,A0492,Agency Fostercare,A56000,Other Establishments,30141197,01/08/2023,202306,"3,764.33",1002661,Shining Stars Fostering Agency
AD Regulated Provision,Revenue Budgets,Childrens Services,CS Commissioning Service,A0492,Agency Fostercare,A56000,Other Establishments,30141199,01/08/2023,202306,"2,699.97",1002661,Shining Stars Fostering Agency
AD Regulated Provision,Revenue Budgets,Childrens Services,CS Commissioning Service,A0492,Agency Fostercare,A56000,Other Establishments,30141207,01/08/2023,202306,"2,699.97",1002661,Shining Stars Fostering Agency
AD Regulated Provision,Revenue Budgets,Childrens Services,CS Commissioning Service,A0492,Agency Fostercare,A56000,Other Establishments,30141224,01/08/2023,202306,"3,520.71",1002661,Shining Stars Fostering Agency
AD Regulated Provision,Revenue Budgets,Childrens Services,CS Commissioning Service,A0492,Agency Fostercare,A56000,Other Establishments,30141454,01/08/2023,202306,"3,963.57",151029,Rainbow Fostering Services Ltd
AD Regulated Provision,Revenue Budgets,Childrens Services,CS Residential Homes,A1718,Staying Close Project,A49107,Activities - Service Users,30141855,01/08/2023,202306,405.86,PETTY CASH,PETTY CASH
AD Regulated Provision,Revenue Budgets,Childrens Services,CS Residential Homes,A1718,Staying Close Project,A49107,Activities - Service Users,30141855,01/08/2023,202306,517.5,PETTY CASH,PETTY CASH
AD Regulated Provision,Revenue Budgets,Childrens Services,CS Commissioning Service,A0273,Agency Placement,A56000,Other Establishments,30143149,01/08/2023,202306,"23,604.00",REDACTED PERSONAL INFORMATION,REDACTED PERSONAL INFORMATION
AD Regulated Provision,Revenue Budgets,Childrens Services,CS Commissioning Service,A0273,Agency Placement,A56000,Other Establishments,30143154,01/08/2023,202306,"23,604.00",REDACTED PERSONAL INFORMATION,REDACTED PERSONAL INFORMATION
AD Regulated Provision,Revenue Budgets,Childrens Services,CS Commissioning Service,A0273,Agency Placement,A56000,Other Establishments,30143176,01/08/2023,202306,"30,058.84",REDACTED PERSONAL INFORMATION,REDACTED PERSONAL INFORMATION
AD Regulated Provision,Revenue Budgets,Childrens Services,CS Commissioning Service,A0273,Agency Placement,A56000,Other Establishments,30143178,01/08/2023,202306,"3,321.34",REDACTED PERSONAL INFORMATION,REDACTED PERSONAL INFORMATION
AD Regulated Provision,Revenue Budgets,Childrens Services,CS Commissioning Service,A0273,Agency Placement,A56000,Other Establishments,30143183,01/08/2023,202306,"16,117.21",REDACTED PERSONAL INFORMATION,REDACTED PERSONAL INFORMATION
AD Regulated Provision,Revenue Budgets,Childrens Services,CS Commissioning Service,A0492,Agency Fostercare,A56000,Other Establishments,30144022,01/08/2023,202306,"6,634.00",128418,Nexus Fostering Ltd
AD Regulated Provision,Revenue Budgets,Childrens Services,Children in Care Disability,A0517,Direct Payments Scheme,A56000,Other Establishments,30147107,01/08/2023,202306,"2,350.57",1002181,Velox Healthcare
AD Regulated Provision,Revenue Budgets,Childrens Services,CS Commissioning Service,A1789,Childrens Serv Supp Housing,A56000,Other Establishments,30148401,01/08/2023,202306,"1,230.23",1007689,VCare Alliance Ltd
AD Regulated Provision,Revenue Budgets,Childrens Services,CS Commissioning Service,A0273,Agency Placement,A56000,Other Establishments,30142047,02/08/2023,202306,"18,901.07",REDACTED PERSONAL INFORMATION,REDACTED PERSONAL INFORMATION
AD Regulated Provision,Revenue Budgets,Childrens Services,CS Commissioning Service,A0273,Agency Placement,A56000,Other Establishments,30142064,02/08/2023,202306,"18,901.07",REDACTED PERSONAL INFORMATION,REDACTED PERSONAL INFORMATION
AD Regulated Provision,Revenue Budgets,Childrens Services,CS Commissioning Service,A1789,Childrens Serv Supp Housing,A56000,Other Establishments,30148392,07/08/2023,202306,"1,248.45",1007689,VCare Alliance Ltd
AD Regulated Provision,Revenue Budgets,Childrens Services,Fostering and Adoption,A0490,Fostering And Adoption Team,A11005,Agency Supply Staff,30137605,08/08/2023,202306,"2,127.50",120715,Nonstop Consulting Limited
AD Regulated Provision,Revenue Budgets,Childrens Services,CS Residential Homes,A0502,REDACTED PERSONAL INFORMATION,A56000,Other Establishments,30141981,11/08/2023,202306,"3,120.00",101836,Ofsted
AD Regulated Provision,Revenue Budgets,Childrens Services,CS Commissioning Service,A1789,Childrens Serv Supp Housing,A56000,Other Establishments,30148397,13/08/2023,202306,"1,349.83",1007689,VCare Alliance Ltd
AD Regulated Provision,Revenue Budgets,Childrens Services,CS Commissioning Service,A1844,CH and Educ Comm Team,A11005,Agency Supply Staff,30147182,14/08/2023,202306,447.53,1007668,Humber Recruitment Limited
AD Regulated Provision,Revenue Budgets,Childrens Services,CS Commissioning Service,A1844,CH and Educ Comm Team,A11005,Agency Supply Staff,30147207,14/08/2023,202306,649.35,1007668,Humber Recruitment Limited
AD Regulated Provision,Revenue Budgets,Childrens Services,CS Commissioning Service,A0273,Agency Placement,A56000,Other Establishments,30143153,15/08/2023,202306,276.05,REDACTED PERSONAL INFORMATION,REDACTED PERSONAL INFORMATION
AD Regulated Provision,Revenue Budgets,Childrens Services,CS Commissioning Service,A0273,Agency Placement,A56000,Other Establishments,30143987,15/08/2023,202306,"16,393.91",REDACTED PERSONAL INFORMATION,REDACTED PERSONAL INFORMATION
AD Regulated Provision,Revenue Budgets,Childrens Services,CS Commissioning Service,A1789,Childrens Serv Supp Housing,A56000,Other Establishments,30143990,15/08/2023,202306,"3,672.00",1000864,Humbercare Ltd
AD Regulated Provision,Revenue Budgets,Childrens Services,CS Commissioning Service,A1789,Childrens Serv Supp Housing,A56000,Other Establishments,30148383,15/08/2023,202306,331.27,1007689,VCare Alliance Ltd
AD Regulated Provision,Revenue Budgets,Childrens Services,CS Commissioning Service,A0273,Agency Placement,A56000,Other Establishments,30139317,16/08/2023,202306,"-1,281.43",REDACTED PERSONAL INFORMATION,REDACTED PERSONAL INFORMATION
AD Regulated Provision,Revenue Budgets,Childrens Services,CS Commissioning Service,A0273,Agency Placement,A56000,Other Establishments,30139319,16/08/2023,202306,"-4,805.36",REDACTED PERSONAL INFORMATION,REDACTED PERSONAL INFORMATION
AD Regulated Provision,Revenue Budgets,Childrens Services,CS Commissioning Service,A0273,Agency Placement,A56000,Other Establishments,30139321,16/08/2023,202306,"-4,805.36",REDACTED PERSONAL INFORMATION,REDACTED PERSONAL INFORMATION
AD Regulated Provision,Revenue Budgets,Childrens Services,Children in Care Disability,A0517,Direct Payments Scheme,A56000,Other Establishments,30146362,16/08/2023,202306,486.46,1001303,Thornbury Nursing Services
AD Regulated Provision,Revenue Budgets,Childrens Services,Children in Care Disability,A0517,Direct Payments Scheme,A56000,Other Establishments,30146366,16/08/2023,202306,412.07,1001303,Thornbury Nursing Services
AD Regulated Provision,Revenue Budgets,Childrens Services,Children in Care Disability,A0517,Direct Payments Scheme,A56000,Other Establishments,30146378,16/08/2023,202306,393.57,1001303,Thornbury Nursing Services
AD Regulated Provision,Revenue Budgets,Childrens Services,CS Commissioning Service,A1789,Childrens Serv Supp Housing,A56000,Other Establishments,30139888,18/08/2023,202306,"33,120.00",REDACTED PERSONAL INFORMATION,REDACTED PERSONAL INFORMATION
AD Regulated Provision,Revenue Budgets,Childrens Services,CS Commissioning Service,A1844,CH and Educ Comm Team,A11005,Agency Supply Staff,30147189,18/08/2023,202306,649.35,1007668,Humber Recruitment Limited
AD Regulated Provision,Revenue Budgets,Childrens Services,Fostering and Adoption,A1603,Adoption Support Fund,A49105,Other Supplies & Services,30142742,20/08/2023,202306,520,1004593,Amanda Greening
AD Regulated Provision,Revenue Budgets,Childrens Services,Fostering and Adoption,A1603,Adoption Support Fund,A49105,Other Supplies & Services,30142747,20/08/2023,202306,520,1004593,Amanda Greening
AD Regulated Provision,Revenue Budgets,Childrens Services,CS Commissioning Service,A0273,Agency Placement,A56000,Other Establishments,30139948,21/08/2023,202306,"16,885.00",REDACTED PERSONAL INFORMATION,REDACTED PERSONAL INFORMATION
AD Regulated Provision,Revenue Budgets,Childrens Services,Fostering and Adoption,A0490,Fostering And Adoption Team,A11005,Agency Supply Staff,30140225,22/08/2023,202306,"2,127.50",120715,Nonstop Consulting Limited
AD Regulated Provision,Revenue Budgets,Childrens Services,Children in Care Disability,A0509,Unaccomp Childr Asylum Seekers,A61045,Personal Allowance,30142220,22/08/2023,202306,674,PETTY CASH,PETTY CASH
AD Regulated Provision,Revenue Budgets,Childrens Services,Children in Care Disability,A0511,Care Leavers Allowances,A61045,Personal Allowance,30142220,22/08/2023,202306,696.6,PETTY CASH,PETTY CASH
AD Regulated Provision,Revenue Budgets,Childrens Services,Children in Care Disability,A0511,Care Leavers Allowances,A61150,Additional Cost,30142220,22/08/2023,202306,296.71,PETTY CASH,PETTY CASH
AD Regulated Provision,Revenue Budgets,Childrens Services,Children in Care Disability,A0511,Care Leavers Allowances,A61152,Leaving Care Grant,30142220,22/08/2023,202306,294.8,PETTY CASH,PETTY CASH
AD Regulated Provision,Revenue Budgets,Childrens Services,CS Residential Homes,A1718,Staying Close Project,A16015,Staff Training Expenses,30141978,23/08/2023,202306,"4,450.00",1006007,Crisp and Crane Consultancy Limited
AD Regulated Provision,Revenue Budgets,Childrens Services,CS Residential Homes,A1713,REDACTED PERSONAL INFORMATION,A20005,"Property Repairs, Maintenance & Alterations",30144480,23/08/2023,202306,"2,050.63",133267,Equans Services Ltd
AD Regulated Provision,Revenue Budgets,Childrens Services,Children in Care Disability,A0517,Direct Payments Scheme,A56000,Other Establishments,30146372,23/08/2023,202306,412.07,1001303,Thornbury Nursing Services
AD Regulated Provision,Revenue Budgets,Childrens Services,Children in Care Disability,A0517,Direct Payments Scheme,A56000,Other Establishments,30146383,23/08/2023,202306,412.07,1001303,Thornbury Nursing Services
AD Regulated Provision,Revenue Budgets,Childrens Services,CS Commissioning Service,A1789,Childrens Serv Supp Housing,A56000,Other Establishments,30148377,23/08/2023,202306,"1,088.24",1007689,VCare Alliance Ltd
AD Regulated Provision,Revenue Budgets,Childrens Services,CS Commissioning Service,A1789,Childrens Serv Supp Housing,A56000,Other Establishments,30140409,24/08/2023,202306,"6,754.28",REDACTED PERSONAL INFORMATION,REDACTED PERSONAL INFORMATION
AD Regulated Provision,Revenue Budgets,Childrens Services,CS Commissioning Service,A0492,Agency Fostercare,A56000,Other Establishments,30140625,25/08/2023,202306,-738.48,132099,Five Rivers Childcare Ltd
AD Regulated Provision,Revenue Budgets,Childrens Services,CS Commissioning Service,A0492,Agency Fostercare,A56000,Other Establishments,30142046,25/08/2023,202306,"4,925.90",105607,Action For Children Services Ltd
AD Regulated Provision,Revenue Budgets,Childrens Services,CS Commissioning Service,A0492,Agency Fostercare,A56000,Other Establishments,30142049,25/08/2023,202306,"6,226.66",105607,Action For Children Services Ltd
AD Regulated Provision,Revenue Budgets,Childrens Services,CS Commissioning Service,A0492,Agency Fostercare,A56000,Other Establishments,30142054,25/08/2023,202306,"6,554.33",105607,Action For Children Services Ltd
AD Regulated Provision,Revenue Budgets,Childrens Services,CS Commissioning Service,A0492,Agency Fostercare,A56000,Other Establishments,30142057,25/08/2023,202306,"5,026.34",105607,Action For Children Services Ltd
AD Regulated Provision,Revenue Budgets,Childrens Services,CS Commissioning Service,A0492,Agency Fostercare,A56000,Other Establishments,30142080,25/08/2023,202306,"5,060.44",105607,Action For Children Services Ltd
AD Regulated Provision,Revenue Budgets,Childrens Services,CS Commissioning Service,A1844,CH and Educ Comm Team,A11005,Agency Supply Staff,30147202,25/08/2023,202306,649.35,1007668,Humber Recruitment Limited
AD Regulated Provision,Revenue Budgets,Childrens Services,CS Commissioning Service,A0492,Agency Fostercare,A56000,Other Establishments,30146534,27/08/2023,202306,434.32,135118,Orange Grove Fostercare Ltd
AD Regulated Provision,Revenue Budgets,Childrens Services,CS Commissioning Service,A0492,Agency Fostercare,A56000,Other Establishments,30146538,27/08/2023,202306,446.52,135118,Orange Grove Fostercare Ltd
AD Regulated Provision,Revenue Budgets,Childrens Services,CS Commissioning Service,A0492,Agency Fostercare,A56000,Other Establishments,30146554,27/08/2023,202306,558.76,135118,Orange Grove Fostercare Ltd
AD Regulated Provision,Revenue Budgets,Childrens Services,CS Commissioning Service,A0492,Agency Fostercare,A56000,Other Establishments,30146562,27/08/2023,202306,437.98,135118,Orange Grove Fostercare Ltd
AD Regulated Provision,Revenue Budgets,Childrens Services,CS Commissioning Service,A0492,Agency Fostercare,A56000,Other Establishments,30141086,28/08/2023,202306,"3,626.69",150831,Affinity Fostering
AD Regulated Provision,Revenue Budgets,Childrens Services,CS Commissioning Service,A1789,Childrens Serv Supp Housing,A56000,Other Establishments,30141081,29/08/2023,202306,"1,424.25",100310,Doorstep
AD Regulated Provision,Revenue Budgets,Childrens Services,CS Commissioning Service,A0492,Agency Fostercare,A56000,Other Establishments,30141085,29/08/2023,202306,"4,703.85",122809,Barnardos
AD Regulated Provision,Revenue Budgets,Childrens Services,CS Commissioning Service,A1789,Childrens Serv Supp Housing,A56000,Other Establishments,30141087,29/08/2023,202306,"1,432.45",100310,Doorstep
AD Regulated Provision,Revenue Budgets,Childrens Services,CS Commissioning Service,A0492,Agency Fostercare,A56000,Other Establishments,30141429,30/08/2023,202306,"3,853.61",145485,Fosterplus Ltd
AD Regulated Provision,Revenue Budgets,Childrens Services,Children in Care Disability,A0517,Direct Payments Scheme,A56000,Other Establishments,30146390,30/08/2023,202306,509.46,1001303,Thornbury Nursing Services
AD Regulated Provision,Revenue Budgets,Childrens Services,Children in Care Disability,A0517,Direct Payments Scheme,A56000,Other Establishments,30147110,30/08/2023,202306,"1,411.50",1002181,Velox Healthcare
AD Regulated Provision,Revenue Budgets,Childrens Services,CS Commissioning Service,A1789,Childrens Serv Supp Housing,A56000,Other Establishments,30147427,30/08/2023,202306,"34,000.00",REDACTED PERSONAL INFORMATION,REDACTED PERSONAL INFORMATION
AD Regulated Provision,Revenue Budgets,Childrens Services,CS Commissioning Service,A0492,Agency Fostercare,A56000,Other Establishments,30141584,31/08/2023,202306,"3,552.91",101150,Tree House Care Fostering Solutions Ltd
AD Regulated Provision,Revenue Budgets,Childrens Services,CS Commissioning Service,A0492,Agency Fostercare,A56000,Other Establishments,30141585,31/08/2023,202306,"5,111.59",101150,Tree House Care Fostering Solutions Ltd
AD Regulated Provision,Revenue Budgets,Childrens Services,CS Commissioning Service,A0492,Agency Fostercare,A56000,Other Establishments,30141587,31/08/2023,202306,"3,471.69",101150,Tree House Care Fostering Solutions Ltd
AD Regulated Provision,Revenue Budgets,Childrens Services,CS Commissioning Service,A0492,Agency Fostercare,A56000,Other Establishments,30141591,31/08/2023,202306,"6,295.48",101150,Tree House Care Fostering Solutions Ltd
AD Regulated Provision,Revenue Budgets,Childrens Services,CS Commissioning Service,A0492,Agency Fostercare,A56000,Other Establishments,30141593,31/08/2023,202306,"3,611.81",101150,Tree House Care Fostering Solutions Ltd
AD Regulated Provision,Revenue Budgets,Childrens Services,CS Commissioning Service,A0492,Agency Fostercare,A56000,Other Establishments,30141594,31/08/2023,202306,"6,119.09",101150,Tree House Care Fostering Solutions Ltd
AD Regulated Provision,Revenue Budgets,Childrens Services,CS Commissioning Service,A0492,Agency Fostercare,A56000,Other Establishments,30141598,31/08/2023,202306,"3,579.26",101150,Tree House Care Fostering Solutions Ltd
AD Regulated Provision,Revenue Budgets,Childrens Services,CS Commissioning Service,A0492,Agency Fostercare,A56000,Other Establishments,30141601,31/08/2023,202306,"3,644.98",101150,Tree House Care Fostering Solutions Ltd
AD Regulated Provision,Revenue Budgets,Childrens Services,CS Commissioning Service,A0492,Agency Fostercare,A56000,Other Establishments,30141603,31/08/2023,202306,"3,396.36",101150,Tree House Care Fostering Solutions Ltd
AD Regulated Provision,Revenue Budgets,Childrens Services,CS Commissioning Service,A0492,Agency Fostercare,A56000,Other Establishments,30141612,31/08/2023,202306,"3,042.34",101150,Tree House Care Fostering Solutions Ltd
AD Regulated Provision,Revenue Budgets,Childrens Services,CS Commissioning Service,A0492,Agency Fostercare,A56000,Other Establishments,30141614,31/08/2023,202306,"3,662.96",101150,Tree House Care Fostering Solutions Ltd
AD Regulated Provision,Revenue Budgets,Childrens Services,CS Commissioning Service,A0492,Agency Fostercare,A56000,Other Establishments,30141615,31/08/2023,202306,"3,396.36",101150,Tree House Care Fostering Solutions Ltd
AD Regulated Provision,Revenue Budgets,Childrens Services,CS Commissioning Service,A0492,Agency Fostercare,A56000,Other Establishments,30141620,31/08/2023,202306,"3,331.88",101150,Tree House Care Fostering Solutions Ltd
AD Regulated Provision,Revenue Budgets,Childrens Services,CS Commissioning Service,A0492,Agency Fostercare,A56000,Other Establishments,30141622,31/08/2023,202306,"3,331.88",101150,Tree House Care Fostering Solutions Ltd
AD Regulated Provision,Revenue Budgets,Childrens Services,CS Commissioning Service,A0492,Agency Fostercare,A56000,Other Establishments,30141623,31/08/2023,202306,"3,471.69",101150,Tree House Care Fostering Solutions Ltd
AD Regulated Provision,Revenue Budgets,Childrens Services,CS Residential Homes,A1718,Staying Close Project,A49107,Activities - Service Users,30141644,31/08/2023,202306,"1,200.00",102879,Pc Coaches Ltd
AD Regulated Provision,Revenue Budgets,Childrens Services,CS Commissioning Service,A0273,Agency Placement,A56000,Other Establishments,30141653,31/08/2023,202306,"26,305.71",REDACTED PERSONAL INFORMATION,REDACTED PERSONAL INFORMATION
AD Regulated Provision,Revenue Budgets,Childrens Services,CS Commissioning Service,A0273,Agency Placement,A56000,Other Establishments,30141835,31/08/2023,202306,"22,132.45",146328,Hexagon Care Services Ltd
AD Regulated Provision,Revenue Budgets,Childrens Services,CS Commissioning Service,A0273,Agency Placement,A56000,Other Establishments,30141837,31/08/2023,202306,"15,398.59",146328,Hexagon Care Services Ltd
AD Regulated Provision,Revenue Budgets,Childrens Services,CS Commissioning Service,A0492,Agency Fostercare,A56000,Other Establishments,30141946,31/08/2023,202306,"2,570.34",112225,The National Fostering Agency
AD Regulated Provision,Revenue Budgets,Childrens Services,CS Commissioning Service,A0492,Agency Fostercare,A56000,Other Establishments,30141948,31/08/2023,202306,"3,777.75",150830,Sunbeam Fostering Agency Ltd
AD Regulated Provision,Revenue Budgets,Childrens Services,CS Commissioning Service,A0492,Agency Fostercare,A56000,Other Establishments,30141949,31/08/2023,202306,749.68,112225,The National Fostering Agency
AD Regulated Provision,Revenue Budgets,Childrens Services,CS Commissioning Service,A0492,Agency Fostercare,A56000,Other Establishments,30142043,31/08/2023,202306,"3,253.63",112225,The National Fostering Agency
AD Regulated Provision,Revenue Budgets,Childrens Services,CS Commissioning Service,A0492,Agency Fostercare,A56000,Other Establishments,30142044,31/08/2023,202306,"2,876.61",112225,The National Fostering Agency
AD Regulated Provision,Revenue Budgets,Childrens Services,CS Commissioning Service,A0492,Agency Fostercare,A56000,Other Establishments,30142053,31/08/2023,202306,"3,877.17",112225,The National Fostering Agency
AD Regulated Provision,Revenue Budgets,Childrens Services,CS Commissioning Service,A0492,Agency Fostercare,A56000,Other Establishments,30142055,31/08/2023,202306,"3,877.17",112225,The National Fostering Agency
AD Regulated Provision,Revenue Budgets,Childrens Services,CS Commissioning Service,A0492,Agency Fostercare,A56000,Other Establishments,30142056,31/08/2023,202306,"3,877.17",112225,The National Fostering Agency
AD Regulated Provision,Revenue Budgets,Childrens Services,CS Commissioning Service,A0492,Agency Fostercare,A56000,Other Establishments,30142058,31/08/2023,202306,"4,982.01",1000346,Brighter Futures Foster Care
AD Regulated Provision,Revenue Budgets,Childrens Services,CS Commissioning Service,A0492,Agency Fostercare,A56000,Other Establishments,30142059,31/08/2023,202306,"3,877.17",112225,The National Fostering Agency
AD Regulated Provision,Revenue Budgets,Childrens Services,CS Commissioning Service,A0492,Agency Fostercare,A56000,Other Establishments,30142061,31/08/2023,202306,"3,877.17",112225,The National Fostering Agency
AD Regulated Provision,Revenue Budgets,Childrens Services,CS Commissioning Service,A0492,Agency Fostercare,A56000,Other Establishments,30142063,31/08/2023,202306,"3,602.99",112225,The National Fostering Agency
AD Regulated Provision,Revenue Budgets,Childrens Services,CS Commissioning Service,A0492,Agency Fostercare,A56000,Other Establishments,30142065,31/08/2023,202306,"3,602.99",112225,The National Fostering Agency
AD Regulated Provision,Revenue Budgets,Childrens Services,CS Commissioning Service,A0492,Agency Fostercare,A56000,Other Establishments,30142066,31/08/2023,202306,"3,521.50",112225,The National Fostering Agency
AD Regulated Provision,Revenue Budgets,Childrens Services,CS Commissioning Service,A0492,Agency Fostercare,A56000,Other Establishments,30142068,31/08/2023,202306,"3,602.82",112225,The National Fostering Agency
AD Regulated Provision,Revenue Budgets,Childrens Services,CS Commissioning Service,A0492,Agency Fostercare,A56000,Other Establishments,30142071,31/08/2023,202306,"3,692.60",112225,The National Fostering Agency
AD Regulated Provision,Revenue Budgets,Childrens Services,CS Commissioning Service,A0492,Agency Fostercare,A56000,Other Establishments,30142073,31/08/2023,202306,"3,530.82",112225,The National Fostering Agency
AD Regulated Provision,Revenue Budgets,Childrens Services,CS Commissioning Service,A0492,Agency Fostercare,A56000,Other Establishments,30142074,31/08/2023,202306,"3,451.07",112225,The National Fostering Agency
AD Regulated Provision,Revenue Budgets,Childrens Services,CS Commissioning Service,A0492,Agency Fostercare,A56000,Other Establishments,30142082,31/08/2023,202306,"3,877.17",112225,The National Fostering Agency
AD Regulated Provision,Revenue Budgets,Childrens Services,CS Commissioning Service,A0492,Agency Fostercare,A56000,Other Establishments,30142086,31/08/2023,202306,"3,768.07",112225,The National Fostering Agency
AD Regulated Provision,Revenue Budgets,Childrens Services,CS Commissioning Service,A0492,Agency Fostercare,A56000,Other Establishments,30142087,31/08/2023,202306,"3,877.17",112225,The National Fostering Agency
AD Regulated Provision,Revenue Budgets,Childrens Services,CS Commissioning Service,A0492,Agency Fostercare,A56000,Other Establishments,30142089,31/08/2023,202306,"3,877.17",112225,The National Fostering Agency
AD Regulated Provision,Revenue Budgets,Childrens Services,CS Commissioning Service,A0492,Agency Fostercare,A56000,Other Establishments,30142093,31/08/2023,202306,"3,877.17",112225,The National Fostering Agency
AD Regulated Provision,Revenue Budgets,Childrens Services,CS Commissioning Service,A0492,Agency Fostercare,A56000,Other Establishments,30142208,31/08/2023,202306,"3,877.17",112225,The National Fostering Agency
AD Regulated Provision,Revenue Budgets,Childrens Services,CS Commissioning Service,A0492,Agency Fostercare,A56000,Other Establishments,30142210,31/08/2023,202306,"3,877.17",112225,The National Fostering Agency
AD Regulated Provision,Revenue Budgets,Childrens Services,CS Commissioning Service,A0492,Agency Fostercare,A56000,Other Establishments,30142213,31/08/2023,202306,"3,974.20",149498,Compass Fostering London Ltd
AD Regulated Provision,Revenue Budgets,Childrens Services,CS Commissioning Service,A0492,Agency Fostercare,A56000,Other Establishments,30142215,31/08/2023,202306,"3,877.17",112225,The National Fostering Agency
AD Regulated Provision,Revenue Budgets,Childrens Services,CS Commissioning Service,A0492,Agency Fostercare,A56000,Other Establishments,30142218,31/08/2023,202306,"3,877.17",112225,The National Fostering Agency
AD Regulated Provision,Revenue Budgets,Childrens Services,CS Commissioning Service,A0492,Agency Fostercare,A56000,Other Establishments,30142222,31/08/2023,202306,"3,520.67",1002705,Horizon Fostering Services
AD Regulated Provision,Revenue Budgets,Childrens Services,CS Commissioning Service,A0492,Agency Fostercare,A56000,Other Establishments,30142357,31/08/2023,202306,"3,751.00",129923,The Adolescent & Childrens Trust
AD Regulated Provision,Revenue Budgets,Childrens Services,CS Commissioning Service,A0492,Agency Fostercare,A56000,Other Establishments,30142358,31/08/2023,202306,"3,751.00",129923,The Adolescent & Childrens Trust
AD Regulated Provision,Revenue Budgets,Childrens Services,CS Commissioning Service,A0492,Agency Fostercare,A56000,Other Establishments,30142385,31/08/2023,202306,"1,470.30",1005044,Team Fostering
AD Regulated Provision,Revenue Budgets,Childrens Services,CS Commissioning Service,A0492,Agency Fostercare,A56000,Other Establishments,30142390,31/08/2023,202306,"1,470.30",1005044,Team Fostering
AD Regulated Provision,Revenue Budgets,Childrens Services,CS Commissioning Service,A0492,Agency Fostercare,A56000,Other Establishments,30142629,31/08/2023,202306,"5,522.96",1007402,Ivy House Fostering Agency
AD Regulated Provision,Revenue Budgets,Childrens Services,CS Commissioning Service,A0492,Agency Fostercare,A56000,Other Establishments,30142630,31/08/2023,202306,"5,522.96",1007402,Ivy House Fostering Agency
AD Regulated Provision,Revenue Budgets,Childrens Services,CS Commissioning Service,A0492,Agency Fostercare,A56000,Other Establishments,30142891,31/08/2023,202306,"8,409.86",1003086,The Ethical Fostering Service Limited
AD Regulated Provision,Revenue Budgets,Childrens Services,CS Commissioning Service,A0273,Agency Placement,A56000,Other Establishments,30143041,31/08/2023,202306,"44,285.71",REDACTED PERSONAL INFORMATION,REDACTED PERSONAL INFORMATION
AD Regulated Provision,Revenue Budgets,Childrens Services,CS Commissioning Service,A0492,Agency Fostercare,A56000,Other Establishments,30143054,31/08/2023,202306,981.04,101150,Tree House Care Fostering Solutions Ltd
AD Regulated Provision,Revenue Budgets,Childrens Services,CS Commissioning Service,A0273,Agency Placement,A56000,Other Establishments,30143147,31/08/2023,202306,"9,138.29",REDACTED PERSONAL INFORMATION,REDACTED PERSONAL INFORMATION
AD Regulated Provision,Revenue Budgets,Childrens Services,CS Commissioning Service,A0273,Agency Placement,A56000,Other Establishments,30143189,31/08/2023,202306,"21,722.01",REDACTED PERSONAL INFORMATION,REDACTED PERSONAL INFORMATION
AD Regulated Provision,Revenue Budgets,Childrens Services,CS Commissioning Service,A0273,Agency Placement,A56000,Other Establishments,30143190,31/08/2023,202306,"21,301.34",REDACTED PERSONAL INFORMATION,REDACTED PERSONAL INFORMATION
AD Regulated Provision,Revenue Budgets,Childrens Services,CS Commissioning Service,A0492,Agency Fostercare,A56000,Other Establishments,30143590,31/08/2023,202306,-822.9,132099,Five Rivers Childcare Ltd
AD Regulated Provision,Revenue Budgets,Childrens Services,CS Commissioning Service,A0492,Agency Fostercare,A56000,Other Establishments,30143594,31/08/2023,202306,"4,067.51",132099,Five Rivers Childcare Ltd
AD Regulated Provision,Revenue Budgets,Childrens Services,CS Commissioning Service,A0492,Agency Fostercare,A56000,Other Establishments,30143598,31/08/2023,202306,"4,067.38",132099,Five Rivers Childcare Ltd
AD Regulated Provision,Revenue Budgets,Childrens Services,CS Commissioning Service,A0492,Agency Fostercare,A56000,Other Establishments,30143601,31/08/2023,202306,-853.49,132099,Five Rivers Childcare Ltd
AD Regulated Provision,Revenue Budgets,Childrens Services,CS Commissioning Service,A0492,Agency Fostercare,A56000,Other Establishments,30143604,31/08/2023,202306,"4,067.20",132099,Five Rivers Childcare Ltd
AD Regulated Provision,Revenue Budgets,Childrens Services,CS Commissioning Service,A0492,Agency Fostercare,A56000,Other Establishments,30143605,31/08/2023,202306,"3,946.30",132099,Five Rivers Childcare Ltd
AD Regulated Provision,Revenue Budgets,Childrens Services,CS Commissioning Service,A0492,Agency Fostercare,A56000,Other Establishments,30143612,31/08/2023,202306,-822.9,132099,Five Rivers Childcare Ltd
AD Regulated Provision,Revenue Budgets,Childrens Services,CS Commissioning Service,A1789,Childrens Serv Supp Housing,A56000,Other Establishments,30143994,31/08/2023,202306,"31,553.66",REDACTED PERSONAL INFORMATION,REDACTED PERSONAL INFORMATION
AD Regulated Provision,Revenue Budgets,Childrens Services,CS Commissioning Service,A0492,Agency Fostercare,A56000,Other Establishments,30144047,31/08/2023,202306,"3,782.00",145801,Young People At Heart
AD Regulated Provision,Revenue Budgets,Childrens Services,CS Commissioning Service,A0492,Agency Fostercare,A56000,Other Establishments,30144058,31/08/2023,202306,"3,689.00",145801,Young People At Heart
AD Regulated Provision,Revenue Budgets,Childrens Services,CS Commissioning Service,A0492,Agency Fostercare,A56000,Other Establishments,30144060,31/08/2023,202306,"3,689.00",145801,Young People At Heart
AD Regulated Provision,Revenue Budgets,Childrens Services,CS Commissioning Service,A0492,Agency Fostercare,A56000,Other Establishments,30144065,31/08/2023,202306,"3,782.00",145801,Young People At Heart
AD Regulated Provision,Revenue Budgets,Childrens Services,CS Commissioning Service,A0492,Agency Fostercare,A56000,Other Establishments,30144074,31/08/2023,202306,"3,782.00",145801,Young People At Heart
AD Regulated Provision,Revenue Budgets,Childrens Services,CS Commissioning Service,A0492,Agency Fostercare,A56000,Other Establishments,30144080,31/08/2023,202306,"3,689.00",145801,Young People At Heart
AD Regulated Provision,Revenue Budgets,Childrens Services,CS Commissioning Service,A0492,Agency Fostercare,A56000,Other Establishments,30144242,31/08/2023,202306,"7,589.42",132099,Five Rivers Childcare Ltd
AD Regulated Provision,Revenue Budgets,Childrens Services,CS Commissioning Service,A0492,Agency Fostercare,A56000,Other Establishments,30144291,31/08/2023,202306,"3,777.75",150830,Sunbeam Fostering Agency Ltd
AD Regulated Provision,Revenue Budgets,Childrens Services,CS Commissioning Service,A0492,Agency Fostercare,A56000,Other Establishments,30144627,31/08/2023,202306,"4,137.22",132099,Five Rivers Childcare Ltd
AD Regulated Provision,Revenue Budgets,Childrens Services,CS Commissioning Service,A0492,Agency Fostercare,A56000,Other Establishments,30145112,31/08/2023,202306,"3,472.00",1004631,Integrated Fostering Services Ltd
AD Regulated Provision,Revenue Budgets,Childrens Services,CS Commissioning Service,A0492,Agency Fostercare,A56000,Other Establishments,30145119,31/08/2023,202306,"3,631.34",1004631,Integrated Fostering Services Ltd
AD Regulated Provision,Revenue Budgets,Childrens Services,CS Commissioning Service,A0492,Agency Fostercare,A56000,Other Establishments,30145132,31/08/2023,202306,"5,314.33",1004631,Integrated Fostering Services Ltd
AD Regulated Provision,Revenue Budgets,Childrens Services,CS Commissioning Service,A0273,Agency Placement,A56000,Other Establishments,30145761,31/08/2023,202306,"30,594.58",1002458,Witherslack Group Limited
AD Regulated Provision,Revenue Budgets,Childrens Services,CS Commissioning Service,A1789,Childrens Serv Supp Housing,A56000,Other Establishments,30145866,31/08/2023,202306,"1,833.33",REDACTED PERSONAL INFORMATION,REDACTED PERSONAL INFORMATION
AD Regulated Provision,Revenue Budgets,Childrens Services,CS Commissioning Service,A1789,Childrens Serv Supp Housing,A56000,Other Establishments,30145869,31/08/2023,202306,"2,471.01",REDACTED PERSONAL INFORMATION,REDACTED PERSONAL INFORMATION
AD Regulated Provision,Revenue Budgets,Childrens Services,CS Commissioning Service,A1789,Childrens Serv Supp Housing,A56000,Other Establishments,30145872,31/08/2023,202306,"1,036.23",REDACTED PERSONAL INFORMATION,REDACTED PERSONAL INFORMATION
AD Regulated Provision,Revenue Budgets,Childrens Services,CS Commissioning Service,A1789,Childrens Serv Supp Housing,A56000,Other Establishments,30145874,31/08/2023,202306,"2,471.01",REDACTED PERSONAL INFORMATION,REDACTED PERSONAL INFORMATION
AD Regulated Provision,Revenue Budgets,Childrens Services,CS Commissioning Service,A1789,Childrens Serv Supp Housing,A56000,Other Establishments,30146699,31/08/2023,202306,"1,495.00",REDACTED PERSONAL INFORMATION,REDACTED PERSONAL INFORMATION
AD Regulated Provision,Revenue Budgets,Childrens Services,CS Commissioning Service,A1789,Childrens Serv Supp Housing,A56000,Other Establishments,30146712,31/08/2023,202306,"1,922.14",REDACTED PERSONAL INFORMATION,REDACTED PERSONAL INFORMATION
AD Regulated Provision,Revenue Budgets,Childrens Services,Fostering and Adoption,A1603,Adoption Support Fund,A49105,Other Supplies & Services,30146905,31/08/2023,202306,630,1001758,Oakdale Therapies Ltd
AD Regulated Provision,Revenue Budgets,Childrens Services,CS Commissioning Service,A1844,CH and Educ Comm Team,A11005,Agency Supply Staff,30147204,31/08/2023,202306,649.35,1007668,Humber Recruitment Limited
AD Regulated Provision,Revenue Budgets,Childrens Services,Children in Care Disability,A0511,Care Leavers Allowances,A61165,Housing Benefit,42250284,31/08/2023,202306,257,REDACTED PERSONAL INFORMATION,REDACTED PERSONAL INFORMATION
AD Regulated Provision,Revenue Budgets,Childrens Services,Children in Care Disability,A0511,Care Leavers Allowances,A61165,Housing Benefit,42250286,31/08/2023,202306,257,REDACTED PERSONAL INFORMATION,REDACTED PERSONAL INFORMATION
AD Regulated Provision,Revenue Budgets,Childrens Services,Children in Care Disability,A0511,Care Leavers Allowances,A61165,Housing Benefit,42250287,31/08/2023,202306,360,REDACTED PERSONAL INFORMATION,REDACTED PERSONAL INFORMATION
AD Regulated Provision,Revenue Budgets,Childrens Services,Children in Care Disability,A0511,Care Leavers Allowances,A61165,Housing Benefit,42250292,31/08/2023,202306,257,REDACTED PERSONAL INFORMATION,REDACTED PERSONAL INFORMATION
AD Regulated Provision,Revenue Budgets,Childrens Services,Children in Care Disability,A0511,Care Leavers Allowances,A61165,Housing Benefit,42250293,31/08/2023,202306,257,REDACTED PERSONAL INFORMATION,REDACTED PERSONAL INFORMATION
AD Regulated Provision,Revenue Budgets,Childrens Services,Children in Care Disability,A0511,Care Leavers Allowances,A61165,Housing Benefit,42250298,31/08/2023,202306,257,REDACTED PERSONAL INFORMATION,REDACTED PERSONAL INFORMATION
AD Regulated Provision,Revenue Budgets,Childrens Services,Children in Care Disability,A0511,Care Leavers Allowances,A61165,Housing Benefit,42250299,31/08/2023,202306,257,REDACTED PERSONAL INFORMATION,REDACTED PERSONAL INFORMATION
AD Regulated Provision,Revenue Budgets,Childrens Services,Children in Care Disability,A0511,Care Leavers Allowances,A61165,Housing Benefit,42250302,31/08/2023,202306,257,REDACTED PERSONAL INFORMATION,REDACTED PERSONAL INFORMATION
AD Regulated Provision,Revenue Budgets,Childrens Services,Children in Care Disability,A0517,Direct Payments Scheme,A56000,Other Establishments,42250368,31/08/2023,202306,384.45,REDACTED PERSONAL INFORMATION,REDACTED PERSONAL INFORMATION
AD Regulated Provision,Revenue Budgets,Childrens Services,Children in Care Disability,A0517,Direct Payments Scheme,A56000,Other Establishments,42250368,31/08/2023,202306,447.07,REDACTED PERSONAL INFORMATION,REDACTED PERSONAL INFORMATION
AD Regulated Provision,Revenue Budgets,Childrens Services,Children in Care Disability,A0517,Direct Payments Scheme,A56000,Other Establishments,42250376,31/08/2023,202306,398.19,REDACTED PERSONAL INFORMATION,REDACTED PERSONAL INFORMATION
AD Regulated Provision,Revenue Budgets,Childrens Services,Children in Care Disability,A0517,Direct Payments Scheme,A56000,Other Establishments,42250377,31/08/2023,202306,305.31,REDACTED PERSONAL INFORMATION,REDACTED PERSONAL INFORMATION
AD Regulated Provision,Revenue Budgets,Childrens Services,Fostering and Adoption,A0484,Mainstream Carer Payments,A61166,Contract Plus,42250400,31/08/2023,202306,315,REDACTED PERSONAL INFORMATION,REDACTED PERSONAL INFORMATION
AD Regulated Provision,Revenue Budgets,Childrens Services,Fostering and Adoption,A0489,Adoption Support,A61120,Adoptions Allowances,42250404,31/08/2023,202306,370.74,REDACTED PERSONAL INFORMATION,REDACTED PERSONAL INFORMATION
AD Regulated Provision,Revenue Budgets,Childrens Services,Fostering and Adoption,A0489,Adoption Support,A61120,Adoptions Allowances,42250404,31/08/2023,202306,370.74,REDACTED PERSONAL INFORMATION,REDACTED PERSONAL INFORMATION
AD Regulated Provision,Revenue Budgets,Childrens Services,Fostering and Adoption,A0484,Mainstream Carer Payments,A61166,Contract Plus,42250406,31/08/2023,202306,315,REDACTED PERSONAL INFORMATION,REDACTED PERSONAL INFORMATION
AD Regulated Provision,Revenue Budgets,Childrens Services,Fostering and Adoption,A0484,Mainstream Carer Payments,A61166,Contract Plus,42250466,31/08/2023,202306,315,REDACTED PERSONAL INFORMATION,REDACTED PERSONAL INFORMATION
AD Regulated Provision,Revenue Budgets,Childrens Services,Fostering and Adoption,A0486,Residence  Or Special G'Ship,A61015,Fostering and Guardianship Allowances,42250546,31/08/2023,202306,364.08,REDACTED PERSONAL INFORMATION,REDACTED PERSONAL INFORMATION
AD Regulated Provision,Revenue Budgets,Childrens Services,Fostering and Adoption,A0486,Residence  Or Special G'Ship,A61015,Fostering and Guardianship Allowances,42250546,31/08/2023,202306,364.08,REDACTED PERSONAL INFORMATION,REDACTED PERSONAL INFORMATION
AD Regulated Provision,Revenue Budgets,Childrens Services,Fostering and Adoption,A0484,Mainstream Carer Payments,A61166,Contract Plus,42250551,31/08/2023,202306,315,REDACTED PERSONAL INFORMATION,REDACTED PERSONAL INFORMATION
AD Regulated Provision,Revenue Budgets,Childrens Services,Fostering and Adoption,A0484,Mainstream Carer Payments,A61166,Contract Plus,42250570,31/08/2023,202306,315,REDACTED PERSONAL INFORMATION,REDACTED PERSONAL INFORMATION
AD Regulated Provision,Revenue Budgets,Childrens Services,Fostering and Adoption,A0484,Mainstream Carer Payments,A61166,Contract Plus,42250571,31/08/2023,202306,315,REDACTED PERSONAL INFORMATION,REDACTED PERSONAL INFORMATION
AD Regulated Provision,Revenue Budgets,Childrens Services,Fostering and Adoption,A0484,Mainstream Carer Payments,A57205,Child Care Payments,42250572,31/08/2023,202306,711.58,REDACTED PERSONAL INFORMATION,REDACTED PERSONAL INFORMATION
AD Regulated Provision,Revenue Budgets,Childrens Services,Fostering and Adoption,A0484,Mainstream Carer Payments,A61166,Contract Plus,42250573,31/08/2023,202306,315,REDACTED PERSONAL INFORMATION,REDACTED PERSONAL INFORMATION
AD Regulated Provision,Revenue Budgets,Childrens Services,Fostering and Adoption,A0484,Mainstream Carer Payments,A61166,Contract Plus,42250574,31/08/2023,202306,315,REDACTED PERSONAL INFORMATION,REDACTED PERSONAL INFORMATION
AD Regulated Provision,Revenue Budgets,Childrens Services,Fostering and Adoption,A0484,Mainstream Carer Payments,A61166,Contract Plus,42250575,31/08/2023,202306,315,REDACTED PERSONAL INFORMATION,REDACTED PERSONAL INFORMATION
AD Regulated Provision,Revenue Budgets,Childrens Services,Fostering and Adoption,A0484,Mainstream Carer Payments,A61159,Special Carer Payments,42250597,31/08/2023,202306,711.58,REDACTED PERSONAL INFORMATION,REDACTED PERSONAL INFORMATION
AD Regulated Provision,Revenue Budgets,Childrens Services,Fostering and Adoption,A0484,Mainstream Carer Payments,A61166,Contract Plus,42250607,31/08/2023,202306,315,REDACTED PERSONAL INFORMATION,REDACTED PERSONAL INFORMATION
AD Regulated Provision,Revenue Budgets,Childrens Services,Fostering and Adoption,A0484,Mainstream Carer Payments,A61166,Contract Plus,42250610,31/08/2023,202306,315,REDACTED PERSONAL INFORMATION,REDACTED PERSONAL INFORMATION
AD Regulated Provision,Revenue Budgets,Childrens Services,Fostering and Adoption,A0484,Mainstream Carer Payments,A61166,Contract Plus,42250614,31/08/2023,202306,315,REDACTED PERSONAL INFORMATION,REDACTED PERSONAL INFORMATION
AD Regulated Provision,Revenue Budgets,Childrens Services,Fostering and Adoption,A0489,Adoption Support,A61120,Adoptions Allowances,42250617,31/08/2023,202306,559.44,REDACTED PERSONAL INFORMATION,REDACTED PERSONAL INFORMATION
AD Regulated Provision,Revenue Budgets,Childrens Services,Fostering and Adoption,A0484,Mainstream Carer Payments,A61166,Contract Plus,42250623,31/08/2023,202306,315,REDACTED PERSONAL INFORMATION,REDACTED PERSONAL INFORMATION
AD Regulated Provision,Revenue Budgets,Childrens Services,Fostering and Adoption,A0484,Mainstream Carer Payments,A61166,Contract Plus,42250624,31/08/2023,202306,315,REDACTED PERSONAL INFORMATION,REDACTED PERSONAL INFORMATION
AD Regulated Provision,Revenue Budgets,Childrens Services,Fostering and Adoption,A0486,Residence  Or Special G'Ship,A61015,Fostering and Guardianship Allowances,42250628,31/08/2023,202306,357,REDACTED PERSONAL INFORMATION,REDACTED PERSONAL INFORMATION
AD Regulated Provision,Revenue Budgets,Childrens Services,Fostering and Adoption,A0486,Residence  Or Special G'Ship,A61015,Fostering and Guardianship Allowances,42250628,31/08/2023,202306,365.1,REDACTED PERSONAL INFORMATION,REDACTED PERSONAL INFORMATION
AD Regulated Provision,Revenue Budgets,Childrens Services,Fostering and Adoption,A0486,Residence  Or Special G'Ship,A61015,Fostering and Guardianship Allowances,42250650,31/08/2023,202306,420,REDACTED PERSONAL INFORMATION,REDACTED PERSONAL INFORMATION
AD Regulated Provision,Revenue Budgets,Childrens Services,Fostering and Adoption,A0486,Residence  Or Special G'Ship,A61015,Fostering and Guardianship Allowances,42250650,31/08/2023,202306,428.1,REDACTED PERSONAL INFORMATION,REDACTED PERSONAL INFORMATION
AD Regulated Provision,Revenue Budgets,Childrens Services,Fostering and Adoption,A0489,Adoption Support,A61120,Adoptions Allowances,42250653,31/08/2023,202306,886.58,REDACTED PERSONAL INFORMATION,REDACTED PERSONAL INFORMATION
AD Regulated Provision,Revenue Budgets,Childrens Services,Fostering and Adoption,A0484,Mainstream Carer Payments,A61166,Contract Plus,42250696,31/08/2023,202306,315,REDACTED PERSONAL INFORMATION,REDACTED PERSONAL INFORMATION
AD Regulated Provision,Revenue Budgets,Childrens Services,Fostering and Adoption,A0484,Mainstream Carer Payments,A57205,Child Care Payments,42250725,31/08/2023,202306,318,REDACTED PERSONAL INFORMATION,REDACTED PERSONAL INFORMATION
AD Regulated Provision,Revenue Budgets,Childrens Services,Fostering and Adoption,A0484,Mainstream Carer Payments,A61166,Contract Plus,42250766,31/08/2023,202306,315,REDACTED PERSONAL INFORMATION,REDACTED PERSONAL INFORMATION
AD Regulated Provision,Revenue Budgets,Childrens Services,Fostering and Adoption,A0486,Residence  Or Special G'Ship,A61015,Fostering and Guardianship Allowances,42250774,31/08/2023,202306,357,REDACTED PERSONAL INFORMATION,REDACTED PERSONAL INFORMATION
AD Regulated Provision,Revenue Budgets,Childrens Services,Fostering and Adoption,A0486,Residence  Or Special G'Ship,A61015,Fostering and Guardianship Allowances,42250774,31/08/2023,202306,357,REDACTED PERSONAL INFORMATION,REDACTED PERSONAL INFORMATION
AD Regulated Provision,Revenue Budgets,Childrens Services,Fostering and Adoption,A0486,Residence  Or Special G'Ship,A61015,Fostering and Guardianship Allowances,42250785,31/08/2023,202306,466,REDACTED PERSONAL INFORMATION,REDACTED PERSONAL INFORMATION
AD Regulated Provision,Revenue Budgets,Childrens Services,Fostering and Adoption,A0486,Residence  Or Special G'Ship,A61015,Fostering and Guardianship Allowances,42250786,31/08/2023,202306,357,REDACTED PERSONAL INFORMATION,REDACTED PERSONAL INFORMATION
AD Regulated Provision,Revenue Budgets,Childrens Services,Fostering and Adoption,A0486,Residence  Or Special G'Ship,A61015,Fostering and Guardianship Allowances,42250795,31/08/2023,202306,333,REDACTED PERSONAL INFORMATION,REDACTED PERSONAL INFORMATION
AD Regulated Provision,Revenue Budgets,Childrens Services,Fostering and Adoption,A0486,Residence  Or Special G'Ship,A61015,Fostering and Guardianship Allowances,42250837,31/08/2023,202306,338.4,REDACTED PERSONAL INFORMATION,REDACTED PERSONAL INFORMATION
AD Regulated Provision,Revenue Budgets,Childrens Services,Fostering and Adoption,A0486,Residence  Or Special G'Ship,A61015,Fostering and Guardianship Allowances,42250838,31/08/2023,202306,278.1,REDACTED PERSONAL INFORMATION,REDACTED PERSONAL INFORMATION
AD Regulated Provision,Revenue Budgets,Childrens Services,CS Commissioning Service,A0492,Agency Fostercare,A56000,Other Establishments,30141801,01/09/2023,202306,"5,571.30",138712,Family Care Fostering Ltd
AD Regulated Provision,Revenue Budgets,Childrens Services,CS Commissioning Service,A0492,Agency Fostercare,A56000,Other Establishments,30141823,01/09/2023,202306,"3,273.60",143409,Family Fostercare Ltd
AD Regulated Provision,Revenue Budgets,Childrens Services,CS Commissioning Service,A0492,Agency Fostercare,A56000,Other Establishments,30141825,01/09/2023,202306,"3,875.70",1007260,Capstone Foster Care Ltd (North)
AD Regulated Provision,Revenue Budgets,Childrens Services,CS Commissioning Service,A0492,Agency Fostercare,A56000,Other Establishments,30141851,01/09/2023,202306,"3,193.02",145652,Parallel Parents
AD Regulated Provision,Revenue Budgets,Childrens Services,CS Commissioning Service,A0492,Agency Fostercare,A56000,Other Establishments,30141871,01/09/2023,202306,"5,986.72",145652,Parallel Parents
AD Regulated Provision,Revenue Budgets,Childrens Services,CS Commissioning Service,A0492,Agency Fostercare,A56000,Other Establishments,30141873,01/09/2023,202306,"3,857.64",145652,Parallel Parents
AD Regulated Provision,Revenue Budgets,Childrens Services,CS Commissioning Service,A0492,Agency Fostercare,A56000,Other Establishments,30141876,01/09/2023,202306,"3,095.28",145652,Parallel Parents
AD Regulated Provision,Revenue Budgets,Childrens Services,CS Commissioning Service,A0492,Agency Fostercare,A56000,Other Establishments,30141877,01/09/2023,202306,"3,979.47",145652,Parallel Parents
AD Regulated Provision,Revenue Budgets,Childrens Services,CS Commissioning Service,A0492,Agency Fostercare,A56000,Other Establishments,30141878,01/09/2023,202306,"4,158.26",146086,Fusion Fostering Ltd
AD Regulated Provision,Revenue Budgets,Childrens Services,Children in Care Disability,A0509,Unaccomp Childr Asylum Seekers,A56000,Other Establishments,30141880,01/09/2023,202306,"7,476.66",144120,Learning4life-Gy-Cic
AD Regulated Provision,Revenue Budgets,Childrens Services,CS Commissioning Service,A0273,Agency Placement,A56000,Other Establishments,30141943,01/09/2023,202306,"17,112.90",REDACTED PERSONAL INFORMATION,REDACTED PERSONAL INFORMATION
AD Regulated Provision,Revenue Budgets,Childrens Services,CS Commissioning Service,A0273,Agency Placement,A56000,Other Establishments,30142226,01/09/2023,202306,"22,725.00",REDACTED PERSONAL INFORMATION,REDACTED PERSONAL INFORMATION
AD Regulated Provision,Revenue Budgets,Childrens Services,CS Commissioning Service,A0273,Agency Placement,A56000,Other Establishments,30142235,01/09/2023,202306,"28,237.50",REDACTED PERSONAL INFORMATION,REDACTED PERSONAL INFORMATION
AD Regulated Provision,Revenue Budgets,Childrens Services,CS Commissioning Service,A0492,Agency Fostercare,A56000,Other Establishments,30142889,01/09/2023,202306,"4,058.21",1006055,Star Fostering Ltd
AD Regulated Provision,Revenue Budgets,Childrens Services,CS Commissioning Service,A0492,Agency Fostercare,A56000,Other Establishments,30142892,01/09/2023,202306,"3,808.35",1006055,Star Fostering Ltd
AD Regulated Provision,Revenue Budgets,Childrens Services,CS Commissioning Service,A0492,Agency Fostercare,A56000,Other Establishments,30142893,01/09/2023,202306,"3,861.67",1006055,Star Fostering Ltd
AD Regulated Provision,Revenue Budgets,Childrens Services,CS Commissioning Service,A0492,Agency Fostercare,A56000,Other Establishments,30142897,01/09/2023,202306,"3,808.35",1006055,Star Fostering Ltd
AD Regulated Provision,Revenue Budgets,Childrens Services,CS Commissioning Service,A0273,Agency Placement,A56000,Other Establishments,30143150,01/09/2023,202306,"22,842.60",REDACTED PERSONAL INFORMATION,REDACTED PERSONAL INFORMATION
AD Regulated Provision,Revenue Budgets,Childrens Services,CS Commissioning Service,A0273,Agency Placement,A56000,Other Establishments,30143155,01/09/2023,202306,"22,842.60",REDACTED PERSONAL INFORMATION,REDACTED PERSONAL INFORMATION
AD Regulated Provision,Revenue Budgets,Childrens Services,AD Regulated Provision,A1895,AD Regulated Provision,A44065,Consultancy Services,30143180,01/09/2023,202306,"14,400.00",1003779,Alexander Kemp Ltd
AD Regulated Provision,Revenue Budgets,Childrens Services,CS Commissioning Service,A0492,Agency Fostercare,A56000,Other Establishments,30143597,01/09/2023,202306,"3,562.50",128418,Nexus Fostering Ltd
AD Regulated Provision,Revenue Budgets,Childrens Services,CS Commissioning Service,A0492,Agency Fostercare,A56000,Other Establishments,30143602,01/09/2023,202306,"3,832.50",128418,Nexus Fostering Ltd
AD Regulated Provision,Revenue Budgets,Childrens Services,CS Commissioning Service,A0492,Agency Fostercare,A56000,Other Establishments,30143607,01/09/2023,202306,"6,270.00",128418,Nexus Fostering Ltd
AD Regulated Provision,Revenue Budgets,Childrens Services,CS Commissioning Service,A0492,Agency Fostercare,A56000,Other Establishments,30143985,01/09/2023,202306,"3,148.80",144562,Unity Foster Care Ltd
AD Regulated Provision,Revenue Budgets,Childrens Services,CS Commissioning Service,A0492,Agency Fostercare,A56000,Other Establishments,30143986,01/09/2023,202306,"3,150.60",144562,Unity Foster Care Ltd
AD Regulated Provision,Revenue Budgets,Childrens Services,CS Commissioning Service,A0492,Agency Fostercare,A56000,Other Establishments,30143988,01/09/2023,202306,"2,993.10",144562,Unity Foster Care Ltd
AD Regulated Provision,Revenue Budgets,Childrens Services,CS Commissioning Service,A0492,Agency Fostercare,A56000,Other Establishments,30143992,01/09/2023,202306,"3,235.50",144562,Unity Foster Care Ltd
AD Regulated Provision,Revenue Budgets,Childrens Services,CS Commissioning Service,A0492,Agency Fostercare,A56000,Other Establishments,30143993,01/09/2023,202306,"4,815.60",144562,Unity Foster Care Ltd
AD Regulated Provision,Revenue Budgets,Childrens Services,CS Commissioning Service,A0492,Agency Fostercare,A56000,Other Establishments,30144013,01/09/2023,202306,"6,420.00",128418,Nexus Fostering Ltd
AD Regulated Provision,Revenue Budgets,Childrens Services,CS Commissioning Service,A0492,Agency Fostercare,A56000,Other Establishments,30144257,01/09/2023,202306,"3,658.20",128844,Compass Fostering North Limited
AD Regulated Provision,Revenue Budgets,Childrens Services,CS Commissioning Service,A0492,Agency Fostercare,A56000,Other Establishments,30144266,01/09/2023,202306,"3,586.58",128844,Compass Fostering North Limited
AD Regulated Provision,Revenue Budgets,Childrens Services,CS Commissioning Service,A0492,Agency Fostercare,A56000,Other Establishments,30144267,01/09/2023,202306,"3,648.30",128844,Compass Fostering North Limited
AD Regulated Provision,Revenue Budgets,Childrens Services,CS Commissioning Service,A0492,Agency Fostercare,A56000,Other Establishments,30144272,01/09/2023,202306,"3,728.40",128844,Compass Fostering North Limited
AD Regulated Provision,Revenue Budgets,Childrens Services,CS Commissioning Service,A0492,Agency Fostercare,A56000,Other Establishments,30144273,01/09/2023,202306,"3,573.30",128844,Compass Fostering North Limited
AD Regulated Provision,Revenue Budgets,Childrens Services,CS Commissioning Service,A0492,Agency Fostercare,A56000,Other Establishments,30144275,01/09/2023,202306,"3,619.80",128844,Compass Fostering North Limited
AD Regulated Provision,Revenue Budgets,Childrens Services,Children in Care Disability,A0511,Care Leavers Allowances,A60010,Tuition &/or Board Fees,30144737,01/09/2023,202306,"5,000.00",1007604,Homes for Students / Brayford Estates Ltd
AD Regulated Provision,Revenue Budgets,Childrens Services,CS Commissioning Service,A0273,Agency Placement,A56000,Other Establishments,30144842,01/09/2023,202306,"8,661.86",REDACTED PERSONAL INFORMATION,REDACTED PERSONAL INFORMATION
AD Regulated Provision,Revenue Budgets,Childrens Services,CS Commissioning Service,A0492,Agency Fostercare,A56000,Other Establishments,30146541,01/09/2023,202306,"-2,568.64",1007260,Capstone Foster Care Ltd (North)
AD Regulated Provision,Revenue Budgets,Childrens Services,CS Commissioning Service,A0492,Agency Fostercare,A56000,Other Establishments,30146571,01/09/2023,202306,"-2,971.37",1007260,Capstone Foster Care Ltd (North)
AD Regulated Provision,Revenue Budgets,Childrens Services,CS Commissioning Service,A0492,Agency Fostercare,A56000,Other Establishments,30148710,01/09/2023,202306,"3,407.10",1002661,Shining Stars Fostering Agency
AD Regulated Provision,Revenue Budgets,Childrens Services,CS Commissioning Service,A0492,Agency Fostercare,A56000,Other Establishments,30148713,01/09/2023,202306,"3,857.10",1002661,Shining Stars Fostering Agency
AD Regulated Provision,Revenue Budgets,Childrens Services,CS Commissioning Service,A0492,Agency Fostercare,A56000,Other Establishments,30148715,01/09/2023,202306,"3,857.10",1002661,Shining Stars Fostering Agency
AD Regulated Provision,Revenue Budgets,Childrens Services,CS Commissioning Service,A0273,Agency Placement,A56000,Other Establishments,30148945,01/09/2023,202306,"22,500.00",REDACTED PERSONAL INFORMATION,REDACTED PERSONAL INFORMATION
AD Regulated Provision,Revenue Budgets,Childrens Services,CS Commissioning Service,A0273,Agency Placement,A56000,Other Establishments,30148952,01/09/2023,202306,"22,500.00",REDACTED PERSONAL INFORMATION,REDACTED PERSONAL INFORMATION
AD Regulated Provision,Revenue Budgets,Childrens Services,CS Commissioning Service,A0492,Agency Fostercare,A56000,Other Establishments,30143035,03/09/2023,202306,"3,346.00",146857,Swiis Foster Care Ltd
AD Regulated Provision,Revenue Budgets,Childrens Services,CS Residential Homes,A0502,PETTY CASH,A44030,Provisions,30142355,04/09/2023,202306,436.32,PETTY CASH,PETTY CASH
AD Regulated Provision,Revenue Budgets,Childrens Services,CS Commissioning Service,A0273,Agency Placement,A56000,Other Establishments,30143152,04/09/2023,202306,"7,932.54",REDACTED PERSONAL INFORMATION,REDACTED PERSONAL INFORMATION
AD Regulated Provision,Revenue Budgets,Childrens Services,Fostering and Adoption,A0490,Fostering And Adoption Team,A11005,Agency Supply Staff,30142841,05/09/2023,202306,"2,127.50",120715,Nonstop Consulting Limited
AD Regulated Provision,Revenue Budgets,Childrens Services,Children in Care Disability,A0517,Direct Payments Scheme,A56000,Other Establishments,30147109,05/09/2023,202306,"3,039.00",1002181,Velox Healthcare
AD Regulated Provision,Revenue Budgets,Childrens Services,CS Commissioning Service,A0492,Agency Fostercare,A56000,Other Establishments,30143025,06/09/2023,202306,"3,963.57",151029,Rainbow Fostering Services Ltd
AD Regulated Provision,Revenue Budgets,Childrens Services,CS Commissioning Service,A0273,Agency Placement,A56000,Other Establishments,30143174,06/09/2023,202306,"10,075.70",REDACTED PERSONAL INFORMATION,REDACTED PERSONAL INFORMATION
AD Regulated Provision,Revenue Budgets,Childrens Services,CS Commissioning Service,A0273,Agency Placement,A56000,Other Establishments,30143181,06/09/2023,202306,"4,420.00",REDACTED PERSONAL INFORMATION,REDACTED PERSONAL INFORMATION
AD Regulated Provision,Revenue Budgets,Childrens Services,CS Residential Homes,A1718,Staying Close Project,A22005,Building Rents,30144957,06/09/2023,202306,"3,720.36",1007363,Anna Corbridge TA Lincs Domestic Services
AD Regulated Provision,Revenue Budgets,Childrens Services,Children in Care Disability,A0517,Direct Payments Scheme,A56000,Other Establishments,30146357,06/09/2023,202306,412.07,1001303,Thornbury Nursing Services
AD Regulated Provision,Revenue Budgets,Childrens Services,Children in Care Disability,A0517,Direct Payments Scheme,A56000,Other Establishments,30146386,06/09/2023,202306,412.07,1001303,Thornbury Nursing Services
AD Regulated Provision,Revenue Budgets,Childrens Services,Children in Care Disability,A0517,Direct Payments Scheme,A56000,Other Establishments,30146391,06/09/2023,202306,509.46,1001303,Thornbury Nursing Services
AD Regulated Provision,Revenue Budgets,Childrens Services,CS Commissioning Service,A1789,Childrens Serv Supp Housing,A56000,Other Establishments,30148361,06/09/2023,202306,675.56,1007689,VCare Alliance Ltd
AD Regulated Provision,Revenue Budgets,Childrens Services,CS Commissioning Service,A1789,Childrens Serv Supp Housing,A56000,Other Establishments,30148402,06/09/2023,202306,"1,285.32",1007689,VCare Alliance Ltd
AD Regulated Provision,Revenue Budgets,Childrens Services,Children in Care Disability,A0511,Care Leavers Allowances,A61152,Leaving Care Grant,30144195,07/09/2023,202306,465,1006641,Woodlandz Furnishing's Gy Ltd
AD Regulated Provision,Revenue Budgets,Childrens Services,Children in Care Disability,A0517,Direct Payments Scheme,A56000,Other Establishments,42252071,07/09/2023,202306,398.19,REDACTED PERSONAL INFORMATION,REDACTED PERSONAL INFORMATION
AD Regulated Provision,Revenue Budgets,Childrens Services,Children in Care Disability,A0517,Direct Payments Scheme,A56000,Other Establishments,42252072,07/09/2023,202306,305.31,REDACTED PERSONAL INFORMATION,REDACTED PERSONAL INFORMATION
AD Regulated Provision,Revenue Budgets,Childrens Services,Children in Care Disability,A0517,Direct Payments Scheme,A56000,Other Establishments,42252077,07/09/2023,202306,384.45,REDACTED PERSONAL INFORMATION,REDACTED PERSONAL INFORMATION
AD Regulated Provision,Revenue Budgets,Childrens Services,Children in Care Disability,A0517,Direct Payments Scheme,A56000,Other Establishments,42252077,07/09/2023,202306,447.07,REDACTED PERSONAL INFORMATION,REDACTED PERSONAL INFORMATION
AD Regulated Provision,Revenue Budgets,Childrens Services,Children in Care Disability,A0511,Care Leavers Allowances,A61165,Housing Benefit,42252104,07/09/2023,202306,257,REDACTED PERSONAL INFORMATION,REDACTED PERSONAL INFORMATION
AD Regulated Provision,Revenue Budgets,Childrens Services,Children in Care Disability,A0511,Care Leavers Allowances,A61165,Housing Benefit,42252107,07/09/2023,202306,257,REDACTED PERSONAL INFORMATION,REDACTED PERSONAL INFORMATION
AD Regulated Provision,Revenue Budgets,Childrens Services,Children in Care Disability,A0511,Care Leavers Allowances,A61165,Housing Benefit,42252109,07/09/2023,202306,257,REDACTED PERSONAL INFORMATION,REDACTED PERSONAL INFORMATION
AD Regulated Provision,Revenue Budgets,Childrens Services,Children in Care Disability,A0511,Care Leavers Allowances,A61165,Housing Benefit,42252110,07/09/2023,202306,360,REDACTED PERSONAL INFORMATION,REDACTED PERSONAL INFORMATION
AD Regulated Provision,Revenue Budgets,Childrens Services,Children in Care Disability,A0511,Care Leavers Allowances,A61165,Housing Benefit,42252116,07/09/2023,202306,257,REDACTED PERSONAL INFORMATION,REDACTED PERSONAL INFORMATION
AD Regulated Provision,Revenue Budgets,Childrens Services,Children in Care Disability,A0511,Care Leavers Allowances,A61165,Housing Benefit,42252117,07/09/2023,202306,257,REDACTED PERSONAL INFORMATION,REDACTED PERSONAL INFORMATION
AD Regulated Provision,Revenue Budgets,Childrens Services,Children in Care Disability,A0511,Care Leavers Allowances,A61165,Housing Benefit,42252120,07/09/2023,202306,257,REDACTED PERSONAL INFORMATION,REDACTED PERSONAL INFORMATION
AD Regulated Provision,Revenue Budgets,Childrens Services,Children in Care Disability,A0511,Care Leavers Allowances,A61165,Housing Benefit,42252121,07/09/2023,202306,257,REDACTED PERSONAL INFORMATION,REDACTED PERSONAL INFORMATION
AD Regulated Provision,Revenue Budgets,Childrens Services,Fostering and Adoption,A0484,Mainstream Carer Payments,A61115,Holiday Allowances,42252167,07/09/2023,202306,350,REDACTED PERSONAL INFORMATION,REDACTED PERSONAL INFORMATION
AD Regulated Provision,Revenue Budgets,Childrens Services,Fostering and Adoption,A0484,Mainstream Carer Payments,A61115,Holiday Allowances,42252167,07/09/2023,202306,350,REDACTED PERSONAL INFORMATION,REDACTED PERSONAL INFORMATION
AD Regulated Provision,Revenue Budgets,Childrens Services,Fostering and Adoption,A0484,Mainstream Carer Payments,A61115,Holiday Allowances,42252167,07/09/2023,202306,350,REDACTED PERSONAL INFORMATION,REDACTED PERSONAL INFORMATION
AD Regulated Provision,Revenue Budgets,Childrens Services,Fostering and Adoption,A0484,Mainstream Carer Payments,A61166,Contract Plus,42252181,07/09/2023,202306,315,REDACTED PERSONAL INFORMATION,REDACTED PERSONAL INFORMATION
AD Regulated Provision,Revenue Budgets,Childrens Services,Fostering and Adoption,A0489,Adoption Support,A61120,Adoptions Allowances,42252185,07/09/2023,202306,370.74,REDACTED PERSONAL INFORMATION,REDACTED PERSONAL INFORMATION
AD Regulated Provision,Revenue Budgets,Childrens Services,Fostering and Adoption,A0489,Adoption Support,A61120,Adoptions Allowances,42252185,07/09/2023,202306,370.74,REDACTED PERSONAL INFORMATION,REDACTED PERSONAL INFORMATION
AD Regulated Provision,Revenue Budgets,Childrens Services,Fostering and Adoption,A0484,Mainstream Carer Payments,A61166,Contract Plus,42252187,07/09/2023,202306,315,REDACTED PERSONAL INFORMATION,REDACTED PERSONAL INFORMATION
AD Regulated Provision,Revenue Budgets,Childrens Services,Fostering and Adoption,A0484,Mainstream Carer Payments,A61166,Contract Plus,42252249,07/09/2023,202306,315,REDACTED PERSONAL INFORMATION,REDACTED PERSONAL INFORMATION
AD Regulated Provision,Revenue Budgets,Childrens Services,Fostering and Adoption,A0489,Adoption Support,A61120,Adoptions Allowances,42252268,07/09/2023,202306,435.69,REDACTED PERSONAL INFORMATION,REDACTED PERSONAL INFORMATION
AD Regulated Provision,Revenue Budgets,Childrens Services,Fostering and Adoption,A0486,Residence  Or Special G'Ship,A61015,Fostering and Guardianship Allowances,42252329,07/09/2023,202306,364.08,REDACTED PERSONAL INFORMATION,REDACTED PERSONAL INFORMATION
AD Regulated Provision,Revenue Budgets,Childrens Services,Fostering and Adoption,A0486,Residence  Or Special G'Ship,A61015,Fostering and Guardianship Allowances,42252329,07/09/2023,202306,364.08,REDACTED PERSONAL INFORMATION,REDACTED PERSONAL INFORMATION
AD Regulated Provision,Revenue Budgets,Childrens Services,Fostering and Adoption,A0484,Mainstream Carer Payments,A61166,Contract Plus,42252333,07/09/2023,202306,315,REDACTED PERSONAL INFORMATION,REDACTED PERSONAL INFORMATION
AD Regulated Provision,Revenue Budgets,Childrens Services,Fostering and Adoption,A0484,Mainstream Carer Payments,A61166,Contract Plus,42252351,07/09/2023,202306,315,REDACTED PERSONAL INFORMATION,REDACTED PERSONAL INFORMATION
AD Regulated Provision,Revenue Budgets,Childrens Services,Fostering and Adoption,A0484,Mainstream Carer Payments,A61166,Contract Plus,42252352,07/09/2023,202306,315,REDACTED PERSONAL INFORMATION,REDACTED PERSONAL INFORMATION
AD Regulated Provision,Revenue Budgets,Childrens Services,Fostering and Adoption,A0484,Mainstream Carer Payments,A57205,Child Care Payments,42252353,07/09/2023,202306,711.58,REDACTED PERSONAL INFORMATION,REDACTED PERSONAL INFORMATION
AD Regulated Provision,Revenue Budgets,Childrens Services,Fostering and Adoption,A0484,Mainstream Carer Payments,A61166,Contract Plus,42252354,07/09/2023,202306,315,REDACTED PERSONAL INFORMATION,REDACTED PERSONAL INFORMATION
AD Regulated Provision,Revenue Budgets,Childrens Services,Fostering and Adoption,A0484,Mainstream Carer Payments,A61166,Contract Plus,42252356,07/09/2023,202306,315,REDACTED PERSONAL INFORMATION,REDACTED PERSONAL INFORMATION
AD Regulated Provision,Revenue Budgets,Childrens Services,Fostering and Adoption,A0484,Mainstream Carer Payments,A61159,Special Carer Payments,42252378,07/09/2023,202306,711.58,REDACTED PERSONAL INFORMATION,REDACTED PERSONAL INFORMATION
AD Regulated Provision,Revenue Budgets,Childrens Services,Fostering and Adoption,A0484,Mainstream Carer Payments,A61166,Contract Plus,42252388,07/09/2023,202306,315,REDACTED PERSONAL INFORMATION,REDACTED PERSONAL INFORMATION
AD Regulated Provision,Revenue Budgets,Childrens Services,Fostering and Adoption,A0484,Mainstream Carer Payments,A61166,Contract Plus,42252391,07/09/2023,202306,315,REDACTED PERSONAL INFORMATION,REDACTED PERSONAL INFORMATION
AD Regulated Provision,Revenue Budgets,Childrens Services,Fostering and Adoption,A0484,Mainstream Carer Payments,A61166,Contract Plus,42252395,07/09/2023,202306,315,REDACTED PERSONAL INFORMATION,REDACTED PERSONAL INFORMATION
AD Regulated Provision,Revenue Budgets,Childrens Services,Fostering and Adoption,A0489,Adoption Support,A61120,Adoptions Allowances,42252398,07/09/2023,202306,559.44,REDACTED PERSONAL INFORMATION,REDACTED PERSONAL INFORMATION
AD Regulated Provision,Revenue Budgets,Childrens Services,Fostering and Adoption,A0484,Mainstream Carer Payments,A61166,Contract Plus,42252404,07/09/2023,202306,315,REDACTED PERSONAL INFORMATION,REDACTED PERSONAL INFORMATION
AD Regulated Provision,Revenue Budgets,Childrens Services,Fostering and Adoption,A0484,Mainstream Carer Payments,A61166,Contract Plus,42252405,07/09/2023,202306,315,REDACTED PERSONAL INFORMATION,REDACTED PERSONAL INFORMATION
AD Regulated Provision,Revenue Budgets,Childrens Services,Fostering and Adoption,A0486,Residence  Or Special G'Ship,A61015,Fostering and Guardianship Allowances,42252409,07/09/2023,202306,357,REDACTED PERSONAL INFORMATION,REDACTED PERSONAL INFORMATION
AD Regulated Provision,Revenue Budgets,Childrens Services,Fostering and Adoption,A0486,Residence  Or Special G'Ship,A61015,Fostering and Guardianship Allowances,42252409,07/09/2023,202306,365.1,REDACTED PERSONAL INFORMATION,REDACTED PERSONAL INFORMATION
AD Regulated Provision,Revenue Budgets,Childrens Services,Fostering and Adoption,A0486,Residence  Or Special G'Ship,A61015,Fostering and Guardianship Allowances,42252431,07/09/2023,202306,420,REDACTED PERSONAL INFORMATION,REDACTED PERSONAL INFORMATION
AD Regulated Provision,Revenue Budgets,Childrens Services,Fostering and Adoption,A0486,Residence  Or Special G'Ship,A61015,Fostering and Guardianship Allowances,42252431,07/09/2023,202306,428.1,REDACTED PERSONAL INFORMATION,REDACTED PERSONAL INFORMATION
AD Regulated Provision,Revenue Budgets,Childrens Services,Fostering and Adoption,A0489,Adoption Support,A61120,Adoptions Allowances,42252434,07/09/2023,202306,886.58,REDACTED PERSONAL INFORMATION,REDACTED PERSONAL INFORMATION
AD Regulated Provision,Revenue Budgets,Childrens Services,Fostering and Adoption,A0484,Mainstream Carer Payments,A61166,Contract Plus,42252477,07/09/2023,202306,315,REDACTED PERSONAL INFORMATION,REDACTED PERSONAL INFORMATION
AD Regulated Provision,Revenue Budgets,Childrens Services,Fostering and Adoption,A0484,Mainstream Carer Payments,A57205,Child Care Payments,42252505,07/09/2023,202306,318,REDACTED PERSONAL INFORMATION,REDACTED PERSONAL INFORMATION
AD Regulated Provision,Revenue Budgets,Childrens Services,Fostering and Adoption,A0484,Mainstream Carer Payments,A61166,Contract Plus,42252544,07/09/2023,202306,315,REDACTED PERSONAL INFORMATION,REDACTED PERSONAL INFORMATION
AD Regulated Provision,Revenue Budgets,Childrens Services,Fostering and Adoption,A0486,Residence  Or Special G'Ship,A61015,Fostering and Guardianship Allowances,42252552,07/09/2023,202306,357,REDACTED PERSONAL INFORMATION,REDACTED PERSONAL INFORMATION
AD Regulated Provision,Revenue Budgets,Childrens Services,Fostering and Adoption,A0486,Residence  Or Special G'Ship,A61015,Fostering and Guardianship Allowances,42252552,07/09/2023,202306,357,REDACTED PERSONAL INFORMATION,REDACTED PERSONAL INFORMATION
AD Regulated Provision,Revenue Budgets,Childrens Services,Fostering and Adoption,A0486,Residence  Or Special G'Ship,A61015,Fostering and Guardianship Allowances,42252563,07/09/2023,202306,466,REDACTED PERSONAL INFORMATION,REDACTED PERSONAL INFORMATION
AD Regulated Provision,Revenue Budgets,Childrens Services,Fostering and Adoption,A0486,Residence  Or Special G'Ship,A61015,Fostering and Guardianship Allowances,42252564,07/09/2023,202306,357,REDACTED PERSONAL INFORMATION,REDACTED PERSONAL INFORMATION
AD Regulated Provision,Revenue Budgets,Childrens Services,Fostering and Adoption,A0486,Residence  Or Special G'Ship,A61015,Fostering and Guardianship Allowances,42252572,07/09/2023,202306,333,REDACTED PERSONAL INFORMATION,REDACTED PERSONAL INFORMATION
AD Regulated Provision,Revenue Budgets,Childrens Services,Fostering and Adoption,A0489,Adoption Support,A61150,Additional Cost,42252597,07/09/2023,202306,664.93,REDACTED PERSONAL INFORMATION,REDACTED PERSONAL INFORMATION
AD Regulated Provision,Revenue Budgets,Childrens Services,Fostering and Adoption,A0486,Residence  Or Special G'Ship,A61015,Fostering and Guardianship Allowances,42252618,07/09/2023,202306,425,REDACTED PERSONAL INFORMATION,REDACTED PERSONAL INFORMATION
AD Regulated Provision,Revenue Budgets,Childrens Services,Fostering and Adoption,A0484,Mainstream Carer Payments,A57205,Child Care Payments,42252619,07/09/2023,202306,"1,067.57",REDACTED PERSONAL INFORMATION,REDACTED PERSONAL INFORMATION
AD Regulated Provision,Revenue Budgets,Childrens Services,CS Commissioning Service,A1789,Childrens Serv Supp Housing,A56000,Other Establishments,30144846,08/09/2023,202306,-685.76,REDACTED PERSONAL INFORMATION,REDACTED PERSONAL INFORMATION
AD Regulated Provision,Revenue Budgets,Childrens Services,CS Commissioning Service,A0492,Agency Fostercare,A56000,Other Establishments,30146558,08/09/2023,202306,"7,228.67",1007260,Capstone Foster Care Ltd (North)
AD Regulated Provision,Revenue Budgets,Childrens Services,CS Commissioning Service,A0492,Agency Fostercare,A56000,Other Establishments,30146569,08/09/2023,202306,"7,228.67",1007260,Capstone Foster Care Ltd (North)
AD Regulated Provision,Revenue Budgets,Childrens Services,CS Commissioning Service,A0492,Agency Fostercare,A56000,Other Establishments,30144072,10/09/2023,202306,"5,142.90",1000540,Chrysalis Consortium Ltd
AD Regulated Provision,Revenue Budgets,Childrens Services,Head Of Corporate Parenting,A0506,Head Of Service Resources,A56000,Other Establishments,30146568,10/09/2023,202306,"2,100.00",1005418,E.B.I.S.W Ltd
AD Regulated Provision,Revenue Budgets,Childrens Services,Fostering and Adoption,A0489,Adoption Support,A49105,Other Supplies & Services,30144935,11/09/2023,202306,"78,012.00",105607,Action For Children Services Ltd
AD Regulated Provision,Revenue Budgets,Childrens Services,Head Of Corporate Parenting,A0497,Shortbreak Support,A56000,Other Establishments,30147193,11/09/2023,202306,"40,000.00",1002339,NHS Humber and North Yorkshire ICB
AD Regulated Provision,Revenue Budgets,Childrens Services,Fostering and Adoption,A0490,Fostering And Adoption Team,A11005,Agency Supply Staff,30144904,12/09/2023,202306,"2,127.50",120715,Nonstop Consulting Limited
AD Regulated Provision,Revenue Budgets,Childrens Services,Children in Care Disability,A0517,Direct Payments Scheme,A56000,Other Establishments,30147112,12/09/2023,202306,"2,581.50",1002181,Velox Healthcare
AD Regulated Provision,Revenue Budgets,Childrens Services,CS Commissioning Service,A1844,CH and Educ Comm Team,A11005,Agency Supply Staff,30147195,12/09/2023,202306,517.73,1007668,Humber Recruitment Limited
AD Regulated Provision,Revenue Budgets,Childrens Services,CS Commissioning Service,A1789,Childrens Serv Supp Housing,A56000,Other Establishments,30148378,12/09/2023,202306,995.49,1007689,VCare Alliance Ltd
AD Regulated Provision,Revenue Budgets,Childrens Services,CS Commissioning Service,A1789,Childrens Serv Supp Housing,A56000,Other Establishments,30148380,12/09/2023,202306,619.38,1007689,VCare Alliance Ltd
AD Regulated Provision,Revenue Budgets,Childrens Services,CS Commissioning Service,A1789,Childrens Serv Supp Housing,A56000,Other Establishments,30148947,12/09/2023,202306,484.72,1007689,VCare Alliance Ltd
AD Regulated Provision,Revenue Budgets,Childrens Services,CS Commissioning Service,A0492,Agency Fostercare,A56000,Other Establishments,30145077,14/09/2023,202306,"3,789.30",101455,Foster Care Associates Limited
AD Regulated Provision,Revenue Budgets,Childrens Services,CS Commissioning Service,A0492,Agency Fostercare,A56000,Other Establishments,30145081,14/09/2023,202306,"3,876.00",101455,Foster Care Associates Limited
AD Regulated Provision,Revenue Budgets,Childrens Services,CS Commissioning Service,A0492,Agency Fostercare,A56000,Other Establishments,30145083,14/09/2023,202306,"4,511.14",101455,Foster Care Associates Limited
AD Regulated Provision,Revenue Budgets,Childrens Services,CS Commissioning Service,A0492,Agency Fostercare,A56000,Other Establishments,30145089,14/09/2023,202306,"3,957.30",101455,Foster Care Associates Limited
AD Regulated Provision,Revenue Budgets,Childrens Services,CS Commissioning Service,A0492,Agency Fostercare,A56000,Other Establishments,30145093,14/09/2023,202306,"3,789.30",101455,Foster Care Associates Limited
AD Regulated Provision,Revenue Budgets,Childrens Services,CS Commissioning Service,A0492,Agency Fostercare,A56000,Other Establishments,30145095,14/09/2023,202306,"3,957.30",101455,Foster Care Associates Limited
AD Regulated Provision,Revenue Budgets,Childrens Services,CS Commissioning Service,A0492,Agency Fostercare,A56000,Other Establishments,30145100,14/09/2023,202306,"3,957.30",101455,Foster Care Associates Limited
AD Regulated Provision,Revenue Budgets,Childrens Services,CS Commissioning Service,A0492,Agency Fostercare,A56000,Other Establishments,30145101,14/09/2023,202306,"3,789.30",101455,Foster Care Associates Limited
AD Regulated Provision,Revenue Budgets,Childrens Services,CS Commissioning Service,A0492,Agency Fostercare,A56000,Other Establishments,30145102,14/09/2023,202306,"3,957.30",101455,Foster Care Associates Limited
AD Regulated Provision,Revenue Budgets,Childrens Services,CS Commissioning Service,A0492,Agency Fostercare,A56000,Other Establishments,30145103,14/09/2023,202306,"3,789.30",101455,Foster Care Associates Limited
AD Regulated Provision,Revenue Budgets,Childrens Services,CS Commissioning Service,A0492,Agency Fostercare,A56000,Other Establishments,30145106,14/09/2023,202306,"3,789.30",101455,Foster Care Associates Limited
AD Regulated Provision,Revenue Budgets,Childrens Services,CS Commissioning Service,A0492,Agency Fostercare,A56000,Other Establishments,30145107,14/09/2023,202306,"3,957.30",101455,Foster Care Associates Limited
AD Regulated Provision,Revenue Budgets,Childrens Services,CS Commissioning Service,A0492,Agency Fostercare,A56000,Other Establishments,30145108,14/09/2023,202306,"3,957.30",101455,Foster Care Associates Limited
AD Regulated Provision,Revenue Budgets,Childrens Services,CS Commissioning Service,A0492,Agency Fostercare,A56000,Other Establishments,30145118,14/09/2023,202306,"3,751.41",101455,Foster Care Associates Limited
AD Regulated Provision,Revenue Budgets,Childrens Services,CS Commissioning Service,A0492,Agency Fostercare,A56000,Other Establishments,30145122,14/09/2023,202306,"3,789.30",101455,Foster Care Associates Limited
AD Regulated Provision,Revenue Budgets,Childrens Services,CS Commissioning Service,A0492,Agency Fostercare,A56000,Other Establishments,30145123,14/09/2023,202306,"3,751.41",101455,Foster Care Associates Limited
AD Regulated Provision,Revenue Budgets,Childrens Services,CS Commissioning Service,A0492,Agency Fostercare,A56000,Other Establishments,30145124,14/09/2023,202306,"3,789.30",101455,Foster Care Associates Limited
AD Regulated Provision,Revenue Budgets,Childrens Services,CS Commissioning Service,A0492,Agency Fostercare,A56000,Other Establishments,30145131,14/09/2023,202306,"3,789.30",101455,Foster Care Associates Limited
AD Regulated Provision,Revenue Budgets,Childrens Services,CS Commissioning Service,A0492,Agency Fostercare,A56000,Other Establishments,30145141,14/09/2023,202306,"3,482.72",101455,Foster Care Associates Limited
AD Regulated Provision,Revenue Budgets,Childrens Services,CS Commissioning Service,A0492,Agency Fostercare,A56000,Other Establishments,30145142,14/09/2023,202306,"3,957.30",101455,Foster Care Associates Limited
AD Regulated Provision,Revenue Budgets,Childrens Services,CS Commissioning Service,A0492,Agency Fostercare,A56000,Other Establishments,30145359,14/09/2023,202306,516.8,101455,Foster Care Associates Limited
AD Regulated Provision,Revenue Budgets,Childrens Services,CS Commissioning Service,A0492,Agency Fostercare,A56000,Other Establishments,30145370,14/09/2023,202306,"4,066.80",101455,Foster Care Associates Limited
AD Regulated Provision,Revenue Budgets,Childrens Services,CS Commissioning Service,A0492,Agency Fostercare,A56000,Other Establishments,30145381,14/09/2023,202306,"4,699.50",101455,Foster Care Associates Limited
AD Regulated Provision,Revenue Budgets,Childrens Services,CS Commissioning Service,A0492,Agency Fostercare,A56000,Other Establishments,30145384,14/09/2023,202306,"3,641.40",101455,Foster Care Associates Limited
AD Regulated Provision,Revenue Budgets,Childrens Services,CS Commissioning Service,A0492,Agency Fostercare,A56000,Other Establishments,30145386,14/09/2023,202306,"3,524.56",101455,Foster Care Associates Limited
AD Regulated Provision,Revenue Budgets,Childrens Services,CS Commissioning Service,A0492,Agency Fostercare,A56000,Other Establishments,30145387,14/09/2023,202306,"4,066.80",101455,Foster Care Associates Limited
AD Regulated Provision,Revenue Budgets,Childrens Services,CS Commissioning Service,A0492,Agency Fostercare,A56000,Other Establishments,30145391,14/09/2023,202306,"4,066.50",101455,Foster Care Associates Limited
AD Regulated Provision,Revenue Budgets,Childrens Services,CS Commissioning Service,A0492,Agency Fostercare,A56000,Other Establishments,30145392,14/09/2023,202306,"4,066.80",101455,Foster Care Associates Limited
AD Regulated Provision,Revenue Budgets,Childrens Services,CS Residential Homes,A0501,PETTY CASH,A44030,Provisions,30145441,14/09/2023,202306,"1,552.14",PETTY CASH,PETTY CASH
AD Regulated Provision,Revenue Budgets,Childrens Services,CS Residential Homes,A0501,PETTY CASH,A49106,Holidays - Service Users,30145441,14/09/2023,202306,340.86,PETTY CASH,PETTY CASH
AD Regulated Provision,Revenue Budgets,Childrens Services,CS Residential Homes,A0501,PETTY CASH,A61145,Clothing,30145441,14/09/2023,202306,286.9,PETTY CASH,PETTY CASH
AD Regulated Provision,Revenue Budgets,Childrens Services,Children in Care Disability,A0509,PETTY CASH,A61045,Personal Allowance,30146353,14/09/2023,202306,646.6,PETTY CASH,PETTY CASH
AD Regulated Provision,Revenue Budgets,Childrens Services,Children in Care Disability,A0511,PETTY CASH,A61045,Personal Allowance,30146353,14/09/2023,202306,"1,157.05",PETTY CASH,PETTY CASH
AD Regulated Provision,Revenue Budgets,Childrens Services,Children in Care Disability,A0511,PETTY CASH,A61110,Birthday Allowances,30146353,14/09/2023,202306,320,PETTY CASH,PETTY CASH
AD Regulated Provision,Revenue Budgets,Childrens Services,CS Commissioning Service,A0492,Agency Fostercare,A56000,Other Establishments,30146452,14/09/2023,202306,"3,914.70",1004752,Active Care Solutions Limited
AD Regulated Provision,Revenue Budgets,Childrens Services,Children in Care Disability,A0511,Care Leavers Allowances,A61165,Housing Benefit,42253283,14/09/2023,202306,257,REDACTED PERSONAL INFORMATION,REDACTED PERSONAL INFORMATION
AD Regulated Provision,Revenue Budgets,Childrens Services,Children in Care Disability,A0511,Care Leavers Allowances,A61165,Housing Benefit,42253287,14/09/2023,202306,257,REDACTED PERSONAL INFORMATION,REDACTED PERSONAL INFORMATION
AD Regulated Provision,Revenue Budgets,Childrens Services,Children in Care Disability,A0511,Care Leavers Allowances,A61165,Housing Benefit,42253288,14/09/2023,202306,257,REDACTED PERSONAL INFORMATION,REDACTED PERSONAL INFORMATION
AD Regulated Provision,Revenue Budgets,Childrens Services,Children in Care Disability,A0511,Care Leavers Allowances,A61165,Housing Benefit,42253293,14/09/2023,202306,360,REDACTED PERSONAL INFORMATION,REDACTED PERSONAL INFORMATION
AD Regulated Provision,Revenue Budgets,Childrens Services,Children in Care Disability,A0511,Care Leavers Allowances,A61165,Housing Benefit,42253294,14/09/2023,202306,257,REDACTED PERSONAL INFORMATION,REDACTED PERSONAL INFORMATION
AD Regulated Provision,Revenue Budgets,Childrens Services,Children in Care Disability,A0511,Care Leavers Allowances,A61165,Housing Benefit,42253298,14/09/2023,202306,257,REDACTED PERSONAL INFORMATION,REDACTED PERSONAL INFORMATION
AD Regulated Provision,Revenue Budgets,Childrens Services,Children in Care Disability,A0511,Care Leavers Allowances,A61165,Housing Benefit,42253301,14/09/2023,202306,257,REDACTED PERSONAL INFORMATION,REDACTED PERSONAL INFORMATION
AD Regulated Provision,Revenue Budgets,Childrens Services,Children in Care Disability,A0511,Care Leavers Allowances,A61165,Housing Benefit,42253303,14/09/2023,202306,257,REDACTED PERSONAL INFORMATION,REDACTED PERSONAL INFORMATION
AD Regulated Provision,Revenue Budgets,Childrens Services,Children in Care Disability,A0511,Care Leavers Allowances,A61165,Housing Benefit,42253303,14/09/2023,202306,514,REDACTED PERSONAL INFORMATION,REDACTED PERSONAL INFORMATION
AD Regulated Provision,Revenue Budgets,Childrens Services,Children in Care Disability,A0509,Unaccomp Childr Asylum Seekers,A61165,Housing Benefit,42253313,14/09/2023,202306,292,REDACTED PERSONAL INFORMATION,REDACTED PERSONAL INFORMATION
AD Regulated Provision,Revenue Budgets,Childrens Services,Children in Care Disability,A0509,Unaccomp Childr Asylum Seekers,A61165,Housing Benefit,42253313,14/09/2023,202306,584,REDACTED PERSONAL INFORMATION,REDACTED PERSONAL INFORMATION
AD Regulated Provision,Revenue Budgets,Childrens Services,Children in Care Disability,A0511,Care Leavers Allowances,A61165,Housing Benefit,42253314,14/09/2023,202306,257,REDACTED PERSONAL INFORMATION,REDACTED PERSONAL INFORMATION
AD Regulated Provision,Revenue Budgets,Childrens Services,Children in Care Disability,A0511,Care Leavers Allowances,A61165,Housing Benefit,42253314,14/09/2023,202306,514,REDACTED PERSONAL INFORMATION,REDACTED PERSONAL INFORMATION
AD Regulated Provision,Revenue Budgets,Childrens Services,Children in Care Disability,A0517,Direct Payments Scheme,A56000,Other Establishments,42253372,14/09/2023,202306,398.19,REDACTED PERSONAL INFORMATION,REDACTED PERSONAL INFORMATION
AD Regulated Provision,Revenue Budgets,Childrens Services,Children in Care Disability,A0517,Direct Payments Scheme,A56000,Other Establishments,42253373,14/09/2023,202306,305.31,REDACTED PERSONAL INFORMATION,REDACTED PERSONAL INFORMATION
AD Regulated Provision,Revenue Budgets,Childrens Services,Children in Care Disability,A0517,Direct Payments Scheme,A56000,Other Establishments,42253380,14/09/2023,202306,384.45,REDACTED PERSONAL INFORMATION,REDACTED PERSONAL INFORMATION
AD Regulated Provision,Revenue Budgets,Childrens Services,Children in Care Disability,A0517,Direct Payments Scheme,A56000,Other Establishments,42253380,14/09/2023,202306,447.07,REDACTED PERSONAL INFORMATION,REDACTED PERSONAL INFORMATION
AD Regulated Provision,Revenue Budgets,Childrens Services,Fostering and Adoption,A0484,Mainstream Carer Payments,A61166,Contract Plus,42253398,14/09/2023,202306,315,REDACTED PERSONAL INFORMATION,REDACTED PERSONAL INFORMATION
AD Regulated Provision,Revenue Budgets,Childrens Services,Fostering and Adoption,A0489,Adoption Support,A61120,Adoptions Allowances,42253402,14/09/2023,202306,370.74,REDACTED PERSONAL INFORMATION,REDACTED PERSONAL INFORMATION
AD Regulated Provision,Revenue Budgets,Childrens Services,Fostering and Adoption,A0489,Adoption Support,A61120,Adoptions Allowances,42253402,14/09/2023,202306,370.74,REDACTED PERSONAL INFORMATION,REDACTED PERSONAL INFORMATION
AD Regulated Provision,Revenue Budgets,Childrens Services,Fostering and Adoption,A0484,Mainstream Carer Payments,A61166,Contract Plus,42253404,14/09/2023,202306,315,REDACTED PERSONAL INFORMATION,REDACTED PERSONAL INFORMATION
AD Regulated Provision,Revenue Budgets,Childrens Services,Fostering and Adoption,A0484,Mainstream Carer Payments,A61166,Contract Plus,42253467,14/09/2023,202306,315,REDACTED PERSONAL INFORMATION,REDACTED PERSONAL INFORMATION
AD Regulated Provision,Revenue Budgets,Childrens Services,Fostering and Adoption,A0486,Residence  Or Special G'Ship,A61015,Fostering and Guardianship Allowances,42253526,14/09/2023,202306,319.36,REDACTED PERSONAL INFORMATION,REDACTED PERSONAL INFORMATION
AD Regulated Provision,Revenue Budgets,Childrens Services,Fostering and Adoption,A0486,Residence  Or Special G'Ship,A61015,Fostering and Guardianship Allowances,42253547,14/09/2023,202306,364.08,REDACTED PERSONAL INFORMATION,REDACTED PERSONAL INFORMATION
AD Regulated Provision,Revenue Budgets,Childrens Services,Fostering and Adoption,A0486,Residence  Or Special G'Ship,A61015,Fostering and Guardianship Allowances,42253547,14/09/2023,202306,364.08,REDACTED PERSONAL INFORMATION,REDACTED PERSONAL INFORMATION
AD Regulated Provision,Revenue Budgets,Childrens Services,Fostering and Adoption,A0484,Mainstream Carer Payments,A61166,Contract Plus,42253551,14/09/2023,202306,315,REDACTED PERSONAL INFORMATION,REDACTED PERSONAL INFORMATION
AD Regulated Provision,Revenue Budgets,Childrens Services,Fostering and Adoption,A0484,Mainstream Carer Payments,A61166,Contract Plus,42253569,14/09/2023,202306,315,REDACTED PERSONAL INFORMATION,REDACTED PERSONAL INFORMATION
AD Regulated Provision,Revenue Budgets,Childrens Services,Fostering and Adoption,A0484,Mainstream Carer Payments,A61166,Contract Plus,42253570,14/09/2023,202306,315,REDACTED PERSONAL INFORMATION,REDACTED PERSONAL INFORMATION
AD Regulated Provision,Revenue Budgets,Childrens Services,Fostering and Adoption,A0484,Mainstream Carer Payments,A57205,Child Care Payments,42253571,14/09/2023,202306,711.58,REDACTED PERSONAL INFORMATION,REDACTED PERSONAL INFORMATION
AD Regulated Provision,Revenue Budgets,Childrens Services,Fostering and Adoption,A0484,Mainstream Carer Payments,A61166,Contract Plus,42253572,14/09/2023,202306,315,REDACTED PERSONAL INFORMATION,REDACTED PERSONAL INFORMATION
AD Regulated Provision,Revenue Budgets,Childrens Services,Fostering and Adoption,A0484,Mainstream Carer Payments,A61166,Contract Plus,42253573,14/09/2023,202306,315,REDACTED PERSONAL INFORMATION,REDACTED PERSONAL INFORMATION
AD Regulated Provision,Revenue Budgets,Childrens Services,Fostering and Adoption,A0484,Mainstream Carer Payments,A61150,Additional Cost,42253595,14/09/2023,202306,350,REDACTED PERSONAL INFORMATION,REDACTED PERSONAL INFORMATION
AD Regulated Provision,Revenue Budgets,Childrens Services,Fostering and Adoption,A0484,Mainstream Carer Payments,A61159,Special Carer Payments,42253596,14/09/2023,202306,711.58,REDACTED PERSONAL INFORMATION,REDACTED PERSONAL INFORMATION
AD Regulated Provision,Revenue Budgets,Childrens Services,Fostering and Adoption,A0484,Mainstream Carer Payments,A61166,Contract Plus,42253606,14/09/2023,202306,315,REDACTED PERSONAL INFORMATION,REDACTED PERSONAL INFORMATION
AD Regulated Provision,Revenue Budgets,Childrens Services,Fostering and Adoption,A0484,Mainstream Carer Payments,A61166,Contract Plus,42253609,14/09/2023,202306,315,REDACTED PERSONAL INFORMATION,REDACTED PERSONAL INFORMATION
AD Regulated Provision,Revenue Budgets,Childrens Services,Fostering and Adoption,A0484,Mainstream Carer Payments,A61166,Contract Plus,42253613,14/09/2023,202306,315,REDACTED PERSONAL INFORMATION,REDACTED PERSONAL INFORMATION
AD Regulated Provision,Revenue Budgets,Childrens Services,Fostering and Adoption,A0489,Adoption Support,A61120,Adoptions Allowances,42253616,14/09/2023,202306,559.44,REDACTED PERSONAL INFORMATION,REDACTED PERSONAL INFORMATION
AD Regulated Provision,Revenue Budgets,Childrens Services,Fostering and Adoption,A0484,Mainstream Carer Payments,A61166,Contract Plus,42253622,14/09/2023,202306,315,REDACTED PERSONAL INFORMATION,REDACTED PERSONAL INFORMATION
AD Regulated Provision,Revenue Budgets,Childrens Services,Fostering and Adoption,A0484,Mainstream Carer Payments,A61166,Contract Plus,42253623,14/09/2023,202306,315,REDACTED PERSONAL INFORMATION,REDACTED PERSONAL INFORMATION
AD Regulated Provision,Revenue Budgets,Childrens Services,Fostering and Adoption,A0486,Residence  Or Special G'Ship,A61015,Fostering and Guardianship Allowances,42253627,14/09/2023,202306,357,REDACTED PERSONAL INFORMATION,REDACTED PERSONAL INFORMATION
AD Regulated Provision,Revenue Budgets,Childrens Services,Fostering and Adoption,A0486,Residence  Or Special G'Ship,A61015,Fostering and Guardianship Allowances,42253627,14/09/2023,202306,365.1,REDACTED PERSONAL INFORMATION,REDACTED PERSONAL INFORMATION
AD Regulated Provision,Revenue Budgets,Childrens Services,Fostering and Adoption,A0486,Residence  Or Special G'Ship,A61015,Fostering and Guardianship Allowances,42253648,14/09/2023,202306,420,REDACTED PERSONAL INFORMATION,REDACTED PERSONAL INFORMATION
AD Regulated Provision,Revenue Budgets,Childrens Services,Fostering and Adoption,A0486,Residence  Or Special G'Ship,A61015,Fostering and Guardianship Allowances,42253648,14/09/2023,202306,428.1,REDACTED PERSONAL INFORMATION,REDACTED PERSONAL INFORMATION
AD Regulated Provision,Revenue Budgets,Childrens Services,Fostering and Adoption,A0489,Adoption Support,A61120,Adoptions Allowances,42253651,14/09/2023,202306,886.58,REDACTED PERSONAL INFORMATION,REDACTED PERSONAL INFORMATION
AD Regulated Provision,Revenue Budgets,Childrens Services,Fostering and Adoption,A0484,Mainstream Carer Payments,A61150,Additional Cost,42253655,14/09/2023,202306,414,REDACTED PERSONAL INFORMATION,REDACTED PERSONAL INFORMATION
AD Regulated Provision,Revenue Budgets,Childrens Services,Fostering and Adoption,A0484,Mainstream Carer Payments,A61166,Contract Plus,42253693,14/09/2023,202306,315,REDACTED PERSONAL INFORMATION,REDACTED PERSONAL INFORMATION
AD Regulated Provision,Revenue Budgets,Childrens Services,Fostering and Adoption,A0484,Mainstream Carer Payments,A57205,Child Care Payments,42253722,14/09/2023,202306,318,REDACTED PERSONAL INFORMATION,REDACTED PERSONAL INFORMATION
AD Regulated Provision,Revenue Budgets,Childrens Services,Fostering and Adoption,A0484,Mainstream Carer Payments,A61166,Contract Plus,42253761,14/09/2023,202306,315,REDACTED PERSONAL INFORMATION,REDACTED PERSONAL INFORMATION
AD Regulated Provision,Revenue Budgets,Childrens Services,Fostering and Adoption,A0486,Residence  Or Special G'Ship,A61015,Fostering and Guardianship Allowances,42253769,14/09/2023,202306,357,REDACTED PERSONAL INFORMATION,REDACTED PERSONAL INFORMATION
AD Regulated Provision,Revenue Budgets,Childrens Services,Fostering and Adoption,A0486,Residence  Or Special G'Ship,A61015,Fostering and Guardianship Allowances,42253769,14/09/2023,202306,357,REDACTED PERSONAL INFORMATION,REDACTED PERSONAL INFORMATION
AD Regulated Provision,Revenue Budgets,Childrens Services,Fostering and Adoption,A0486,Residence  Or Special G'Ship,A61015,Fostering and Guardianship Allowances,42253780,14/09/2023,202306,466,REDACTED PERSONAL INFORMATION,REDACTED PERSONAL INFORMATION
AD Regulated Provision,Revenue Budgets,Childrens Services,Fostering and Adoption,A0486,Residence  Or Special G'Ship,A61015,Fostering and Guardianship Allowances,42253781,14/09/2023,202306,357,REDACTED PERSONAL INFORMATION,REDACTED PERSONAL INFORMATION
AD Regulated Provision,Revenue Budgets,Childrens Services,Fostering and Adoption,A0486,Residence  Or Special G'Ship,A61015,Fostering and Guardianship Allowances,42253789,14/09/2023,202306,333,REDACTED PERSONAL INFORMATION,REDACTED PERSONAL INFORMATION
AD Regulated Provision,Revenue Budgets,Childrens Services,CS Commissioning Service,A0273,Agency Placement,A56000,Other Establishments,30146082,15/09/2023,202306,"24,724.67",100406,Kisimul School
AD Regulated Provision,Revenue Budgets,Childrens Services,CS Commissioning Service,A0273,Agency Placement,A56000,Other Establishments,30146083,15/09/2023,202306,"26,641.84",100406,Kisimul School
AD Regulated Provision,Revenue Budgets,Childrens Services,CS Commissioning Service,A0273,Agency Placement,A56000,Other Establishments,30146085,15/09/2023,202306,"26,703.47",100406,Kisimul School
AD Regulated Provision,Revenue Budgets,Childrens Services,CS Commissioning Service,A0492,Agency Fostercare,A56000,Other Establishments,30146099,15/09/2023,202306,"3,774.00",135118,Orange Grove Fostercare Ltd
AD Regulated Provision,Revenue Budgets,Childrens Services,CS Commissioning Service,A0492,Agency Fostercare,A56000,Other Establishments,30146104,15/09/2023,202306,"3,660.23",135118,Orange Grove Fostercare Ltd
AD Regulated Provision,Revenue Budgets,Childrens Services,CS Commissioning Service,A0492,Agency Fostercare,A56000,Other Establishments,30146106,15/09/2023,202306,"4,722.30",135118,Orange Grove Fostercare Ltd
AD Regulated Provision,Revenue Budgets,Childrens Services,CS Commissioning Service,A0492,Agency Fostercare,A56000,Other Establishments,30146108,15/09/2023,202306,"3,729.30",145485,Fosterplus Ltd
AD Regulated Provision,Revenue Budgets,Childrens Services,CS Commissioning Service,A0492,Agency Fostercare,A56000,Other Establishments,30146111,15/09/2023,202306,"3,983.70",145485,Fosterplus Ltd
AD Regulated Provision,Revenue Budgets,Childrens Services,CS Commissioning Service,A0492,Agency Fostercare,A56000,Other Establishments,30146114,15/09/2023,202306,"3,698.52",135118,Orange Grove Fostercare Ltd
AD Regulated Provision,Revenue Budgets,Childrens Services,CS Commissioning Service,A0492,Agency Fostercare,A56000,Other Establishments,30146116,15/09/2023,202306,"3,868.80",135118,Orange Grove Fostercare Ltd
AD Regulated Provision,Revenue Budgets,Childrens Services,Fostering and Adoption,A0490,Fostering And Adoption Team,A49105,Other Supplies & Services,30146245,18/09/2023,202306,"1,200.00",1007050,Mandy Worsley
AD Regulated Provision,Revenue Budgets,Childrens Services,CS Commissioning Service,A1844,CH and Educ Comm Team,A11005,Agency Supply Staff,30147186,19/09/2023,202306,649.35,1007668,Humber Recruitment Limited
AD Regulated Provision,Revenue Budgets,Childrens Services,CS Commissioning Service,A0492,Agency Fostercare,A56000,Other Establishments,30146899,20/09/2023,202306,"2,766.50",101455,Foster Care Associates Limited
AD Regulated Provision,Revenue Budgets,Childrens Services,CS Commissioning Service,A1789,Childrens Serv Supp Housing,A56000,Other Establishments,30148375,20/09/2023,202306,"4,590.00",1000864,Humbercare Ltd
AD Regulated Provision,Revenue Budgets,Childrens Services,CS Commissioning Service,A1789,Childrens Serv Supp Housing,A56000,Other Establishments,30148589,20/09/2023,202306,"34,000.00",REDACTED PERSONAL INFORMATION,REDACTED PERSONAL INFORMATION
AD Regulated Provision,Revenue Budgets,Childrens Services,CS Commissioning Service,A0492,Agency Fostercare,A56000,Other Establishments,30148305,21/09/2023,202306,"3,785.10",132099,Five Rivers Childcare Ltd
AD Regulated Provision,Revenue Budgets,Childrens Services,CS Commissioning Service,A0492,Agency Fostercare,A56000,Other Establishments,30149113,21/09/2023,202306,"-7,589.42",132099,Five Rivers Childcare Ltd
AD Regulated Provision,Revenue Budgets,Childrens Services,Children in Care Disability,A0517,Direct Payments Scheme,A56000,Other Establishments,42254543,21/09/2023,202306,398.19,REDACTED PERSONAL INFORMATION,REDACTED PERSONAL INFORMATION
AD Regulated Provision,Revenue Budgets,Childrens Services,Children in Care Disability,A0517,Direct Payments Scheme,A56000,Other Establishments,42254544,21/09/2023,202306,305.31,REDACTED PERSONAL INFORMATION,REDACTED PERSONAL INFORMATION
AD Regulated Provision,Revenue Budgets,Childrens Services,Children in Care Disability,A0517,Direct Payments Scheme,A56000,Other Establishments,42254551,21/09/2023,202306,384.45,REDACTED PERSONAL INFORMATION,REDACTED PERSONAL INFORMATION
AD Regulated Provision,Revenue Budgets,Childrens Services,Children in Care Disability,A0517,Direct Payments Scheme,A56000,Other Establishments,42254551,21/09/2023,202306,447.07,REDACTED PERSONAL INFORMATION,REDACTED PERSONAL INFORMATION
AD Regulated Provision,Revenue Budgets,Childrens Services,Children in Care Disability,A0511,Care Leavers Allowances,A61165,Housing Benefit,42254552,21/09/2023,202306,360,REDACTED PERSONAL INFORMATION,REDACTED PERSONAL INFORMATION
AD Regulated Provision,Revenue Budgets,Childrens Services,Children in Care Disability,A0511,Care Leavers Allowances,A61165,Housing Benefit,42254553,21/09/2023,202306,257,REDACTED PERSONAL INFORMATION,REDACTED PERSONAL INFORMATION
AD Regulated Provision,Revenue Budgets,Childrens Services,Children in Care Disability,A0511,Care Leavers Allowances,A61165,Housing Benefit,42254554,21/09/2023,202306,257,REDACTED PERSONAL INFORMATION,REDACTED PERSONAL INFORMATION
AD Regulated Provision,Revenue Budgets,Childrens Services,Children in Care Disability,A0511,Care Leavers Allowances,A61165,Housing Benefit,42254557,21/09/2023,202306,257,REDACTED PERSONAL INFORMATION,REDACTED PERSONAL INFORMATION
AD Regulated Provision,Revenue Budgets,Childrens Services,Children in Care Disability,A0511,Care Leavers Allowances,A61165,Housing Benefit,42254563,21/09/2023,202306,257,REDACTED PERSONAL INFORMATION,REDACTED PERSONAL INFORMATION
AD Regulated Provision,Revenue Budgets,Childrens Services,Children in Care Disability,A0511,Care Leavers Allowances,A61165,Housing Benefit,42254566,21/09/2023,202306,257,REDACTED PERSONAL INFORMATION,REDACTED PERSONAL INFORMATION
AD Regulated Provision,Revenue Budgets,Childrens Services,Children in Care Disability,A0511,Care Leavers Allowances,A61165,Housing Benefit,42254568,21/09/2023,202306,257,REDACTED PERSONAL INFORMATION,REDACTED PERSONAL INFORMATION
AD Regulated Provision,Revenue Budgets,Childrens Services,Children in Care Disability,A0511,Care Leavers Allowances,A61165,Housing Benefit,42254569,21/09/2023,202306,257,REDACTED PERSONAL INFORMATION,REDACTED PERSONAL INFORMATION
AD Regulated Provision,Revenue Budgets,Childrens Services,Children in Care Disability,A0511,Care Leavers Allowances,A61165,Housing Benefit,42254570,21/09/2023,202306,257,REDACTED PERSONAL INFORMATION,REDACTED PERSONAL INFORMATION
AD Regulated Provision,Revenue Budgets,Childrens Services,Children in Care Disability,A0509,Unaccomp Childr Asylum Seekers,A61165,Housing Benefit,42254572,21/09/2023,202306,292,REDACTED PERSONAL INFORMATION,REDACTED PERSONAL INFORMATION
AD Regulated Provision,Revenue Budgets,Childrens Services,Fostering and Adoption,A0484,Mainstream Carer Payments,A61166,Contract Plus,42254656,21/09/2023,202306,315,REDACTED PERSONAL INFORMATION,REDACTED PERSONAL INFORMATION
AD Regulated Provision,Revenue Budgets,Childrens Services,Fostering and Adoption,A0489,Adoption Support,A61120,Adoptions Allowances,42254660,21/09/2023,202306,370.74,REDACTED PERSONAL INFORMATION,REDACTED PERSONAL INFORMATION
AD Regulated Provision,Revenue Budgets,Childrens Services,Fostering and Adoption,A0489,Adoption Support,A61120,Adoptions Allowances,42254660,21/09/2023,202306,370.74,REDACTED PERSONAL INFORMATION,REDACTED PERSONAL INFORMATION
AD Regulated Provision,Revenue Budgets,Childrens Services,Fostering and Adoption,A0484,Mainstream Carer Payments,A61166,Contract Plus,42254662,21/09/2023,202306,315,REDACTED PERSONAL INFORMATION,REDACTED PERSONAL INFORMATION
AD Regulated Provision,Revenue Budgets,Childrens Services,Fostering and Adoption,A0484,Mainstream Carer Payments,A61166,Contract Plus,42254725,21/09/2023,202306,315,REDACTED PERSONAL INFORMATION,REDACTED PERSONAL INFORMATION
AD Regulated Provision,Revenue Budgets,Childrens Services,Fostering and Adoption,A0486,Residence  Or Special G'Ship,A61015,Fostering and Guardianship Allowances,42254805,21/09/2023,202306,364.08,REDACTED PERSONAL INFORMATION,REDACTED PERSONAL INFORMATION
AD Regulated Provision,Revenue Budgets,Childrens Services,Fostering and Adoption,A0486,Residence  Or Special G'Ship,A61015,Fostering and Guardianship Allowances,42254805,21/09/2023,202306,364.08,REDACTED PERSONAL INFORMATION,REDACTED PERSONAL INFORMATION
AD Regulated Provision,Revenue Budgets,Childrens Services,Fostering and Adoption,A0484,Mainstream Carer Payments,A61166,Contract Plus,42254809,21/09/2023,202306,315,REDACTED PERSONAL INFORMATION,REDACTED PERSONAL INFORMATION
AD Regulated Provision,Revenue Budgets,Childrens Services,Fostering and Adoption,A0484,Mainstream Carer Payments,A61166,Contract Plus,42254826,21/09/2023,202306,315,REDACTED PERSONAL INFORMATION,REDACTED PERSONAL INFORMATION
AD Regulated Provision,Revenue Budgets,Childrens Services,Fostering and Adoption,A0484,Mainstream Carer Payments,A61166,Contract Plus,42254827,21/09/2023,202306,315,REDACTED PERSONAL INFORMATION,REDACTED PERSONAL INFORMATION
AD Regulated Provision,Revenue Budgets,Childrens Services,Fostering and Adoption,A0484,Mainstream Carer Payments,A57205,Child Care Payments,42254828,21/09/2023,202306,711.58,REDACTED PERSONAL INFORMATION,REDACTED PERSONAL INFORMATION
AD Regulated Provision,Revenue Budgets,Childrens Services,Fostering and Adoption,A0484,Mainstream Carer Payments,A61166,Contract Plus,42254829,21/09/2023,202306,315,REDACTED PERSONAL INFORMATION,REDACTED PERSONAL INFORMATION
AD Regulated Provision,Revenue Budgets,Childrens Services,Fostering and Adoption,A0484,Mainstream Carer Payments,A61166,Contract Plus,42254830,21/09/2023,202306,315,REDACTED PERSONAL INFORMATION,REDACTED PERSONAL INFORMATION
AD Regulated Provision,Revenue Budgets,Childrens Services,Fostering and Adoption,A0484,Mainstream Carer Payments,A61159,Special Carer Payments,42254853,21/09/2023,202306,711.58,REDACTED PERSONAL INFORMATION,REDACTED PERSONAL INFORMATION
AD Regulated Provision,Revenue Budgets,Childrens Services,Fostering and Adoption,A0484,Mainstream Carer Payments,A61115,Holiday Allowances,42254855,21/09/2023,202306,318,REDACTED PERSONAL INFORMATION,REDACTED PERSONAL INFORMATION
AD Regulated Provision,Revenue Budgets,Childrens Services,Fostering and Adoption,A0484,Mainstream Carer Payments,A61166,Contract Plus,42254863,21/09/2023,202306,315,REDACTED PERSONAL INFORMATION,REDACTED PERSONAL INFORMATION
AD Regulated Provision,Revenue Budgets,Childrens Services,Fostering and Adoption,A0484,Mainstream Carer Payments,A61166,Contract Plus,42254866,21/09/2023,202306,315,REDACTED PERSONAL INFORMATION,REDACTED PERSONAL INFORMATION
AD Regulated Provision,Revenue Budgets,Childrens Services,Fostering and Adoption,A0484,Mainstream Carer Payments,A61166,Contract Plus,42254869,21/09/2023,202306,315,REDACTED PERSONAL INFORMATION,REDACTED PERSONAL INFORMATION
AD Regulated Provision,Revenue Budgets,Childrens Services,Fostering and Adoption,A0489,Adoption Support,A61120,Adoptions Allowances,42254872,21/09/2023,202306,559.44,REDACTED PERSONAL INFORMATION,REDACTED PERSONAL INFORMATION
AD Regulated Provision,Revenue Budgets,Childrens Services,Fostering and Adoption,A0484,Mainstream Carer Payments,A61166,Contract Plus,42254878,21/09/2023,202306,315,REDACTED PERSONAL INFORMATION,REDACTED PERSONAL INFORMATION
AD Regulated Provision,Revenue Budgets,Childrens Services,Fostering and Adoption,A0484,Mainstream Carer Payments,A61166,Contract Plus,42254879,21/09/2023,202306,315,REDACTED PERSONAL INFORMATION,REDACTED PERSONAL INFORMATION
AD Regulated Provision,Revenue Budgets,Childrens Services,Fostering and Adoption,A0486,Residence  Or Special G'Ship,A61015,Fostering and Guardianship Allowances,42254883,21/09/2023,202306,357,REDACTED PERSONAL INFORMATION,REDACTED PERSONAL INFORMATION
AD Regulated Provision,Revenue Budgets,Childrens Services,Fostering and Adoption,A0486,Residence  Or Special G'Ship,A61015,Fostering and Guardianship Allowances,42254883,21/09/2023,202306,365.1,REDACTED PERSONAL INFORMATION,REDACTED PERSONAL INFORMATION
AD Regulated Provision,Revenue Budgets,Childrens Services,Fostering and Adoption,A0489,Adoption Support,A61120,Adoptions Allowances,42254907,21/09/2023,202306,886.58,REDACTED PERSONAL INFORMATION,REDACTED PERSONAL INFORMATION
AD Regulated Provision,Revenue Budgets,Childrens Services,Fostering and Adoption,A0484,Mainstream Carer Payments,A61166,Contract Plus,42254949,21/09/2023,202306,315,REDACTED PERSONAL INFORMATION,REDACTED PERSONAL INFORMATION
AD Regulated Provision,Revenue Budgets,Childrens Services,Fostering and Adoption,A0484,Mainstream Carer Payments,A57205,Child Care Payments,42254978,21/09/2023,202306,318,REDACTED PERSONAL INFORMATION,REDACTED PERSONAL INFORMATION
AD Regulated Provision,Revenue Budgets,Childrens Services,Fostering and Adoption,A0484,Mainstream Carer Payments,A61166,Contract Plus,42255017,21/09/2023,202306,315,REDACTED PERSONAL INFORMATION,REDACTED PERSONAL INFORMATION
AD Regulated Provision,Revenue Budgets,Childrens Services,Fostering and Adoption,A0486,Residence  Or Special G'Ship,A61015,Fostering and Guardianship Allowances,42255025,21/09/2023,202306,357,REDACTED PERSONAL INFORMATION,REDACTED PERSONAL INFORMATION
AD Regulated Provision,Revenue Budgets,Childrens Services,Fostering and Adoption,A0486,Residence  Or Special G'Ship,A61015,Fostering and Guardianship Allowances,42255025,21/09/2023,202306,357,REDACTED PERSONAL INFORMATION,REDACTED PERSONAL INFORMATION
AD Regulated Provision,Revenue Budgets,Childrens Services,Fostering and Adoption,A0486,Residence  Or Special G'Ship,A61015,Fostering and Guardianship Allowances,42255037,21/09/2023,202306,466,REDACTED PERSONAL INFORMATION,REDACTED PERSONAL INFORMATION
AD Regulated Provision,Revenue Budgets,Childrens Services,Fostering and Adoption,A0486,Residence  Or Special G'Ship,A61015,Fostering and Guardianship Allowances,42255038,21/09/2023,202306,357,REDACTED PERSONAL INFORMATION,REDACTED PERSONAL INFORMATION
AD Regulated Provision,Revenue Budgets,Childrens Services,Fostering and Adoption,A0486,Residence  Or Special G'Ship,A61015,Fostering and Guardianship Allowances,42255046,21/09/2023,202306,333,REDACTED PERSONAL INFORMATION,REDACTED PERSONAL INFORMATION
AD Regulated Provision,Revenue Budgets,Childrens Services,Fostering and Adoption,A0489,Adoption Support,A61148,Setting Up,42255086,21/09/2023,202306,700,REDACTED PERSONAL INFORMATION,REDACTED PERSONAL INFORMATION
AD Regulated Provision,Revenue Budgets,Childrens Services,Fostering and Adoption,A0484,Mainstream Carer Payments,A57205,Child Care Payments,42255097,21/09/2023,202306,300,REDACTED PERSONAL INFORMATION,REDACTED PERSONAL INFORMATION
AD Regulated Provision,Revenue Budgets,Childrens Services,Fostering and Adoption,A0484,Mainstream Carer Payments,A57205,Child Care Payments,42255098,21/09/2023,202306,"1,817.14",REDACTED PERSONAL INFORMATION,REDACTED PERSONAL INFORMATION
AD Regulated Provision,Revenue Budgets,Childrens Services,CS Commissioning Service,A0492,Agency Fostercare,A56000,Other Establishments,30148593,26/09/2023,202306,"4,552.11",122809,Barnardos
AD Regulated Provision,Revenue Budgets,Childrens Services,Fostering and Adoption,A0490,Fostering And Adoption Team,A11005,Agency Supply Staff,30148699,26/09/2023,202306,"2,127.50",120715,Nonstop Consulting Limited
AD Regulated Provision,Revenue Budgets,Childrens Services,CS Commissioning Service,A1844,CH and Educ Comm Team,A11005,Agency Supply Staff,30149144,26/09/2023,202306,517.73,1007668,Humber Recruitment Limited
AD Regulated Provision,Revenue Budgets,Childrens Services,CS Commissioning Service,A0492,Agency Fostercare,A56000,Other Establishments,30149294,27/09/2023,202306,"3,509.70",150831,Affinity Fostering
AD Regulated Provision,Revenue Budgets,Childrens Services,AD Regulated Provision,A1895,AD Regulated Provision,A44065,Consultancy Services,30148954,28/09/2023,202306,"11,200.00",1003779,Alexander Kemp Ltd
AD Regulated Provision,Revenue Budgets,Childrens Services,CS Commissioning Service,A0492,Agency Fostercare,A56000,Other Establishments,30149116,28/09/2023,202306,"3,835.71",151029,Rainbow Fostering Services Ltd
AD Regulated Provision,Revenue Budgets,Childrens Services,CS Commissioning Service,A1789,Childrens Serv Supp Housing,A56000,Other Establishments,30148365,30/09/2023,202306,"6,407.14",REDACTED PERSONAL INFORMATION,REDACTED PERSONAL INFORMATION
AD Regulated Provision,Revenue Budgets,Childrens Services,CS Commissioning Service,A0492,Agency Fostercare,A56000,Other Establishments,30149633,30/09/2023,202306,"3,527.40",101150,Tree House Care Fostering Solutions Ltd
Adult Services,Revenue Budgets,Adult Services,Adult Social Care,A0172,Adult Social Care,A56000,Other Establishments,30144193,02/12/2022,202306,"1,798.50",100541,Kingston Upon Hull City Council
Adult Services,Revenue Budgets,Adult Services,Adult Social Care,A1601,Asc Support,A56000,Other Establishments,30148222,31/03/2023,202306,"8,750.00",128894,Navigo Health And Social Care Cic
Adult Services,Revenue Budgets,Adult Services,Adult Social Care,A0172,Adult Social Care,A44065,Consultancy Services,30146717,23/08/2023,202306,"16,750.00",1007430,Venn Health Ltd
Adult Services,Revenue Budgets,Adult Services,Assisted Living Centre,A0764,Assisted Living Centre,A40080,Health & Safety Equipment,30141071,25/08/2023,202306,369.6,101792,Viking Hardware Ltd
Adult Services,Revenue Budgets,Adult Services,Assisted Living Centre,A0764,Assisted Living Centre,A40080,Health & Safety Equipment,30141071,25/08/2023,202306,390,101792,Viking Hardware Ltd
Adult Services,Revenue Budgets,Adult Services,Assisted Living Centre,A0764,Assisted Living Centre,A40080,Health & Safety Equipment,30141071,25/08/2023,202306,570,101792,Viking Hardware Ltd
Adult Services,Revenue Budgets,Adult Services,Assisted Living Centre,A0764,Assisted Living Centre,A40080,Health & Safety Equipment,30141071,25/08/2023,202306,765,101792,Viking Hardware Ltd
Adult Services,Revenue Budgets,Adult Services,Assisted Living Centre,A0764,Assisted Living Centre,A40080,Health & Safety Equipment,30141071,25/08/2023,202306,855,101792,Viking Hardware Ltd
Adult Services,Revenue Budgets,Adult Services,Adult Social Care,A0172,Adult Social Care,A56000,Other Establishments,30141094,28/08/2023,202306,"2,493.00",1000177,Access UK Ltd
Adult Services,Revenue Budgets,Adult Services,Director Of Adult Services,A1593,Safeguarding Adult Board,A56000,Other Establishments,30142839,30/08/2023,202306,962.5,1005948,Darren Downs
Adult Services,Revenue Budgets,Adult Services,Assisted Living Centre,A0764,Assisted Living Centre,A40920,Purchase of Equipment,30141589,31/08/2023,202306,"3,098.00",1004009,Accora Ltd
Adult Services,Revenue Budgets,Adult Services,Assisted Living Centre,A0764,Assisted Living Centre,A40080,Health & Safety Equipment,30141868,31/08/2023,202306,970,1003791,Trulife Limited
Adult Services,Revenue Budgets,Adult Services,Assisted Living Centre,A0764,Assisted Living Centre,A40080,Health & Safety Equipment,30142359,04/09/2023,202306,511.89,102678,Direct Healthcare
Adult Services,Revenue Budgets,Adult Services,Assisted Living Centre,A0764,Assisted Living Centre,A40080,Health & Safety Equipment,30142392,04/09/2023,202306,695.4,101627,Drive Devilbiss Healthcare Ltd
Adult Services,Revenue Budgets,Adult Services,Assisted Living Centre,A0764,Assisted Living Centre,A40080,Health & Safety Equipment,30142392,04/09/2023,202306,856.8,101627,Drive Devilbiss Healthcare Ltd
Adult Services,Revenue Budgets,Adult Services,Assisted Living Centre,A0764,Assisted Living Centre,A40080,Health & Safety Equipment,30142859,05/09/2023,202306,628.7,101715,Nottingham Rehab Limited
Adult Services,Revenue Budgets,Adult Services,Assisted Living Centre,A0764,Assisted Living Centre,A40080,Health & Safety Equipment,30143017,06/09/2023,202306,722.8,101715,Nottingham Rehab Limited
Adult Services,Revenue Budgets,Adult Services,Assisted Living Centre,A0764,Assisted Living Centre,A40080,Health & Safety Equipment,30143056,07/09/2023,202306,"2,047.00",1004009,Accora Ltd
Adult Services,Revenue Budgets,Adult Services,Assisted Living Centre,A0764,Assisted Living Centre,A40080,Health & Safety Equipment,30143599,07/09/2023,202306,"1,627.89",101627,Drive Devilbiss Healthcare Ltd
Adult Services,Revenue Budgets,Adult Services,Assisted Living Centre,A0764,Assisted Living Centre,A40080,Health & Safety Equipment,30143621,07/09/2023,202306,351,100833,Jenx Ltd
Adult Services,Revenue Budgets,Adult Services,Assisted Living Centre,A0764,Assisted Living Centre,A40080,Health & Safety Equipment,30144248,11/09/2023,202306,"1,500.00",101715,Nottingham Rehab Limited
Adult Services,Revenue Budgets,Adult Services,Assisted Living Centre,A0764,Assisted Living Centre,A40080,Health & Safety Equipment,30145140,13/09/2023,202306,670,101715,Nottingham Rehab Limited
Adult Services,Revenue Budgets,Adult Services,Assisted Living Centre,A0764,Assisted Living Centre,A40920,Purchase of Equipment,30145290,14/09/2023,202306,"2,182.00",1004009,Accora Ltd
Adult Services,Revenue Budgets,Adult Services,Assisted Living Centre,A0764,Assisted Living Centre,A40080,Health & Safety Equipment,30146850,19/09/2023,202306,"5,544.00",1006987,Stand Well Care Ltd
Adult Services,Revenue Budgets,Adult Services,Assisted Living Centre,A0764,Assisted Living Centre,A40920,Purchase of Equipment,30146853,20/09/2023,202306,"2,403.00",1004009,Accora Ltd
Adult Services,Revenue Budgets,Adult Services,Assisted Living Centre,A0764,Assisted Living Centre,A40080,Health & Safety Equipment,30148483,21/09/2023,202306,"1,500.00",1006670,Apollo Healthcare Technologies Limited
Adult Services,Revenue Budgets,Adult Services,Assisted Living Centre,A0764,Assisted Living Centre,A40080,Health & Safety Equipment,30149049,22/09/2023,202306,"2,150.00",139289,Sumed International Uk Ltd
Adult Services,Revenue Budgets,Adult Services,Assisted Living Centre,A0764,Assisted Living Centre,A40080,Health & Safety Equipment,30148264,25/09/2023,202306,300,101715,Nottingham Rehab Limited
Assistant Chief Executive,Revenue Budgets,Resources,Registrars & Civic Services,A0222,Civic & Caretaking,A49105,Other Supplies & Services,30148429,14/08/2023,202306,252,108412,Abbys Wine Bar & Bistro Ltd
Assistant Chief Executive,Revenue Budgets,Resources,Emergency Planning,A1868,Household Support Fund 4,A49105,Other Supplies & Services,30142298,16/08/2023,202306,263.43,112919,Allpay Limited
Assistant Chief Executive,Revenue Budgets,Resources,Emergency Planning,A1868,Household Support Fund 4,A49105,Other Supplies & Services,30142389,16/08/2023,202306,"9,880.61",112919,Allpay Limited
Assistant Chief Executive,Revenue Budgets,Resources,Asylum & Resettlement,A1857,Ukraine Scheme,A47005,"Grants, Contributions & Donations",30145076,31/08/2023,202306,"10,000.00",144120,Learning4life-Gy-Cic
Assistant Chief Executive,Revenue Budgets,Resources,Emergency Planning,A1868,Household Support Fund 4,A47005,"Grants, Contributions & Donations",30142199,04/09/2023,202306,"1,000.00",126893,Centre4 Limited
Assistant Chief Executive,Revenue Budgets,Resources,Registrars & Civic Services,A0222,Civic & Caretaking,A44942,Promotions and Events,30144463,04/09/2023,202306,506.62,106041,Hampshire Flag Company
Assistant Chief Executive,Revenue Budgets,Resources,Registrars & Civic Services,A0222,Civic & Caretaking,A44942,Promotions and Events,30142692,05/09/2023,202306,"1,950.00",1007184,The Chester Valuation Company
Assistant Chief Executive,Revenue Budgets,Resources,Emergency Planning,A1868,Household Support Fund 4,A47005,"Grants, Contributions & Donations",30142930,06/09/2023,202306,"15,000.00",1000428,Empower � Employability Mentoring Programme CIC
Assistant Chief Executive,Revenue Budgets,Resources,Emergency Planning,A1868,Household Support Fund 4,A47005,"Grants, Contributions & Donations",30143185,07/09/2023,202306,"10,000.00",1002891,Oasis Community Hub Wintringham
Assistant Chief Executive,Revenue Budgets,Resources,Asylum & Resettlement,A1857,Ukraine Scheme,A61163,Driving Lessons,30145851,11/09/2023,202306,380,1006819,Rapidpass Driving Centre
Assistant Chief Executive,Revenue Budgets,Resources,Elections Team,A1880,Electoral Integrity Programme New Burdens Funding,A16015,Staff Training Expenses,30146497,15/09/2023,202306,495,107770,The Association Of Electoral Administrators
Assistant Chief Executive,Revenue Budgets,Resources,Registrars & Civic Services,A0222,Civic & Caretaking,A44942,Promotions and Events,30147438,15/09/2023,202306,410,121870,Grimsby Minster
Assistant Chief Executive,Revenue Budgets,Resources,Asylum & Resettlement,A1857,Ukraine Scheme,A40045,Furniture,30148372,19/09/2023,202306,277,102484,Dave'S Place
Assistant Chief Executive,Revenue Budgets,Resources,Asylum & Resettlement,A1857,Ukraine Scheme,A40045,Furniture,30148393,19/09/2023,202306,357,102484,Dave'S Place
Assistant Chief Executive,Revenue Budgets,Resources,Asylum & Resettlement,A1857,Ukraine Scheme,A40045,Furniture,30148282,22/09/2023,202306,554.99,1003560,The Bed Outlet
Assistant Chief Executive,Revenue Budgets,Resources,Emergency Planning,A1868,Household Support Fund 4,A49105,Other Supplies & Services,30149052,25/09/2023,202306,"25,000.00",1003832,Post Office Ltd - Payout
Assistant Chief Executive,Revenue Budgets,Resources,Asylum & Resettlement,A1857,Ukraine Scheme,A40045,Furniture,30148386,26/09/2023,202306,788.98,1003560,The Bed Outlet
Assistant Chief Executive,Revenue Budgets,Resources,Asylum & Resettlement,A1857,Ukraine Scheme,A56000,Other Establishments,30149079,28/09/2023,202306,350,HFU GRANT,HFU GRANT
Assistant Chief Executive,Revenue Budgets,Resources,Asylum & Resettlement,A1857,Ukraine Scheme,A56000,Other Establishments,30149079,28/09/2023,202306,350,HFU GRANT,HFU GRANT
Assistant Chief Executive,Revenue Budgets,Resources,Asylum & Resettlement,A1857,Ukraine Scheme,A56000,Other Establishments,30149079,28/09/2023,202306,350,HFU GRANT,HFU GRANT
Assistant Chief Executive,Revenue Budgets,Resources,Asylum & Resettlement,A1857,Ukraine Scheme,A56000,Other Establishments,30149079,28/09/2023,202306,500,HFU GRANT,HFU GRANT
Assistant Chief Executive,Revenue Budgets,Resources,Asylum & Resettlement,A1857,Ukraine Scheme,A56000,Other Establishments,30149079,28/09/2023,202306,500,HFU GRANT,HFU GRANT
Assistant Chief Executive,Revenue Budgets,Resources,Asylum & Resettlement,A1857,Ukraine Scheme,A56000,Other Establishments,30149079,28/09/2023,202306,500,HFU GRANT,HFU GRANT
Assistant Chief Executive,Revenue Budgets,Resources,Asylum & Resettlement,A1857,Ukraine Scheme,A56000,Other Establishments,30149079,28/09/2023,202306,500,HFU GRANT,HFU GRANT
Assistant Chief Executive,Revenue Budgets,Resources,Asylum & Resettlement,A1857,Ukraine Scheme,A56000,Other Establishments,30149079,28/09/2023,202306,500,HFU GRANT,HFU GRANT
Assistant Chief Executive,Revenue Budgets,Resources,Asylum & Resettlement,A1857,Ukraine Scheme,A56000,Other Establishments,30149079,28/09/2023,202306,500,HFU GRANT,HFU GRANT
Assistant Chief Executive,Revenue Budgets,Resources,Asylum & Resettlement,A1857,Ukraine Scheme,A56000,Other Establishments,30149079,28/09/2023,202306,500,HFU GRANT,HFU GRANT
Assistant Chief Executive,Revenue Budgets,Resources,Asylum & Resettlement,A1857,Ukraine Scheme,A56000,Other Establishments,30149079,28/09/2023,202306,500,HFU GRANT,HFU GRANT
Assistant Chief Executive,Revenue Budgets,Resources,Asylum & Resettlement,A1857,Ukraine Scheme,A56000,Other Establishments,30149079,28/09/2023,202306,500,HFU GRANT,HFU GRANT
Assistant Chief Executive,Revenue Budgets,Resources,Asylum & Resettlement,A1857,Ukraine Scheme,A56000,Other Establishments,30149079,28/09/2023,202306,500,HFU GRANT,HFU GRANT
Assistant Chief Executive,Revenue Budgets,Resources,Asylum & Resettlement,A1857,Ukraine Scheme,A56000,Other Establishments,30149079,28/09/2023,202306,500,HFU GRANT,HFU GRANT
Assistant Chief Executive,Revenue Budgets,Resources,Asylum & Resettlement,A1857,Ukraine Scheme,A56000,Other Establishments,30149079,28/09/2023,202306,500,HFU GRANT,HFU GRANT
Assistant Chief Executive,Revenue Budgets,Resources,Asylum & Resettlement,A1857,Ukraine Scheme,A56000,Other Establishments,30149079,28/09/2023,202306,500,HFU GRANT,HFU GRANT
Assistant Chief Executive,Revenue Budgets,Resources,Asylum & Resettlement,A1857,Ukraine Scheme,A56000,Other Establishments,30149079,28/09/2023,202306,500,HFU GRANT,HFU GRANT
Assistant Chief Executive,Revenue Budgets,Resources,Asylum & Resettlement,A1857,Ukraine Scheme,A56000,Other Establishments,30149079,28/09/2023,202306,500,HFU GRANT,HFU GRANT
Assistant Chief Executive,Revenue Budgets,Resources,Asylum & Resettlement,A1857,Ukraine Scheme,A56000,Other Establishments,30149079,28/09/2023,202306,500,HFU GRANT,HFU GRANT
Assistant Chief Executive,Revenue Budgets,Resources,Asylum & Resettlement,A1857,Ukraine Scheme,A56000,Other Establishments,30149079,28/09/2023,202306,500,HFU GRANT,HFU GRANT
Assistant Chief Executive,Revenue Budgets,Resources,Asylum & Resettlement,A1857,Ukraine Scheme,A56000,Other Establishments,30149079,28/09/2023,202306,500,HFU GRANT,HFU GRANT
Assistant Chief Executive,Revenue Budgets,Resources,Asylum & Resettlement,A1857,Ukraine Scheme,A56000,Other Establishments,30149079,28/09/2023,202306,500,HFU GRANT,HFU GRANT
Assistant Chief Executive,Revenue Budgets,Resources,Asylum & Resettlement,A1857,Ukraine Scheme,A56000,Other Establishments,30149079,28/09/2023,202306,500,HFU GRANT,HFU GRANT
Assistant Chief Executive,Revenue Budgets,Resources,Asylum & Resettlement,A1857,Ukraine Scheme,A56000,Other Establishments,30149079,28/09/2023,202306,500,HFU GRANT,HFU GRANT
Assistant Chief Executive,Revenue Budgets,Resources,Asylum & Resettlement,A1857,Ukraine Scheme,A56000,Other Establishments,30149079,28/09/2023,202306,500,HFU GRANT,HFU GRANT
Assistant Chief Executive,Revenue Budgets,Resources,Asylum & Resettlement,A1857,Ukraine Scheme,A56000,Other Establishments,30149079,28/09/2023,202306,500,HFU GRANT,HFU GRANT
Assistant Chief Executive,Revenue Budgets,Resources,Asylum & Resettlement,A1857,Ukraine Scheme,A56000,Other Establishments,30149079,28/09/2023,202306,500,HFU GRANT,HFU GRANT
Assistant Chief Executive,Revenue Budgets,Resources,Asylum & Resettlement,A1857,Ukraine Scheme,A56000,Other Establishments,30149079,28/09/2023,202306,500,HFU GRANT,HFU GRANT
Assistant Director People & Organisation,Revenue Budgets,Resources,Business Support,A1442,Postal Services,A45015,Postages,30148723,13/09/2022,202306,825,101082,Royal Mail Group Plc
Assistant Director People & Organisation,Revenue Budgets,Resources,Business Support,A1442,Postal Services,A43020,General Office Expenses,30141865,24/02/2023,202306,400,100822,Quadient Uk Limited
Assistant Director People & Organisation,Revenue Budgets,Resources,People and Culture,A0814,Corporate Training & Devel,A16015,Staff Training Expenses,30130825,13/07/2023,202306,650,144790,East Lincs Rural Training
Assistant Director People & Organisation,Revenue Budgets,Resources,People and Culture,A0814,Corporate Training & Devel,A16015,Staff Training Expenses,30130825,13/07/2023,202306,"1,295.00",144790,East Lincs Rural Training
Assistant Director People & Organisation,Revenue Budgets,Resources,People and Culture,A1675,Apprenticeship Levy,A45005,IT Hardware Purchase,30135725,27/07/2023,202306,842.28,101275,Trustmarque Solutions Ltd
Assistant Director People & Organisation,Revenue Budgets,Resources,People and Culture,A1675,Apprenticeship Levy,A45005,IT Hardware Purchase,30138032,09/08/2023,202306,"2,656.50",101275,Trustmarque Solutions Ltd
Assistant Director People & Organisation,Revenue Budgets,Resources,People and Culture,A0814,Corporate Training & Devel,A16015,Staff Training Expenses,30143293,17/08/2023,202306,900,1001324,City and Guilds Group
Assistant Director People & Organisation,Revenue Budgets,Resources,People and Culture,A1537,P&C - Governance & Workforce,A49080,OBC Holding Account,30142052,23/08/2023,202306,"1,033.83",1002597,AVC Wise Ltd
Assistant Director People & Organisation,Revenue Budgets,Resources,People and Culture,A0814,Corporate Training & Devel,A16015,Staff Training Expenses,30145379,24/08/2023,202306,760.24,1006934,Able Training Support Ltd
Assistant Director People & Organisation,Revenue Budgets,Resources,Business Support,A0214,Business Support Unit (Sbs),A33005,Public Transport - Non Staff,30144198,31/08/2023,202306,"1,959.27",127476,Click Travel
Assistant Director People & Organisation,Revenue Budgets,Resources,Business Support,A0214,Business Support Unit (Sbs),A33005,Public Transport - Non Staff,30144198,31/08/2023,202306,"6,685.63",127476,Click Travel
Assistant Director People & Organisation,Revenue Budgets,Resources,Business Support,A0214,Business Support Unit (Sbs),A33005,Public Transport - Non Staff,30145657,31/08/2023,202306,-564.3,127476,Click Travel
Assistant Director People & Organisation,Revenue Budgets,Resources,Business Support,A1442,Postal Services,A45015,Postages,30142175,03/09/2023,202306,"1,887.11",135925,Whistl Uk Ltd
Assistant Director People & Organisation,Revenue Budgets,Resources,People and Culture,A0790,Disclosure Check Pmts,A11005,Agency Supply Staff,30143624,03/09/2023,202306,"87,404.27",145197,Comensura Ltd
Assistant Director People & Organisation,Revenue Budgets,Resources,Business Support,A1442,Postal Services,A45015,Postages,30144259,03/09/2023,202306,"1,214.48",135925,Whistl Uk Ltd
Assistant Director People & Organisation,Revenue Budgets,Resources,People and Culture,A1536,P&C - Occup Health & Safety,A47010,Subscriptions (non staff),30142850,05/09/2023,202306,450,135506,Christine Miles
Assistant Director People & Organisation,Revenue Budgets,Resources,Business Support,A1442,Postal Services,A43020,General Office Expenses,30144199,06/09/2023,202306,257.88,100822,Quadient Uk Limited
Assistant Director People & Organisation,Revenue Budgets,Resources,Business Support,A1442,Postal Services,A43020,General Office Expenses,30144199,06/09/2023,202306,"1,032.00",100822,Quadient Uk Limited
Assistant Director People & Organisation,Revenue Budgets,Resources,People and Culture,A1536,P&C - Occup Health & Safety,A16030,Employee Benefits,30146675,08/09/2023,202306,750,134740,Pbc Medical Services Ltd
Assistant Director People & Organisation,Revenue Budgets,Resources,Business Support,A1442,Postal Services,A45015,Postages,30144249,10/09/2023,202306,368.39,135925,Whistl Uk Ltd
Assistant Director People & Organisation,Revenue Budgets,Resources,Business Support,A1442,Postal Services,A45015,Postages,30148729,12/09/2023,202306,870,101082,Royal Mail Group Plc
Assistant Director People & Organisation,Revenue Budgets,Resources,People and Culture,A0814,Corporate Training & Devel,A16015,Staff Training Expenses,30145055,14/09/2023,202306,760.24,1006934,Able Training Support Ltd
Assistant Director People & Organisation,Revenue Budgets,Resources,People and Culture,A0814,Corporate Training & Devel,A16015,Staff Training Expenses,30148130,14/09/2023,202306,400,1002318,Singleton Training Services Ltd
Assistant Director People & Organisation,Revenue Budgets,Resources,People and Culture,A0814,Corporate Training & Devel,A16015,Staff Training Expenses,30149273,14/09/2023,202306,480,1002318,Singleton Training Services Ltd
Assistant Director People & Organisation,Revenue Budgets,Resources,Business Support,A1442,Postal Services,A45015,Postages,30146156,17/09/2023,202306,"4,933.32",135925,Whistl Uk Ltd
Assistant Director People & Organisation,Revenue Budgets,Resources,Business Support,A1442,Postal Services,A45015,Postages,30146163,17/09/2023,202306,395.3,135925,Whistl Uk Ltd
Assistant Director People & Organisation,Revenue Budgets,Resources,Business Support,A1442,Postal Services,A45015,Postages,30146160,18/09/2023,202306,321.52,101082,Royal Mail Group Plc
Assistant Director People & Organisation,Revenue Budgets,Resources,People and Culture,A0790,Disclosure Check Pmts,A16025,Recruitment Expenses,30148019,18/09/2023,202306,798,148286,Ucheck
Assistant Director People & Organisation,Revenue Budgets,Resources,Business Support,A1442,Postal Services,A45015,Postages,30146738,19/09/2023,202306,395,101082,Royal Mail Group Plc
Assistant Director People & Organisation,Revenue Budgets,Resources,People and Culture,A0790,Disclosure Check Pmts,A11005,Agency Supply Staff,30148028,20/09/2023,202306,"90,443.96",145197,Comensura Ltd
Assistant Director People & Organisation,Revenue Budgets,Resources,People and Culture,A0790,Disclosure Check Pmts,A11005,Agency Supply Staff,30148030,20/09/2023,202306,"52,883.02",145197,Comensura Ltd
Assistant Director People & Organisation,Revenue Budgets,Resources,Business Support,A1442,Postal Services,A45015,Postages,30148109,24/09/2023,202306,271.16,135925,Whistl Uk Ltd
Assistant Director People & Organisation,Revenue Budgets,Resources,Business Support,A1442,Postal Services,A45015,Postages,30148125,24/09/2023,202306,"3,516.91",135925,Whistl Uk Ltd
Assistant Director People & Organisation,Revenue Budgets,Resources,People and Culture,A0790,Disclosure Check Pmts,A11005,Agency Supply Staff,30149908,24/09/2023,202306,"85,591.11",145197,Comensura Ltd
Assistant Director People & Organisation,Revenue Budgets,Resources,People and Culture,A0790,Disclosure Check Pmts,A11005,Agency Supply Staff,30149920,24/09/2023,202306,"35,407.59",145197,Comensura Ltd
Assistant Director People & Organisation,Revenue Budgets,Resources,People and Culture,A0790,Disclosure Check Pmts,A16025,Recruitment Expenses,30149921,25/09/2023,202306,798,148286,Ucheck
Assistant Director People & Organisation,Revenue Budgets,Resources,People and Culture,A0814,Corporate Training & Devel,A16015,Staff Training Expenses,30148887,27/09/2023,202306,750,1007447,Floresco Training Ltd
Deputy s151,Revenue Budgets,Resources,Accountancy,A1837,Humber Freeport,A49105,Other Supplies & Services,30142837,31/03/2023,202306,"4,800.00",1003948,Andrew Jackson Solicitors LLP
Deputy s151,Revenue Budgets,Resources,Accountancy,A1837,Humber Freeport,A49105,Other Supplies & Services,30142851,31/03/2023,202306,"5,700.00",1003948,Andrew Jackson Solicitors LLP
Deputy s151,Revenue Budgets,Resources,Accountancy,A1837,Humber Freeport,A49105,Other Supplies & Services,30142857,31/03/2023,202306,"4,320.00",1003948,Andrew Jackson Solicitors LLP
Deputy s151,Revenue Budgets,Resources,Accountancy,A1837,Humber Freeport,A49105,Other Supplies & Services,30142858,31/03/2023,202306,"1,320.00",1003948,Andrew Jackson Solicitors LLP
Deputy s151,Revenue Budgets,Resources,Accountancy,A1837,Humber Freeport,A49105,Other Supplies & Services,30142820,26/05/2023,202306,"1,208.52",1003948,Andrew Jackson Solicitors LLP
Deputy s151,Revenue Budgets,Resources,Accountancy,A1837,Humber Freeport,A49105,Other Supplies & Services,30142823,26/05/2023,202306,"1,158.84",1003948,Andrew Jackson Solicitors LLP
Deputy s151,Revenue Budgets,Resources,Accountancy,A1837,Humber Freeport,A49105,Other Supplies & Services,30142844,26/05/2023,202306,"1,278.72",1003948,Andrew Jackson Solicitors LLP
Deputy s151,Revenue Budgets,Resources,Accountancy,A1837,Humber Freeport,A49105,Other Supplies & Services,30142832,31/05/2023,202306,"1,875.00",1007223,Eurus Consulting Limited
Deputy s151,Revenue Budgets,Resources,Accountancy,A1837,Humber Freeport,A49105,Other Supplies & Services,30142815,01/06/2023,202306,769.9,1007101,Future Humber
Deputy s151,Revenue Budgets,Resources,Accountancy,A1837,Humber Freeport,A49105,Other Supplies & Services,30142854,01/06/2023,202306,"4,800.00",1007101,Future Humber
Deputy s151,Revenue Budgets,Resources,Accountancy,A1837,Humber Freeport,A49105,Other Supplies & Services,30142818,06/06/2023,202306,"4,800.00",1006453,Ernst & Young LLP
Deputy s151,Revenue Budgets,Resources,Accountancy,A1837,Humber Freeport,A49105,Other Supplies & Services,30142834,30/06/2023,202306,"3,773.52",1003948,Andrew Jackson Solicitors LLP
Deputy s151,Revenue Budgets,Resources,Accountancy,A1837,Humber Freeport,A49105,Other Supplies & Services,30142842,30/06/2023,202306,"10,801.08",1003948,Andrew Jackson Solicitors LLP
Deputy s151,Revenue Budgets,Resources,Accountancy,A1837,Humber Freeport,A49105,Other Supplies & Services,30142855,30/06/2023,202306,"3,561.24",1007223,Eurus Consulting Limited
Deputy s151,Revenue Budgets,Resources,Accountancy,A1837,Humber Freeport,A49105,Other Supplies & Services,30142862,30/06/2023,202306,"4,004.57",1003948,Andrew Jackson Solicitors LLP
Deputy s151,Revenue Budgets,Resources,Accountancy,A1837,Humber Freeport,A49105,Other Supplies & Services,30142838,03/07/2023,202306,"4,800.00",1007101,Future Humber
Deputy s151,Revenue Budgets,Resources,Accountancy,A1837,Humber Freeport,A44065,Consultancy Services,30142831,04/07/2023,202306,"7,572.24",1004912,Albany Infrastructure Management
Deputy s151,Revenue Budgets,Resources,Local Taxation & Benefits - Shared,A0187,Debt Collection,A49053,Debt Recovery Costs,30144510,20/08/2023,202306,"-8,115.95",123422,Newlyn
Deputy s151,Revenue Budgets,Resources,Local Taxation & Benefits - Shared,A0187,Debt Collection,A49053,Debt Recovery Costs,30144510,20/08/2023,202306,"8,115.95",123422,Newlyn
Deputy s151,Revenue Budgets,Resources,Local Taxation & Benefits - Shared,A0187,Debt Collection,A49053,Debt Recovery Costs,30144263,24/08/2023,202306,"2,111.00",109470,Wilkin Chapman Llp Solicitors
Deputy s151,Revenue Budgets,Resources,Local Taxation & Benefits - Shared,A0187,Debt Collection,A49053,Debt Recovery Costs,30144236,30/08/2023,202306,414.2,109470,Wilkin Chapman Llp Solicitors
Deputy s151,Revenue Budgets,Resources,Accountancy,A1837,Humber Freeport,A44065,Consultancy Services,30143974,06/09/2023,202306,"2,516.25",100785,Solace In Business
Director Childrens Services,Revenue Budgets,Childrens Services,Director Children & Fam Serv,A0284,Director Children / Fam Serv,A45025,Communications,30145393,06/03/2023,202306,855.45,144852,Redcentric Solutions Ltd
Director Childrens Services,Revenue Budgets,Childrens Services,Director Children & Fam Serv,A0284,Director Children / Fam Serv,A44065,Consultancy Services,30141650,31/08/2023,202306,"1,600.00",1006980,ForeTwo Group Limited
Director Childrens Services,Revenue Budgets,Childrens Services,Director Children & Fam Serv,A0284,Director Children / Fam Serv,A44065,Consultancy Services,30143040,05/09/2023,202306,"36,555.88",133446,Impower Consulting Limited
Director Childrens Services,Revenue Budgets,Childrens Services,Director Children & Fam Serv,A0284,Director Children / Fam Serv,A21005,Electricity,42253999,19/09/2023,202306,275.14,103611,Total Energies Gas & Power Ltd
Director Childrens Services,Revenue Budgets,Childrens Services,Director Children & Fam Serv,A0284,Director Children / Fam Serv,A21005,Electricity,42253999,19/09/2023,202306,323.68,103611,Total Energies Gas & Power Ltd
Director Childrens Services,Revenue Budgets,Childrens Services,Director Children & Fam Serv,A0284,Director Children / Fam Serv,A21005,Electricity,42253999,19/09/2023,202306,340.72,103611,Total Energies Gas & Power Ltd
Director Childrens Services,Revenue Budgets,Childrens Services,Director Children & Fam Serv,A0284,Director Children / Fam Serv,A21005,Electricity,42253999,19/09/2023,202306,452.98,103611,Total Energies Gas & Power Ltd
Director Childrens Services,Revenue Budgets,Childrens Services,Director Children & Fam Serv,A0284,Director Children / Fam Serv,A21005,Electricity,42253999,19/09/2023,202306,667.74,103611,Total Energies Gas & Power Ltd
Director Childrens Services,Revenue Budgets,Childrens Services,Director Children & Fam Serv,A0284,Director Children / Fam Serv,A21005,Electricity,42253999,19/09/2023,202306,764.57,103611,Total Energies Gas & Power Ltd
Education and Inclusion,Revenue Budgets,Childrens Services,Education Transport,A0254,Home To School Transport Sen,A40920,Purchase of Equipment,30142739,11/08/2022,202306,751.5,100715,Crelling Harnesses Ltd
Education and Inclusion,Revenue Budgets,Childrens Services,Sen/Inclusion,A1563,Top Up Funding Post 16,A52005,Payments to Other Local Authorities,30144714,13/01/2023,202306,"3,418.34",1000918,Linkage Community Trust
Education and Inclusion,Revenue Budgets,Childrens Services,Sen/Inclusion,A1563,Top Up Funding Post 16,A52005,Payments to Other Local Authorities,30144719,13/01/2023,202306,"1,194.17",1000918,Linkage Community Trust
Education and Inclusion,Revenue Budgets,Childrens Services,Sen/Inclusion,A1563,Top Up Funding Post 16,A52005,Payments to Other Local Authorities,30144649,16/03/2023,202306,"1,194.17",1000918,Linkage Community Trust
Education and Inclusion,Revenue Budgets,Childrens Services,Sen/Inclusion,A1563,Top Up Funding Post 16,A52005,Payments to Other Local Authorities,30144708,16/03/2023,202306,931.67,1000918,Linkage Community Trust
Education and Inclusion,Revenue Budgets,Childrens Services,Sen/Inclusion,A1563,Top Up Funding Post 16,A52005,Payments to Other Local Authorities,30144560,14/04/2023,202306,"1,665.00",1000918,Linkage Community Trust
Education and Inclusion,Revenue Budgets,Childrens Services,Sen/Inclusion,A1563,Top Up Funding Post 16,A52005,Payments to Other Local Authorities,30144561,14/04/2023,202306,931.66,1000918,Linkage Community Trust
Education and Inclusion,Revenue Budgets,Childrens Services,Sen/Inclusion,A1563,Top Up Funding Post 16,A52005,Payments to Other Local Authorities,30144561,14/04/2023,202306,931.67,1000918,Linkage Community Trust
Education and Inclusion,Revenue Budgets,Childrens Services,Sen/Inclusion,A1563,Top Up Funding Post 16,A52005,Payments to Other Local Authorities,30144561,14/04/2023,202306,"1,194.17",1000918,Linkage Community Trust
Education and Inclusion,Revenue Budgets,Childrens Services,Sen/Inclusion,A1563,Top Up Funding Post 16,A52005,Payments to Other Local Authorities,30144561,14/04/2023,202306,"1,387.50",1000918,Linkage Community Trust
Education and Inclusion,Revenue Budgets,Childrens Services,Sen/Inclusion,A1563,Top Up Funding Post 16,A52005,Payments to Other Local Authorities,30144561,14/04/2023,202306,"1,423.32",1000918,Linkage Community Trust
Education and Inclusion,Revenue Budgets,Childrens Services,Sen/Inclusion,A1563,Top Up Funding Post 16,A52005,Payments to Other Local Authorities,30144561,14/04/2023,202306,"1,630.02",1000918,Linkage Community Trust
Education and Inclusion,Revenue Budgets,Childrens Services,Sen/Inclusion,A1563,Top Up Funding Post 16,A52005,Payments to Other Local Authorities,30144563,14/04/2023,202306,251.66,1000918,Linkage Community Trust
Education and Inclusion,Revenue Budgets,Childrens Services,Sen/Inclusion,A1563,Top Up Funding Post 16,A52005,Payments to Other Local Authorities,30144563,14/04/2023,202306,251.66,1000918,Linkage Community Trust
Education and Inclusion,Revenue Budgets,Childrens Services,Sen/Inclusion,A1563,Top Up Funding Post 16,A52005,Payments to Other Local Authorities,30144563,14/04/2023,202306,251.66,1000918,Linkage Community Trust
Education and Inclusion,Revenue Budgets,Childrens Services,Sen/Inclusion,A1563,Top Up Funding Post 16,A52005,Payments to Other Local Authorities,30144571,14/04/2023,202306,"1,114.16",1000918,Linkage Community Trust
Education and Inclusion,Revenue Budgets,Childrens Services,Sen/Inclusion,A1563,Top Up Funding Post 16,A52005,Payments to Other Local Authorities,30144574,14/04/2023,202306,"1,781.66",1000918,Linkage Community Trust
Education and Inclusion,Revenue Budgets,Childrens Services,Sen/Inclusion,A1563,Top Up Funding Post 16,A52005,Payments to Other Local Authorities,30144581,14/04/2023,202306,"2,925.00",1000918,Linkage Community Trust
Education and Inclusion,Revenue Budgets,Childrens Services,Sen/Inclusion,A1563,Top Up Funding Post 16,A52005,Payments to Other Local Authorities,30144583,14/04/2023,202306,"1,194.16",1000918,Linkage Community Trust
Education and Inclusion,Revenue Budgets,Childrens Services,Sen/Inclusion,A1563,Top Up Funding Post 16,A52005,Payments to Other Local Authorities,30144584,14/04/2023,202306,698.32,1000918,Linkage Community Trust
Education and Inclusion,Revenue Budgets,Childrens Services,Sen/Inclusion,A1563,Top Up Funding Post 16,A52005,Payments to Other Local Authorities,30144588,14/04/2023,202306,610.82,1000918,Linkage Community Trust
Education and Inclusion,Revenue Budgets,Childrens Services,Sen/Inclusion,A1563,Top Up Funding Post 16,A52005,Payments to Other Local Authorities,30144590,14/04/2023,202306,"2,418.32",1000918,Linkage Community Trust
Education and Inclusion,Revenue Budgets,Childrens Services,Sen/Inclusion,A1563,Top Up Funding Post 16,A52005,Payments to Other Local Authorities,30144601,14/04/2023,202306,"2,266.66",1000918,Linkage Community Trust
Education and Inclusion,Revenue Budgets,Childrens Services,Sen/Inclusion,A1563,Top Up Funding Post 16,A52005,Payments to Other Local Authorities,30144604,14/04/2023,202306,498.32,1000918,Linkage Community Trust
Education and Inclusion,Revenue Budgets,Childrens Services,Sen/Inclusion,A1563,Top Up Funding Post 16,A52005,Payments to Other Local Authorities,30144608,14/04/2023,202306,610.82,1000918,Linkage Community Trust
Education and Inclusion,Revenue Budgets,Childrens Services,Sen/Inclusion,A1563,Top Up Funding Post 16,A52005,Payments to Other Local Authorities,30144609,14/04/2023,202306,698.32,1000918,Linkage Community Trust
Education and Inclusion,Revenue Budgets,Childrens Services,Sen/Inclusion,A1563,Top Up Funding Post 16,A52005,Payments to Other Local Authorities,30144611,14/04/2023,202306,610.82,1000918,Linkage Community Trust
Education and Inclusion,Revenue Budgets,Childrens Services,Sen/Inclusion,A1563,Top Up Funding Post 16,A52005,Payments to Other Local Authorities,30144614,14/04/2023,202306,363.32,1000918,Linkage Community Trust
Education and Inclusion,Revenue Budgets,Childrens Services,Sen/Inclusion,A1563,Top Up Funding Post 16,A52005,Payments to Other Local Authorities,30144614,14/04/2023,202306,"1,194.17",1000918,Linkage Community Trust
Education and Inclusion,Revenue Budgets,Childrens Services,Sen/Inclusion,A1563,Top Up Funding Post 16,A52005,Payments to Other Local Authorities,30144617,14/04/2023,202306,"2,618.32",1000918,Linkage Community Trust
Education and Inclusion,Revenue Budgets,Childrens Services,Sen/Inclusion,A1563,Top Up Funding Post 16,A52005,Payments to Other Local Authorities,30144623,14/04/2023,202306,"1,303.66",1000918,Linkage Community Trust
Education and Inclusion,Revenue Budgets,Childrens Services,Sen/Inclusion,A1563,Top Up Funding Post 16,A52005,Payments to Other Local Authorities,30144624,14/04/2023,202306,"1,665.00",1000918,Linkage Community Trust
Education and Inclusion,Revenue Budgets,Childrens Services,Sen/Inclusion,A1563,Top Up Funding Post 16,A52005,Payments to Other Local Authorities,30144626,14/04/2023,202306,"3,418.32",1000918,Linkage Community Trust
Education and Inclusion,Revenue Budgets,Childrens Services,Sen/Inclusion,A1563,Top Up Funding Post 16,A52005,Payments to Other Local Authorities,30144630,14/04/2023,202306,"2,618.32",1000918,Linkage Community Trust
Education and Inclusion,Revenue Budgets,Childrens Services,Sen/Inclusion,A1563,Top Up Funding Post 16,A52005,Payments to Other Local Authorities,30144637,14/04/2023,202306,"1,710.32",1000918,Linkage Community Trust
Education and Inclusion,Revenue Budgets,Childrens Services,Sen/Inclusion,A1563,Top Up Funding Post 16,A52005,Payments to Other Local Authorities,30144639,14/04/2023,202306,251.66,1000918,Linkage Community Trust
Education and Inclusion,Revenue Budgets,Childrens Services,Sen/Inclusion,A1563,Top Up Funding Post 16,A52005,Payments to Other Local Authorities,30144640,14/04/2023,202306,498.32,1000918,Linkage Community Trust
Education and Inclusion,Revenue Budgets,Childrens Services,Sen/Inclusion,A1563,Top Up Funding Post 16,A52005,Payments to Other Local Authorities,30144642,14/04/2023,202306,251.66,1000918,Linkage Community Trust
Education and Inclusion,Revenue Budgets,Childrens Services,Sen/Inclusion,A1563,Top Up Funding Post 16,A52005,Payments to Other Local Authorities,30144644,14/04/2023,202306,251.66,1000918,Linkage Community Trust
Education and Inclusion,Revenue Budgets,Childrens Services,Sen/Inclusion,A1563,Top Up Funding Post 16,A52005,Payments to Other Local Authorities,30144646,14/04/2023,202306,920.32,1000918,Linkage Community Trust
Education and Inclusion,Revenue Budgets,Childrens Services,Sen/Inclusion,A1563,Top Up Funding Post 16,A52005,Payments to Other Local Authorities,30144652,14/04/2023,202306,"2,109.32",1000918,Linkage Community Trust
Education and Inclusion,Revenue Budgets,Childrens Services,Sen/Inclusion,A1563,Top Up Funding Post 16,A52005,Payments to Other Local Authorities,30144654,14/04/2023,202306,"1,809.32",1000918,Linkage Community Trust
Education and Inclusion,Revenue Budgets,Childrens Services,Sen/Inclusion,A1563,Top Up Funding Post 16,A52005,Payments to Other Local Authorities,30144656,14/04/2023,202306,363.32,1000918,Linkage Community Trust
Education and Inclusion,Revenue Budgets,Childrens Services,Sen/Inclusion,A1563,Top Up Funding Post 16,A52005,Payments to Other Local Authorities,30144657,14/04/2023,202306,"2,998.32",1000918,Linkage Community Trust
Education and Inclusion,Revenue Budgets,Childrens Services,Sen/Inclusion,A1563,Top Up Funding Post 16,A52005,Payments to Other Local Authorities,30144712,14/04/2023,202306,931.66,1000918,Linkage Community Trust
Education and Inclusion,Revenue Budgets,Childrens Services,Sen/Inclusion,A1563,Top Up Funding Post 16,A52005,Payments to Other Local Authorities,30144722,14/04/2023,202306,"1,668.32",1000918,Linkage Community Trust
Education and Inclusion,Revenue Budgets,Childrens Services,Sen/Inclusion,A1563,Top Up Funding Post 16,A52005,Payments to Other Local Authorities,30144725,14/04/2023,202306,"1,387.50",1000918,Linkage Community Trust
Education and Inclusion,Revenue Budgets,Childrens Services,Sen/Inclusion,A1784,Other La Top-Up,A52005,Payments to Other Local Authorities,30148400,19/04/2023,202306,"11,585.00",100389,Lincolnshire County Council
Education and Inclusion,Capital Spend,Childrens Services,New Nursery Places,Y1799,Grange New Nursery Places,C01009,"New Construction, conversion & renovation",30142200,18/05/2023,202306,"3,326.25",100786,KES Building Maintenance Limited
Education and Inclusion,Capital Spend,Childrens Services,Backlog Maintenance Schools,Y1758,Scartho Infants Wc'S,C01009,"New Construction, conversion & renovation",30142202,18/05/2023,202306,"2,120.10",100786,KES Building Maintenance Limited
Education and Inclusion,Revenue Budgets,Childrens Services,Sen/Inclusion,A1565,Top Up Funding Academies & Fre,A49105,Other Supplies & Services,30149016,24/05/2023,202306,"1,020.00",1007471,For Under Fives (Broadway)
Education and Inclusion,Capital Spend,Childrens Services,Sufficiency Of School Places,Y1098,Enfield Primary,C01009,"New Construction, conversion & renovation",30149927,26/05/2023,202306,260,1005580,Lucion Services Limited
Education and Inclusion,Revenue Budgets,Childrens Services,Pupil Support Safeguard/Wellbeing,A0513,Lac Education,A60010,Tuition &/or Board Fees,30141982,31/05/2023,202306,"3,000.00",1007202,Rowan Education Services Ltd TA Rowan
Education and Inclusion,Revenue Budgets,Childrens Services,Sen/Inclusion,A1565,Top Up Funding Academies & Fre,A49105,Other Supplies & Services,30146591,26/06/2023,202306,"3,480.00",128017,Leap Ahead Nursery
Education and Inclusion,Revenue Budgets,Childrens Services,Sen/Inclusion,A1565,Top Up Funding Academies & Fre,A49105,Other Supplies & Services,30146705,26/06/2023,202306,"5,451.00",128017,Leap Ahead Nursery
Education and Inclusion,Revenue Budgets,Childrens Services,Sen/Inclusion,A1783,Top-Up Non-Maintained & Indepe,A52005,Payments to Other Local Authorities,30148218,29/06/2023,202306,"11,681.98",1007065,West Midlands Education & Skills
Education and Inclusion,Revenue Budgets,Childrens Services,Sen/Inclusion,A1784,Other La Top-Up,A52005,Payments to Other Local Authorities,30144717,30/06/2023,202306,350,120445,Fortis Therapy & Training
Education and Inclusion,Revenue Budgets,Childrens Services,Sen/Inclusion,A1783,Top-Up Non-Maintained & Indepe,A52005,Payments to Other Local Authorities,30148216,02/07/2023,202306,"5,000.00",1007202,Rowan Education Services Ltd TA Rowan
Education and Inclusion,Revenue Budgets,Childrens Services,Sen/Inclusion,A1563,Top Up Funding Post 16,A49105,Other Supplies & Services,30145897,04/07/2023,202306,"83,930.00",102742,Tec Partnership
Education and Inclusion,Revenue Budgets,Childrens Services,Employability and Skills,A1723,"Youth Careers, Info & Guidance",A49105,Other Supplies & Services,30144300,05/07/2023,202306,"3,153.00",1002147,Wells & Son Marquees Ltd
Education and Inclusion,Revenue Budgets,Childrens Services,Sen/Inclusion,A1858,Education Other than After Schools,A49105,Other Supplies & Services,30146606,05/07/2023,202306,360,1003902,Mind Jam
Education and Inclusion,Revenue Budgets,Childrens Services,Sen/Inclusion,A1784,Other La Top-Up,A52005,Payments to Other Local Authorities,30143188,10/07/2023,202306,"3,383.34",146244,Caistor Grammar School
Education and Inclusion,Revenue Budgets,Childrens Services,Sen/Inclusion,A1784,Other La Top-Up,A52005,Payments to Other Local Authorities,30143168,13/07/2023,202306,"33,821.34",126809,Oakfield School
Education and Inclusion,Revenue Budgets,Childrens Services,Pupil Support Safeguard/Wellbeing,A0513,Lac Education,A60010,Tuition &/or Board Fees,30143625,17/07/2023,202306,"2,720.00",147507,Educla
Education and Inclusion,Revenue Budgets,Childrens Services,Pupil Support Safeguard/Wellbeing,A0513,Lac Education,A60010,Tuition &/or Board Fees,30146088,17/07/2023,202306,"2,720.00",147507,Educla
Education and Inclusion,Revenue Budgets,Childrens Services,Sen/Inclusion,A1783,Top-Up Non-Maintained & Indepe,A52005,Payments to Other Local Authorities,30134458,19/07/2023,202306,"11,117.01",1000489,Acorn Care & Education Ltd (Sales)
Education and Inclusion,Revenue Budgets,Childrens Services,Sen/Inclusion,A1897,Resource Specialist Provision,A49105,Other Supplies & Services,30148353,20/07/2023,202306,"68,238.75",134261,Littlecoates Primary Academy
Education and Inclusion,Revenue Budgets,Childrens Services,Sen/Inclusion,A1897,Resource Specialist Provision,A49105,Other Supplies & Services,30148389,20/07/2023,202306,"76,000.00",134261,Littlecoates Primary Academy
Education and Inclusion,Revenue Budgets,Childrens Services,Sen/Inclusion,A1784,Other La Top-Up,A52005,Payments to Other Local Authorities,30142045,21/07/2023,202306,"47,265.00",145739,Aegir Academy
Education and Inclusion,Revenue Budgets,Childrens Services,Sen/Inclusion,A1784,Other La Top-Up,A52005,Payments to Other Local Authorities,30142060,21/07/2023,202306,"22,869.00",145739,Aegir Academy
Education and Inclusion,Revenue Budgets,Childrens Services,Sen/Inclusion,A1784,Other La Top-Up,A52005,Payments to Other Local Authorities,30142077,21/07/2023,202306,"5,950.50",145739,Aegir Academy
Education and Inclusion,Revenue Budgets,Childrens Services,Education Transport,A0254,Home To School Transport Sen,A32020,Home to School Transport,30144285,31/07/2023,202306,"3,480.00",1003562,WAT Specialist Transport LTD T/A WAT
Education and Inclusion,Revenue Budgets,Childrens Services,Sen/Inclusion,A1563,Top Up Funding Post 16,A52005,Payments to Other Local Authorities,30144840,31/07/2023,202306,"3,831.33",107439,North Lindsey College
Education and Inclusion,Revenue Budgets,Childrens Services,Education Transport,A0253,Home To Sch Transport Sec-Gy,A32020,Home to School Transport,30146707,31/07/2023,202306,855,100546,Links Taxis
Education and Inclusion,Revenue Budgets,Childrens Services,Sen/Inclusion,A1858,Education Other than After Schools,A49105,Other Supplies & Services,30148217,31/07/2023,202306,"1,056.25",146662,Targeted Provision Ltd
Education and Inclusion,Revenue Budgets,Childrens Services,Sen/Inclusion,A1858,Education Other than After Schools,A49105,Other Supplies & Services,30148221,31/07/2023,202306,390,146662,Targeted Provision Ltd
Education and Inclusion,Revenue Budgets,Childrens Services,Sen/Inclusion,A1858,Education Other than After Schools,A49105,Other Supplies & Services,30148221,31/07/2023,202306,520,146662,Targeted Provision Ltd
Education and Inclusion,Revenue Budgets,Childrens Services,Sen/Inclusion,A1858,Education Other than After Schools,A49105,Other Supplies & Services,30148224,31/07/2023,202306,650,146662,Targeted Provision Ltd
Education and Inclusion,Revenue Budgets,Childrens Services,Sen/Inclusion,A1858,Education Other than After Schools,A49105,Other Supplies & Services,30148224,31/07/2023,202306,910,146662,Targeted Provision Ltd
Education and Inclusion,Revenue Budgets,Childrens Services,Sen/Inclusion,A1858,Education Other than After Schools,A49105,Other Supplies & Services,30148224,31/07/2023,202306,"1,300.00",146662,Targeted Provision Ltd
Education and Inclusion,Revenue Budgets,Childrens Services,Sen/Inclusion,A1858,Education Other than After Schools,A49105,Other Supplies & Services,30148225,31/07/2023,202306,385,146662,Targeted Provision Ltd
Education and Inclusion,Revenue Budgets,Childrens Services,Sen/Inclusion,A1858,Education Other than After Schools,A49105,Other Supplies & Services,30148227,31/07/2023,202306,780,146662,Targeted Provision Ltd
Education and Inclusion,Revenue Budgets,Childrens Services,Sen/Inclusion,A1858,Education Other than After Schools,A49105,Other Supplies & Services,30148229,31/07/2023,202306,"2,340.00",146662,Targeted Provision Ltd
Education and Inclusion,Revenue Budgets,Childrens Services,Sen/Inclusion,A1858,Education Other than After Schools,A49105,Other Supplies & Services,30148231,31/07/2023,202306,"1,300.00",146662,Targeted Provision Ltd
Education and Inclusion,Revenue Budgets,Childrens Services,Sen/Inclusion,A1858,Education Other than After Schools,A49105,Other Supplies & Services,30148232,31/07/2023,202306,650,146662,Targeted Provision Ltd
Education and Inclusion,Revenue Budgets,Childrens Services,Sen/Inclusion,A1858,Education Other than After Schools,A49105,Other Supplies & Services,30148233,31/07/2023,202306,520,146662,Targeted Provision Ltd
Education and Inclusion,Revenue Budgets,Childrens Services,Sen/Inclusion,A1858,Education Other than After Schools,A49105,Other Supplies & Services,30148235,31/07/2023,202306,"1,800.00",146662,Targeted Provision Ltd
Education and Inclusion,Revenue Budgets,Childrens Services,Sen/Inclusion,A1858,Education Other than After Schools,A49105,Other Supplies & Services,30148237,31/07/2023,202306,390,146662,Targeted Provision Ltd
Education and Inclusion,Revenue Budgets,Childrens Services,Sen/Inclusion,A1783,Top-Up Non-Maintained & Indepe,A52005,Payments to Other Local Authorities,30148106,01/08/2023,202306,"63,463.09",109683,Demeter House (England) Ltd
Education and Inclusion,Revenue Budgets,Childrens Services,Sen/Inclusion,A1563,Top Up Funding Post 16,A52005,Payments to Other Local Authorities,30143989,02/08/2023,202306,"1,053.00",144120,Learning4life-Gy-Cic
Education and Inclusion,Capital Spend,Childrens Services,Cap Alloc Devolved To Schools,Y0799,Grange Primary Dfcg,C01009,"New Construction, conversion & renovation",30145358,06/08/2023,202306,"7,664.00",102044,Lincs Electrical Services Ltd
Education and Inclusion,Revenue Budgets,Childrens Services,Sen/Inclusion,A0415,Send Contracts,A49105,Other Supplies & Services,30146586,07/08/2023,202306,360,1003902,Mind Jam
Education and Inclusion,Revenue Budgets,Childrens Services,Sen/Inclusion,A1783,Top-Up Non-Maintained & Indepe,A52005,Payments to Other Local Authorities,30148236,09/08/2023,202306,"3,750.00",1007202,Rowan Education Services Ltd TA Rowan
Education and Inclusion,Revenue Budgets,Childrens Services,Sen/Inclusion,A1563,Top Up Funding Post 16,A52005,Payments to Other Local Authorities,30144826,11/08/2023,202306,"4,793.64",101073,Franklin College
Education and Inclusion,Capital Spend,Childrens Services,Backlog Maintenance Schools,Y1897,Queen Mary Avenue Infants School Classroom Refurbishment,C01009,"New Construction, conversion & renovation",30147239,13/08/2023,202306,"15,127.64",100786,KES Building Maintenance Limited
Education and Inclusion,Revenue Budgets,Childrens Services,Employability and Skills,A1723,"Youth Careers, Info & Guidance",A49105,Other Supplies & Services,30146614,14/08/2023,202306,"1,250.00",1000197,HCFCATCH Ltd
Education and Inclusion,Revenue Budgets,Childrens Services,Sen/Inclusion,A0415,Send Contracts,A49105,Other Supplies & Services,30144835,16/08/2023,202306,"1,207.50",106613,Community Accord
Education and Inclusion,Revenue Budgets,Childrens Services,Sen/Inclusion,A1561,Education Team Hear / Vision,A16015,Staff Training Expenses,30145065,17/08/2023,202306,"3,540.00",101913,University Of Birmingham
Education and Inclusion,Capital Spend,Childrens Services,Backlog Maintenance Schools,Y1897,Queen Mary Avenue Infants School Classroom Refurbishment,C01011,External Professional Fees,30144268,23/08/2023,202306,"5,000.00",133267,Equans Services Ltd
Education and Inclusion,Capital Spend,Childrens Services,Sufficiency Of School Places,Y1098,Enfield Primary,C01011,External Professional Fees,30144269,23/08/2023,202306,"5,000.00",133267,Equans Services Ltd
Education and Inclusion,Capital Spend,Childrens Services,Sufficiency Of School Places,Y1867,Scartho Provision,C01011,External Professional Fees,30144270,23/08/2023,202306,"12,000.00",133267,Equans Services Ltd
Education and Inclusion,Capital Spend,Childrens Services,Sufficiency Of School Places,Y1869,Waltham Provision,C01011,External Professional Fees,30146423,23/08/2023,202306,"12,000.00",133267,Equans Services Ltd
Education and Inclusion,Capital Spend,Childrens Services,Sufficiency Of School Places,Y1868,Cleethorpes Academy,C01011,External Professional Fees,30146437,23/08/2023,202306,"10,000.00",133267,Equans Services Ltd
Education and Inclusion,Revenue Budgets,Childrens Services,Education Transport,A0254,Home To School Transport Sen,A32020,Home to School Transport,30148753,23/08/2023,202306,"1,224.00",1000227,Mrs Sandra Delatouche TA Sandys Taxi's
Education and Inclusion,Revenue Budgets,Childrens Services,Sen/Inclusion,A1783,Top-Up Non-Maintained & Indepe,A49105,Other Supplies & Services,30146597,25/08/2023,202306,"8,150.00",1006473,Robert Holme Academy
Education and Inclusion,Revenue Budgets,Childrens Services,Education Transport,A0254,Home To School Transport Sen,A32020,Home to School Transport,30142836,30/08/2023,202306,"1,170.00",102124,Minicabs Cleethorpes (Lincs) Ltd
Education and Inclusion,Revenue Budgets,Childrens Services,Education Transport,A0254,Home To School Transport Sen,A32020,Home to School Transport,30142845,30/08/2023,202306,"1,512.00",102124,Minicabs Cleethorpes (Lincs) Ltd
Education and Inclusion,Revenue Budgets,Childrens Services,Education Transport,A0254,Home To School Transport Sen,A32020,Home to School Transport,30141951,31/08/2023,202306,"2,430.00",130777,Amvale Medical Transport Ltd
Education and Inclusion,Revenue Budgets,Childrens Services,Education Transport,A0254,Home To School Transport Sen,A32020,Home to School Transport,30141953,31/08/2023,202306,"3,477.00",130777,Amvale Medical Transport Ltd
Education and Inclusion,Capital Spend,Childrens Services,Sufficiency Of School Places,Y1098,Enfield Primary,C01009,"New Construction, conversion & renovation",30142192,31/08/2023,202306,"71,798.03",1001092,Unibuild Building Contractors Ltd
Education and Inclusion,Capital Spend,Childrens Services,Sufficiency Of School Places,Y1098,Enfield Primary,C01009,"New Construction, conversion & renovation",30142193,31/08/2023,202306,"166,582.89",1001092,Unibuild Building Contractors Ltd
Education and Inclusion,Capital Spend,Childrens Services,Sufficiency Of School Places,Y1098,Enfield Primary,C01009,"New Construction, conversion & renovation",30143626,31/08/2023,202306,"16,120.20",1006689,Triline Contracts Limited
Education and Inclusion,Revenue Budgets,Childrens Services,Education Transport,A0254,Home To School Transport Sen,A32020,Home to School Transport,30144299,31/08/2023,202306,"4,482.00",130777,Amvale Medical Transport Ltd
Education and Inclusion,Revenue Budgets,Childrens Services,Education Transport,A0254,Home To School Transport Sen,A32020,Home to School Transport,30144309,31/08/2023,202306,"4,482.00",130777,Amvale Medical Transport Ltd
Education and Inclusion,Revenue Budgets,Childrens Services,Education Transport,A0254,Home To School Transport Sen,A32020,Home to School Transport,30144518,31/08/2023,202306,"3,402.00",130777,Amvale Medical Transport Ltd
Education and Inclusion,Revenue Budgets,Childrens Services,Education Transport,A0254,Home To School Transport Sen,A32020,Home to School Transport,30144525,31/08/2023,202306,"4,662.00",130777,Amvale Medical Transport Ltd
Education and Inclusion,Revenue Budgets,Childrens Services,Education Transport,A0254,Home To School Transport Sen,A32020,Home to School Transport,30144532,31/08/2023,202306,"4,070.00",130777,Amvale Medical Transport Ltd
Education and Inclusion,Revenue Budgets,Childrens Services,Education Transport,A0254,Home To School Transport Sen,A32020,Home to School Transport,30144534,31/08/2023,202306,"3,402.00",130777,Amvale Medical Transport Ltd
Education and Inclusion,Revenue Budgets,Childrens Services,Education Transport,A0254,Home To School Transport Sen,A32020,Home to School Transport,30145324,31/08/2023,202306,"1,224.00",100546,Links Taxis
Education and Inclusion,Revenue Budgets,Childrens Services,Education Transport,A0254,Home To School Transport Sen,A32020,Home to School Transport,30145331,31/08/2023,202306,"1,394.00",100546,Links Taxis
Education and Inclusion,Revenue Budgets,Childrens Services,Education Transport,A0254,Home To School Transport Sen,A32020,Home to School Transport,30145333,31/08/2023,202306,"2,669.00",100546,Links Taxis
Education and Inclusion,Revenue Budgets,Childrens Services,Education Transport,A0254,Home To School Transport Sen,A32020,Home to School Transport,30145336,31/08/2023,202306,"1,326.00",100546,Links Taxis
Education and Inclusion,Revenue Budgets,Childrens Services,Education Transport,A0254,Home To School Transport Sen,A32020,Home to School Transport,30145339,31/08/2023,202306,533,100546,Links Taxis
Education and Inclusion,Revenue Budgets,Childrens Services,Education Transport,A0254,Home To School Transport Sen,A32020,Home to School Transport,30145345,31/08/2023,202306,"1,139.00",100546,Links Taxis
Education and Inclusion,Capital Spend,Childrens Services,Cap Alloc Devolved To Schools,Y0818,Stallingborough Primary Dfcg,C01009,"New Construction, conversion & renovation",30146495,31/08/2023,202306,496.76,100601,Excell Electrical Contractors Ltd
Education and Inclusion,Capital Spend,Childrens Services,Cap Alloc Devolved To Schools,Y0818,Stallingborough Primary Dfcg,C01009,"New Construction, conversion & renovation",30146583,31/08/2023,202306,621.87,100601,Excell Electrical Contractors Ltd
Education and Inclusion,Revenue Budgets,Childrens Services,Sen/Inclusion,A1565,Top Up Funding Academies & Fre,A47007,Contributions - Third Sector,42250763,31/08/2023,202306,"2,091.01",REDACTED PERSONAL INFORMATION,REDACTED PERSONAL INFORMATION
Education and Inclusion,Revenue Budgets,Childrens Services,Sen/Inclusion,A1565,Top Up Funding Academies & Fre,A47007,Contributions - Third Sector,42250832,31/08/2023,202306,"1,737.00",REDACTED PERSONAL INFORMATION,REDACTED PERSONAL INFORMATION
Education and Inclusion,Revenue Budgets,Childrens Services,Sen/Inclusion,A1783,Top-Up Non-Maintained & Indepe,A52005,Payments to Other Local Authorities,30143169,01/09/2023,202306,"1,800.00",144120,Learning4life-Gy-Cic
Education and Inclusion,Revenue Budgets,Childrens Services,Sen/Inclusion,A1783,Top-Up Non-Maintained & Indepe,A52005,Payments to Other Local Authorities,30143169,01/09/2023,202306,"1,800.00",144120,Learning4life-Gy-Cic
Education and Inclusion,Revenue Budgets,Childrens Services,Sen/Inclusion,A1783,Top-Up Non-Maintained & Indepe,A52005,Payments to Other Local Authorities,30143169,01/09/2023,202306,"1,800.00",144120,Learning4life-Gy-Cic
Education and Inclusion,Revenue Budgets,Childrens Services,Sen/Inclusion,A1783,Top-Up Non-Maintained & Indepe,A52005,Payments to Other Local Authorities,30143179,01/09/2023,202306,"1,950.00",144120,Learning4life-Gy-Cic
Education and Inclusion,Revenue Budgets,Childrens Services,Sen/Inclusion,A1783,Top-Up Non-Maintained & Indepe,A52005,Payments to Other Local Authorities,30143179,01/09/2023,202306,"1,950.00",144120,Learning4life-Gy-Cic
Education and Inclusion,Revenue Budgets,Childrens Services,Sen/Inclusion,A1783,Top-Up Non-Maintained & Indepe,A52005,Payments to Other Local Authorities,30143179,01/09/2023,202306,"1,950.00",144120,Learning4life-Gy-Cic
Education and Inclusion,Revenue Budgets,Childrens Services,Sen/Inclusion,A1783,Top-Up Non-Maintained & Indepe,A52005,Payments to Other Local Authorities,30143179,01/09/2023,202306,"1,950.00",144120,Learning4life-Gy-Cic
Education and Inclusion,Revenue Budgets,Childrens Services,Sen/Inclusion,A1783,Top-Up Non-Maintained & Indepe,A52005,Payments to Other Local Authorities,30143179,01/09/2023,202306,"1,950.00",144120,Learning4life-Gy-Cic
Education and Inclusion,Revenue Budgets,Childrens Services,Sen/Inclusion,A1783,Top-Up Non-Maintained & Indepe,A52005,Payments to Other Local Authorities,30143179,01/09/2023,202306,"1,950.00",144120,Learning4life-Gy-Cic
Education and Inclusion,Revenue Budgets,Childrens Services,Sen/Inclusion,A1783,Top-Up Non-Maintained & Indepe,A52005,Payments to Other Local Authorities,30143179,01/09/2023,202306,"1,950.00",144120,Learning4life-Gy-Cic
Education and Inclusion,Revenue Budgets,Childrens Services,Sen/Inclusion,A1783,Top-Up Non-Maintained & Indepe,A52005,Payments to Other Local Authorities,30143179,01/09/2023,202306,"1,950.00",144120,Learning4life-Gy-Cic
Education and Inclusion,Revenue Budgets,Childrens Services,Sen/Inclusion,A1783,Top-Up Non-Maintained & Indepe,A52005,Payments to Other Local Authorities,30143191,01/09/2023,202306,"1,886.00",144120,Learning4life-Gy-Cic
Education and Inclusion,Revenue Budgets,Childrens Services,Sen/Inclusion,A1783,Top-Up Non-Maintained & Indepe,A52005,Payments to Other Local Authorities,30143191,01/09/2023,202306,"2,040.00",144120,Learning4life-Gy-Cic
Education and Inclusion,Revenue Budgets,Childrens Services,Sen/Inclusion,A1783,Top-Up Non-Maintained & Indepe,A52005,Payments to Other Local Authorities,30143191,01/09/2023,202306,"2,040.00",144120,Learning4life-Gy-Cic
Education and Inclusion,Revenue Budgets,Childrens Services,Sen/Inclusion,A1783,Top-Up Non-Maintained & Indepe,A52005,Payments to Other Local Authorities,30143191,01/09/2023,202306,"2,731.00",144120,Learning4life-Gy-Cic
Education and Inclusion,Revenue Budgets,Childrens Services,Sen/Inclusion,A1563,Top Up Funding Post 16,A49105,Other Supplies & Services,30145898,01/09/2023,202306,"20,353.90",144120,Learning4life-Gy-Cic
Education and Inclusion,Capital Spend,Childrens Services,Backlog Maintenance Schools,Y1897,Queen Mary Avenue Infants School Classroom Refurbishment,C01009,"New Construction, conversion & renovation",30142391,03/09/2023,202306,"80,171.52",100786,KES Building Maintenance Limited
Education and Inclusion,Capital Spend,Childrens Services,Sufficiency Of School Places,Y1868,Cleethorpes Academy,C01009,"New Construction, conversion & renovation",30145446,03/09/2023,202306,"48,212.64",100786,KES Building Maintenance Limited
Education and Inclusion,Revenue Budgets,Childrens Services,Employability and Skills,A1723,"Youth Careers, Info & Guidance",A49105,Other Supplies & Services,30142853,04/09/2023,202306,"1,250.00",1007461,GPL Wind Ltd
Education and Inclusion,Revenue Budgets,Childrens Services,Attainment and Progress,A1640,School Improvement,A52005,Payments to Other Local Authorities,30148560,04/09/2023,202306,950,1002409,North Lincolnshire Council
Education and Inclusion,Revenue Budgets,Childrens Services,Employability and Skills,A1723,"Youth Careers, Info & Guidance",A49105,Other Supplies & Services,30142732,05/09/2023,202306,"2,708.00",102186,Community Press Office Ltd
Education and Inclusion,Revenue Budgets,Childrens Services,Sen/Inclusion,A0415,Send Contracts,A49105,Other Supplies & Services,30146618,05/09/2023,202306,700,1003902,Mind Jam
Education and Inclusion,Revenue Budgets,Childrens Services,Employability and Skills,A1723,"Youth Careers, Info & Guidance",A49105,Other Supplies & Services,30143029,06/09/2023,202306,"2,708.00",102186,Community Press Office Ltd
Education and Inclusion,Capital Spend,Childrens Services,Sufficiency Of School Places,Y1096,Stanford Primary,C01009,"New Construction, conversion & renovation",30143608,06/09/2023,202306,"244,471.93",144162,Topcon Building Ltd
Education and Inclusion,Revenue Budgets,Childrens Services,Sen/Inclusion,A0271,Sen Team Admin,A16015,Staff Training Expenses,30146844,06/09/2023,202306,855,1003811,Sarah A Makaton Tutor
Education and Inclusion,Revenue Budgets,Childrens Services,Pupil Support Safeguard/Wellbeing,A0513,Lac Education,A60010,Tuition &/or Board Fees,30143611,07/09/2023,202306,750,135553,National Association Of Virtual School Heads
Education and Inclusion,Revenue Budgets,Childrens Services,Sen/Inclusion,A0415,Send Contracts,A49105,Other Supplies & Services,30146587,07/09/2023,202306,320,1003902,Mind Jam
Education and Inclusion,Capital Spend,Childrens Services,Send Special Prov Fund,Y1675,Send Special Prov Fund,C01009,"New Construction, conversion & renovation",30145705,08/09/2023,202306,"5,997.10",112852,Yarborough Academy
Education and Inclusion,Revenue Budgets,Childrens Services,Sen/Inclusion,A1783,Top-Up Non-Maintained & Indepe,A52005,Payments to Other Local Authorities,30146087,15/09/2023,202306,"10,216.39",100406,Kisimul School
Education and Inclusion,Revenue Budgets,Childrens Services,Pupil Support Safeguard/Wellbeing,A0513,Lac Education,A60010,Tuition &/or Board Fees,30147440,15/09/2023,202306,"2,327.37",1007720,Shropshire Autism Service Ltd T/A The Autism Service
Education and Inclusion,Revenue Budgets,Childrens Services,Education Transport,A0253,Home To Sch Transport Sec-Gy,A57126,Concessionary Fares,30149139,16/09/2023,202306,279.79,101404,Stagecoach Services
Education and Inclusion,Revenue Budgets,Childrens Services,Education Transport,A0249,Excluded And Ap Transport,A57126,Concessionary Fares,30149139,16/09/2023,202306,359.73,101404,Stagecoach Services
Education and Inclusion,Revenue Budgets,Childrens Services,Sen/Inclusion,A1858,Education Other than After Schools,A49105,Other Supplies & Services,30146133,18/09/2023,202306,"2,700.00",1006136,EBS Psychology
Education and Inclusion,Revenue Budgets,Childrens Services,Sen/Inclusion,A1896,Delivering Better Value,A49105,Other Supplies & Services,30146719,18/09/2023,202306,"66,000.00",1007079,Learn Send Hub
Education and Inclusion,Revenue Budgets,Childrens Services,Sen/Inclusion,A1563,Top Up Funding Post 16,A52005,Payments to Other Local Authorities,30148958,18/09/2023,202306,"1,836.25",1006278,Life Skills Hub Limited
Education and Inclusion,Capital Spend,Childrens Services,Sufficiency Of School Places,Y1869,Waltham Provision,C01009,"New Construction, conversion & renovation",30146839,19/09/2023,202306,975,1007301,Osborne Planning LLP
Education and Inclusion,Capital Spend,Childrens Services,Sufficiency Of School Places,Y1867,Scartho Provision,C01009,"New Construction, conversion & renovation",30146851,19/09/2023,202306,975,1007301,Osborne Planning LLP
Education and Inclusion,Revenue Budgets,Childrens Services,Attainment and Progress,A1830,Holiday Activity and Food,A56000,Other Establishments,30147219,20/09/2023,202306,"4,229.50",150373,Wonde Ltd
Education and Inclusion,Revenue Budgets,Childrens Services,Sen/Inclusion,A1563,Top Up Funding Post 16,A52005,Payments to Other Local Authorities,30148943,20/09/2023,202306,"18,740.30",1006278,Life Skills Hub Limited
Education and Inclusion,Revenue Budgets,Childrens Services,Sen/Inclusion,A0277,Ap And Other High Needs,A56000,Other Establishments,30147676,21/09/2023,202306,"1,349.10",119822,Old Clee Primary Academy
Education and Inclusion,Revenue Budgets,Childrens Services,Sen/Inclusion,A1858,Education Other than After Schools,A47007,Contributions - Third Sector,30148359,21/09/2023,202306,559.64,REDACTED PERSONAL INFORMATION,REDACTED PERSONAL INFORMATION
Education and Inclusion,Revenue Budgets,Childrens Services,Pupil Support Safeguard/Wellbeing,A0513,Lac Education,A60010,Tuition &/or Board Fees,42254636,21/09/2023,202306,314,REDACTED PERSONAL INFORMATION,REDACTED PERSONAL INFORMATION
Education and Inclusion,Revenue Budgets,Childrens Services,Sen/Inclusion,A1563,Top Up Funding Post 16,A52005,Payments to Other Local Authorities,30148354,22/09/2023,202306,"4,257.50",101728,Community Press Office Ltd
Education and Inclusion,Capital Spend,Childrens Services,Sufficiency Of School Places,Y1868,Cleethorpes Academy,C01011,External Professional Fees,30148557,22/09/2023,202306,"1,125.00",133267,Equans Services Ltd
Education and Inclusion,Capital Spend,Childrens Services,Sufficiency Of School Places,Y1869,Waltham Provision,C01011,External Professional Fees,30149297,22/09/2023,202306,"12,000.00",133267,Equans Services Ltd
Education and Inclusion,Capital Spend,Childrens Services,Backlog Maintenance Schools,Y1897,Queen Mary Avenue Infants School Classroom Refurbishment,C01011,External Professional Fees,30149299,22/09/2023,202306,"5,000.00",133267,Equans Services Ltd
Education and Inclusion,Capital Spend,Childrens Services,Sufficiency Of School Places,Y1867,Scartho Provision,C01011,External Professional Fees,30149305,22/09/2023,202306,"12,000.00",133267,Equans Services Ltd
Education and Inclusion,Capital Spend,Childrens Services,Sufficiency Of School Places,Y1868,Cleethorpes Academy,C01011,External Professional Fees,30149310,22/09/2023,202306,"10,000.00",133267,Equans Services Ltd
Education and Inclusion,Capital Spend,Childrens Services,Sufficiency Of School Places,Y1098,Enfield Primary,C01011,External Professional Fees,30149318,22/09/2023,202306,"5,000.00",133267,Equans Services Ltd
Education and Inclusion,Revenue Budgets,Childrens Services,Education Transport,A0254,Home To School Transport Sen,A32020,Home to School Transport,30149284,27/09/2023,202306,"2,520.00",121524,Grimsby Minibuses Ltd
Education and Inclusion,Revenue Budgets,Childrens Services,Education Transport,A0254,Home To School Transport Sen,A32020,Home to School Transport,30149289,27/09/2023,202306,"3,150.00",121524,Grimsby Minibuses Ltd
Education and Inclusion,Revenue Budgets,Childrens Services,Education Transport,A0254,Home To School Transport Sen,A32020,Home to School Transport,30149301,27/09/2023,202306,"2,310.40",121524,Grimsby Minibuses Ltd
Education and Inclusion,Revenue Budgets,Childrens Services,Education Transport,A0254,Home To School Transport Sen,A32020,Home to School Transport,30149306,27/09/2023,202306,"3,276.00",121524,Grimsby Minibuses Ltd
Education and Inclusion,Revenue Budgets,Childrens Services,Education Transport,A0253,Home To Sch Transport Sec-Gy,A32020,Home to School Transport,30149319,27/09/2023,202306,"3,798.00",121524,Grimsby Minibuses Ltd
Education and Inclusion,Revenue Budgets,Childrens Services,Employability and Skills,A1599,Efa Bursary Funding 16-19,A56000,Other Establishments,30149899,29/09/2023,202306,"3,400.00",144120,Learning4life-Gy-Cic
Environment,Revenue Budgets,Environment,Regulatory Services,A1721,Environmental Enforcement,A56000,Other Establishments,30142967,31/03/2023,202306,"1,665.00",1000428,Empower � Employability Mentoring Programme CIC
Environment,Capital Spend,Environment,Play Areas,Y1852,Play Areas,C01009,"New Construction, conversion & renovation",30126141,30/06/2023,202306,"4,130.01",1006158,Sutcliffe Play Ltd
Environment,Capital Spend,Environment,Play Areas,Y1852,Play Areas,C01009,"New Construction, conversion & renovation",30128793,07/07/2023,202306,"5,311.42",1006158,Sutcliffe Play Ltd
Environment,Capital Spend,Environment,Play Areas,Y1852,Play Areas,C01009,"New Construction, conversion & renovation",30128798,07/07/2023,202306,"5,311.42",1006158,Sutcliffe Play Ltd
Environment,Capital Spend,Environment,Play Areas,Y1852,Play Areas,C01009,"New Construction, conversion & renovation",30128805,07/07/2023,202306,"5,311.42",1006158,Sutcliffe Play Ltd
Environment,Capital Spend,Environment,Play Areas,Y1852,Play Areas,C01009,"New Construction, conversion & renovation",30128808,07/07/2023,202306,"5,311.42",1006158,Sutcliffe Play Ltd
Environment,Capital Spend,Environment,Play Areas,Y1852,Play Areas,C01009,"New Construction, conversion & renovation",30128814,07/07/2023,202306,"5,311.42",1006158,Sutcliffe Play Ltd
Environment,Capital Spend,Environment,Play Areas,Y1852,Play Areas,C01009,"New Construction, conversion & renovation",30129016,07/07/2023,202306,"5,311.42",1006158,Sutcliffe Play Ltd
Environment,Revenue Budgets,Environment,Waste Disposal And Strategy,A1765,Nlc Waste Disposal,A57115,Payments to Private Contractors,30142191,31/07/2023,202306,REDACTED COMMERCIALLY SENSITIVE,101125,Newlincs Development Ltd
Environment,Revenue Budgets,Environment,Waste Disposal And Strategy,A1765,Nlc Waste Disposal,A57116,Payments to Private Contractors - Landfill Tax,30142191,31/07/2023,202306,REDACTED COMMERCIALLY SENSITIVE,101125,Newlincs Development Ltd
Environment,Revenue Budgets,Environment,Grounds & Bereavement Services,A1839,Reflections,A41905,Catering,30140118,15/08/2023,202306,453.15,121021,Holdsworth Ltd
Environment,Revenue Budgets,Environment,Grounds & Bereavement Services,A0646,Grimsby Crematorium,A40920,Purchase of Equipment,30142076,17/08/2023,202306,754,130000,S P Davis Memorials Limited
Environment,Capital Spend,Environment,Play Areas,Y1852,Play Areas,C01009,"New Construction, conversion & renovation",30140123,21/08/2023,202306,"11,241.29",1000155,Kompan Ltd
Environment,Capital Spend,Environment,Play Areas,Y1852,Play Areas,C01009,"New Construction, conversion & renovation",30140124,21/08/2023,202306,"8,548.00",1000155,Kompan Ltd
Environment,Capital Spend,Environment,Play Areas,Y1852,Play Areas,C01009,"New Construction, conversion & renovation",30140125,21/08/2023,202306,"9,298.68",1000155,Kompan Ltd
Environment,Capital Spend,Environment,Play Areas,Y1852,Play Areas,C01009,"New Construction, conversion & renovation",30140126,21/08/2023,202306,"13,400.99",1000155,Kompan Ltd
Environment,Capital Spend,Environment,Play Areas,Y1852,Play Areas,C01009,"New Construction, conversion & renovation",30140127,21/08/2023,202306,"8,548.00",1000155,Kompan Ltd
Environment,Capital Spend,Environment,Play Areas,Y1852,Play Areas,C01009,"New Construction, conversion & renovation",30140129,21/08/2023,202306,"13,546.29",1000155,Kompan Ltd
Environment,Capital Spend,Environment,Play Areas,Y1852,Play Areas,C01009,"New Construction, conversion & renovation",30140131,21/08/2023,202306,"10,048.24",1000155,Kompan Ltd
Environment,Capital Spend,Environment,Play Areas,Y1852,Play Areas,C01009,"New Construction, conversion & renovation",30140132,21/08/2023,202306,"6,338.96",1000155,Kompan Ltd
Environment,Capital Spend,Environment,Play Areas,Y1852,Play Areas,C01009,"New Construction, conversion & renovation",30140133,21/08/2023,202306,"1,900.70",1000155,Kompan Ltd
Environment,Capital Spend,Environment,Play Areas,Y1852,Play Areas,C01009,"New Construction, conversion & renovation",30140134,21/08/2023,202306,"6,967.97",1000155,Kompan Ltd
Environment,Capital Spend,Environment,Play Areas,Y1852,Play Areas,C01009,"New Construction, conversion & renovation",30140259,22/08/2023,202306,"10,419.97",1000155,Kompan Ltd
Environment,Revenue Budgets,Environment,Grounds & Bereavement Services,A1839,Reflections,A41905,Catering,30140973,22/08/2023,202306,467.3,121021,Holdsworth Ltd
Environment,Revenue Budgets,Environment,Grounds & Bereavement Services,A0680,Foreshore,A20005,"Property Repairs, Maintenance & Alterations",30141080,22/08/2023,202306,451.95,100587,Rentokil Pest Control
Environment,Capital Spend,Environment,Resort Management,Y1835,Resort Management,C01005,Purchase of Land & Buildings,30144160,22/08/2023,202306,"1,692.48",100786,KES Building Maintenance Limited
Environment,Capital Spend,Environment,Play Areas,Y1852,Play Areas,C01009,"New Construction, conversion & renovation",30140344,23/08/2023,202306,"8,548.00",1000155,Kompan Ltd
Environment,Capital Spend,Environment,Play Areas,Y1852,Play Areas,C01009,"New Construction, conversion & renovation",30140348,23/08/2023,202306,"8,548.00",1000155,Kompan Ltd
Environment,Revenue Budgets,Environment,Grounds & Bereavement Services,A0661,Grounds Maint And Parks,A56000,Other Establishments,30142297,23/08/2023,202306,990,133267,Equans Services Ltd
Environment,Revenue Budgets,Environment,Garage & Fleet Strategy,A0665,Garage - Lab Holding,A46050,Conference Expenses,30143034,23/08/2023,202306,"1,200.00",1002409,North Lincolnshire Council
Environment,Revenue Budgets,Environment,Grounds & Bereavement Services,A0661,Grounds Maint And Parks,A20005,"Property Repairs, Maintenance & Alterations",30143043,23/08/2023,202306,480,133267,Equans Services Ltd
Environment,Revenue Budgets,Environment,Garage & Fleet Strategy,A0665,Garage - Lab Holding,A46050,Conference Expenses,30143048,23/08/2023,202306,"1,125.00",1002409,North Lincolnshire Council
Environment,Capital Spend,Environment,Scartho Cem Lodge/Waiting Rooms,Y1827,Scartho Cem Lodge/Waiting Rm,C01009,"New Construction, conversion & renovation",30144118,23/08/2023,202306,"7,000.00",133267,Equans Services Ltd
Environment,Capital Spend,Environment,Enhancement Bereavement Serv,Y1765,Afford Funeral Services,C01009,"New Construction, conversion & renovation",30144379,23/08/2023,202306,"1,546.00",133267,Equans Services Ltd
Environment,Capital Spend,Environment,Depot Rationalisation,Y1812,Depot Rationalisation,C01005,Purchase of Land & Buildings,30144475,23/08/2023,202306,"30,000.00",133267,Equans Services Ltd
Environment,Revenue Budgets,Environment,Regulatory Services,A1574,Environmental Protection,A56000,Other Establishments,30145109,23/08/2023,202306,"1,763.38",139898,Als Environmental Limited
Environment,Revenue Budgets,Environment,Regulatory Services,A0664,Taxis,A40070,Stock Materials,30144403,24/08/2023,202306,316.62,101697,VIP-System Ltd
Environment,Revenue Budgets,Environment,Regulatory Services,A0664,Taxis,A40070,Stock Materials,30144403,24/08/2023,202306,967.77,101697,VIP-System Ltd
Environment,Capital Spend,Environment,Enhancement Bereavement Serv,Y1765,Afford Funeral Services,C01009,"New Construction, conversion & renovation",30140971,25/08/2023,202306,588.08,1007474,Print A Plate Ltd
Environment,Revenue Budgets,Environment,Garage & Fleet Strategy,A0665,Garage - Lab Holding,A42005,Clothing & Uniforms & Laundry,30142591,27/08/2023,202306,498.9,100810,Johnsons Apparelmaster
Environment,Revenue Budgets,Environment,Waste Services,A0683,Refuse - Domestic / Recycling,A42005,Clothing & Uniforms & Laundry,30141211,29/08/2023,202306,794.2,147941,Pws (Protective Wear Supplies) Ltd
Environment,Revenue Budgets,Environment,Grounds & Bereavement Services,A0680,Foreshore,A40920,Purchase of Equipment,30141212,29/08/2023,202306,258.9,1007397,Poolside Leisure
Environment,Revenue Budgets,Environment,Waste Services,A0683,Refuse - Domestic / Recycling,A42005,Clothing & Uniforms & Laundry,30141226,29/08/2023,202306,526.6,147941,Pws (Protective Wear Supplies) Ltd
